﻿"organisation_name","service_responsible","supplier_name","supplier_code","payment_date","transaction_ref","net_amount_by_line_item","irrecoverable_vat","purpose_of_spend","procurement_category_name","transaction_type","payment_type","card_transaction","invoice_date","financial_year","financial_period","supplier_invoice_reference","cost_centre_code","cost_centre_desc","account_code","account_desc"
"GUILDFORD BOROUGH COUNCIL","AP Data Migration","MWUK Ltd","699960","17/12/2020",30000352,11.2,0,"AP Data Migration","","II","BACS","None",2020-05-18 00:00:00,"2020","04","OLSINV/06497426","","Allocation Pending","9992","AP Data Migration"
"GUILDFORD BOROUGH COUNCIL","AP Data Migration","MWUK Ltd","699960","17/12/2020",30000352,2.24,0,"AP Data Migration","","II","BACS","None",2020-05-18 00:00:00,"2020","04","OLSINV/06497426","","Allocation Pending","9992","AP Data Migration"
"GUILDFORD BOROUGH COUNCIL","AP Data Migration","Surrey County Council","230230","20/10/2020",30000355,-50,0,"AP Data Migration","Local Government [Uk Only]","II","BACS","None",2020-06-04 00:00:00,"2020","04","9600053959","","Allocation Pending","9992","AP Data Migration"
"GUILDFORD BOROUGH COUNCIL","Building Control","Hays Specialist Recruitment Limited","156250","27/08/2020",30000378,2612.03,0,"Agency","Other Recruitment Agencies And Service Providers","II","BACS","None",2020-07-28 00:00:00,"2020","05","1010729256","D5700","Building Control - Fee","A5191","Agency"
"GUILDFORD BOROUGH COUNCIL","Lead Specialist - Finance","Hays Specialist Recruitment Limited","156250","13/08/2020",30000379,2200,0,"Agency","Other Recruitment Agencies And Service Providers","II","BACS","None",2020-07-28 00:00:00,"2020","05","1010729490","G3565","Finance Specialists","A5191","Agency"
"GUILDFORD BOROUGH COUNCIL","Miscellaneous Expenses","Scattergoods Agency Ltd","742000","01/09/2020",30000380,731.85,0,"Agency Staff","Other Recruitment Agencies And Service Providers","II","BACS","None",2020-07-29 00:00:00,"2020","05","410626","F7539","COVID-19","1222","Agency Staff"
"GUILDFORD BOROUGH COUNCIL","Vehicle Maintenance","HTS Spares Limited","928730","01/09/2020",30000381,913.6,0,"Repair And Maintenance Of Vehicles","Machinery And Engineering Parts Suppliers","II","BACS","None",2020-07-28 00:00:00,"2020","05","355066","K5551","Fleet Workshops","C1002","Repair And Maintenance Of Vehicles"
"GUILDFORD BOROUGH COUNCIL","Parks & Countryside","Lano Sports N.V","963930","13/08/2020",30000384,15104.94,0,"Contractor Payments","Sports And Play Area Surfacing Contractors","II","BACS","None",2020-07-29 00:00:00,"2020","05","SIS200001068","P18219","Kings College Astro Turf","1233","Contractor Payments"
"GUILDFORD BOROUGH COUNCIL","Lead Specialist - Legal","Thomson Reuters","673650","01/09/2020",30000385,1235,0,"Publications","","II","BACS","None",2020-06-01 00:00:00,"2020","05","842427362","G4525","Legal Services","D5001","Publications"
"GUILDFORD BOROUGH COUNCIL","Vehicle Maintenance","Dennis Eagle Limited","168100","01/09/2020",30000390,509.56,0,"Repair And Maintenance Of Vehicles","Refuse Vehicle Suppliers","II","BACS","None",2020-07-29 00:00:00,"2020","05","DE11330683","K5551","Fleet Workshops","C1002","Repair And Maintenance Of Vehicles"
"GUILDFORD BOROUGH COUNCIL","Woking Road Depot","Honey Brothers Limited","246200","13/08/2020",30000391,258.38,0,"Grounds Maintenance","Power And Hand Tool Suppliers","II","BACS","None",2020-07-23 00:00:00,"2020","05","IN251885","B4452","Woking Road Depot","B6001","Grounds Maintenance"
"GUILDFORD BOROUGH COUNCIL","Major Projects","The Oyster Partnership Ltd","814220","13/08/2020",30000395,1305,0,"Agency","Other Recruitment Agencies And Service Providers","II","BACS","None",2020-07-22 00:00:00,"2020","05","1078857","F5530","Major Projects","A5191","Agency"
"GUILDFORD BOROUGH COUNCIL","Major Projects","The Oyster Partnership Ltd","814220","13/08/2020",30000395,145,0,"Agency","Other Recruitment Agencies And Service Providers","II","BACS","None",2020-07-22 00:00:00,"2020","05","1078857","F5530","Major Projects","A5191","Agency"
"GUILDFORD BOROUGH COUNCIL","Executive - Miscellaneous","The Oyster Partnership Ltd","814220","13/08/2020",30000395,1450,0,"Other Salaries Recharged","Other Recruitment Agencies And Service Providers","II","BACS","None",2020-07-22 00:00:00,"2020","05","1078857","P79023","Guild Town Centre Regeneration","1226","Other Salaries Recharged"
"GUILDFORD BOROUGH COUNCIL","Inventories","Akw Medi-Care Limited","178400","01/09/2020",30000401,735.03,0,"Purchases","Mobility Disability Equipment Suppliers","II","BACS","None",2020-07-23 00:00:00,"2020","05","1842097","I01001","Stocks","2591","Purchases"
"GUILDFORD BOROUGH COUNCIL","Building Control","Hays Specialist Recruitment Limited","156250","01/09/2020",30000403,42.75,0,"Agency","Other Recruitment Agencies And Service Providers","II","BACS","None",2020-07-29 00:00:00,"2020","05","1010732881","D5700","Building Control - Fee","A5191","Agency"
"GUILDFORD BOROUGH COUNCIL","Building Control","Hays Specialist Recruitment Limited","156250","27/08/2020",30000411,2029.95,0,"Agency","Other Recruitment Agencies And Service Providers","II","BACS","None",2020-07-22 00:00:00,"2020","05","1010722638","D5700","Building Control - Fee","A5191","Agency"
"GUILDFORD BOROUGH COUNCIL","Industrial Estates","IPM Facilities Limited","927090","20/08/2020",30000417,127.99,0,"Grounds Maintenance","Property Letting And Estate Agents","II","BACS","None",2020-07-22 00:00:00,"2020","05","52933","B5332","Lysons Avenue Small Units - Rechargeable","B6001","Grounds Maintenance"
"GUILDFORD BOROUGH COUNCIL","Inventories","Akw Medi-Care Limited","178400","01/09/2020",30000421,-204.01,0,"Purchases","Mobility Disability Equipment Suppliers","II","BACS","None",2020-07-24 00:00:00,"2020","05","123567","I01001","Stocks","2591","Purchases"
"GUILDFORD BOROUGH COUNCIL","Corporate Property Management","Bernard Sims Associates","685740","01/09/2020",30000423,350,0,"Consultancy","Health And Safety Consultants","II","BACS","None",2020-07-22 00:00:00,"2020","05","0000046542","G4575","Asset Management","D6001","Consultancy"
"GUILDFORD BOROUGH COUNCIL","Property","Delta-Simons Environmental Consultants Ltd","986920","13/08/2020",30000425,70418.09,0,"Consultants Fees","","II","BACS","None",2020-06-30 00:00:00,"2020","05","DS025134","P74040","Slyfield Area Regeneration Project","1221","Consultants Fees"
"GUILDFORD BOROUGH COUNCIL","Inventories","Saint-Gobain Building Distribution Limited (Jewson)","271200","01/09/2020",30000430,717.8,0,"Purchases","Builders Merchants","II","BACS","None",2020-07-19 00:00:00,"2020","05","0652/00786689","I01001","Stocks","2591","Purchases"
"GUILDFORD BOROUGH COUNCIL","Property","The Oyster Partnership Ltd","814220","01/09/2020",30000433,1392,0,"Other Salaries Recharged","Other Recruitment Agencies And Service Providers","II","BACS","None",2020-07-29 00:00:00,"2020","05","1079198","P74040","Slyfield Area Regeneration Project","1226","Other Salaries Recharged"
"GUILDFORD BOROUGH COUNCIL","Property","The Oyster Partnership Ltd","814220","01/09/2020",30000433,1392,0,"Other Salaries Recharged","Other Recruitment Agencies And Service Providers","II","BACS","None",2020-07-29 00:00:00,"2020","05","1079198","P74040","Slyfield Area Regeneration Project","1226","Other Salaries Recharged"
"GUILDFORD BOROUGH COUNCIL","Executive - Miscellaneous","The Oyster Partnership Ltd","814220","01/09/2020",30000433,696,0,"Other Salaries Recharged","Other Recruitment Agencies And Service Providers","II","BACS","None",2020-07-29 00:00:00,"2020","05","1079198","P79100","Wuv - Allotment Relocation","1226","Other Salaries Recharged"
"GUILDFORD BOROUGH COUNCIL","Homelessness Support","Chase Inventory Services Ltd","427810","25/08/2020",30000441,75,0,"Services","Removal Service Providers","II","BACS","None",2020-07-22 00:00:00,"2020","05","103307","C3311","Homelessness","D6004","Services"
"GUILDFORD BOROUGH COUNCIL","Spectrum","LGR And Glazing Ltd (CIS)","988380","13/08/2020",30000442,38984.64,0,"Contractor Payments","General Builders","II","BACS","None",2020-07-22 00:00:00,"2020","05","SI-3234","P22062","Spectrum Roof","1233","Contractor Payments"
"GUILDFORD BOROUGH COUNCIL","Lead Specialist - Finance","Hays Specialist Recruitment Limited","156250","13/08/2020",30000443,2058.1,0,"Agency","Other Recruitment Agencies And Service Providers","II","BACS","None",2020-07-22 00:00:00,"2020","05","1010722478","G3565","Finance Specialists","A5191","Agency"
"GUILDFORD BOROUGH COUNCIL","Community Safety","Applied Resilience Limited","822600","01/09/2020",30000445,700.42,0,"Grants And Subscriptions","Other Business Service Providers","II","BACS","None",2020-07-23 00:00:00,"2020","05","GBC70","F5724","Safer Guildford Partnership","D9001","Grants And Subscriptions"
"GUILDFORD BOROUGH COUNCIL","Property","Delta-Simons Environmental Consultants Ltd","986920","13/08/2020",30000447,38891.93,0,"Consultants Fees","","II","BACS","None",2020-04-27 00:00:00,"2020","05","DS024494","P74040","Slyfield Area Regeneration Project","1221","Consultants Fees"
"GUILDFORD BOROUGH COUNCIL","Building Control","Engenius Engineers Ltd","232330","27/08/2020",30000448,256.86,0,"Consultancy","Electricians","II","BACS","None",2020-07-28 00:00:00,"2020","05","02123","D5700","Building Control - Fee","D6001","Consultancy"
"GUILDFORD BOROUGH COUNCIL","Building Control","Hays Specialist Recruitment Limited","156250","01/09/2020",30000449,370.5,0,"Agency","Other Recruitment Agencies And Service Providers","II","BACS","None",2020-07-29 00:00:00,"2020","05","1010733685","D5700","Building Control - Fee","A5191","Agency"
"GUILDFORD BOROUGH COUNCIL","Executive - Miscellaneous","Tetra Tech Environment Planning Transport Limited","224940","13/08/2020",30000451,4588,0,"Consultants Fees","Other Construction Consultants","II","BACS","None",2020-07-23 00:00:00,"2020","05","878454","P79032","SMC (West) Phase 1","1221","Consultants Fees"
"GUILDFORD BOROUGH COUNCIL","Countryside and Parks Services","Margnor (Fasteners) Limited","312200","13/08/2020",30000452,8.14,0,"Materials","Other Fittings And Furnishings Suppliers","II","BACS","None",2020-07-21 00:00:00,"2020","05","SIN233843","A1285","Onslow Village","D2003","Materials"
"GUILDFORD BOROUGH COUNCIL","Woking Road Depot","R S Components Limited","699000","01/09/2020",30000456,9.85,0,"Asset Maintenance","","II","BACS","None",2020-07-10 00:00:00,"2020","05","298547378","B4452","Woking Road Depot","B1001","Asset Maintenance"
"GUILDFORD BOROUGH COUNCIL","Countryside and Parks Services","A.S.L. Ltd (CIS)","667000","17/08/2020",30000458,10640,0,"Asset Maintenance","Sewerage And Drainage Service Providers","II","BACS","None",2020-07-16 00:00:00,"2020","05","66955","A1250","Stoke Park","B1001","Asset Maintenance"
"GUILDFORD BOROUGH COUNCIL","Affordable Housing","Vivid Resourcing Limited","856800","13/08/2020",30000459,1926,0,"Agency","Other Recruitment Agencies And Service Providers","II","BACS","None",2020-07-29 00:00:00,"2020","05","48766","C4111","Affordable Housing Development","A5191","Agency"
"GUILDFORD BOROUGH COUNCIL","Countryside and Parks Services","A.S.L. Ltd (CIS)","667000","17/08/2020",30000460,5800,0,"Asset Maintenance","Sewerage And Drainage Service Providers","II","BACS","None",2020-07-16 00:00:00,"2020","05","66956","A1250","Stoke Park","B1001","Asset Maintenance"
"GUILDFORD BOROUGH COUNCIL","Vehicle Maintenance","Geesink Norba Ltd","214500","01/09/2020",30000464,3084.25,0,"Repair And Maintenance Of Vehicles","Waste Disposal Equipment Suppliers","II","BACS","None",2020-07-28 00:00:00,"2020","05","90025003","K5551","Fleet Workshops","C1002","Repair And Maintenance Of Vehicles"
"GUILDFORD BOROUGH COUNCIL","Building Control","Engenius Engineers Ltd","232330","27/08/2020",30000466,256.83,0,"Consultancy","Electricians","II","BACS","None",2020-07-28 00:00:00,"2020","05","02119","D5700","Building Control - Fee","D6001","Consultancy"
"GUILDFORD BOROUGH COUNCIL","Vehicle Maintenance","PPK Services Ltd","472380","01/09/2020",30000473,1354,0,"Repair And Maintenance Of Vehicles","Plant And Construction Equipment Suppliers","II","BACS","None",2020-07-22 00:00:00,"2020","05","38825","K5551","Fleet Workshops","C1002","Repair And Maintenance Of Vehicles"
"GUILDFORD BOROUGH COUNCIL","Miscellaneous Expenses","Raynor Foods Ltd","920270","13/08/2020",30000485,111.51,0,"Catering","Other Food Suppliers","II","BACS","None",2020-07-24 00:00:00,"2020","05","272966","F7539","COVID-19","D3001","Catering"
"GUILDFORD BOROUGH COUNCIL","Miscellaneous Expenses","Top Mill Limited","898090","13/08/2020",30000488,420,0,"Emergency Accomodation","Hotels","II","BACS","None",2020-07-27 00:00:00,"2020","05","3907","F7539","COVID-19","D8009","Emergency Accomodation"
"GUILDFORD BOROUGH COUNCIL","Building Control","JJ Surveying Ltd","877460","20/08/2020",30000489,650,0,"Consultancy","Surveyors And Inspectors","II","BACS","None",2020-07-25 00:00:00,"2020","05","1160","D5700","Building Control - Fee","D6001","Consultancy"
"GUILDFORD BOROUGH COUNCIL","Vehicle Maintenance","Fluid Systems Ltd T/A Pirtek (Guildford)","667001","01/09/2020",30000494,75.02,0,"Repair And Maintenance Of Vehicles","","II","BACS","None",2020-07-23 00:00:00,"2020","05","GUI1265","K5551","Fleet Workshops","C1002","Repair And Maintenance Of Vehicles"
"GUILDFORD BOROUGH COUNCIL","Lead Specialist - Finance","Hays Specialist Recruitment Limited","156250","13/08/2020",30000497,2200,0,"Agency","Other Recruitment Agencies And Service Providers","II","BACS","None",2020-07-23 00:00:00,"2020","05","1010724040","G3565","Finance Specialists","A5191","Agency"
"GUILDFORD BOROUGH COUNCIL","Vehicle Maintenance","Lister Wilder Ltd","299800","01/09/2020",30000498,422.08,0,"Stock For Re-Sale","Emergency And Other Specialist Vehicle Dealers","II","BACS","None",2020-07-27 00:00:00,"2020","05","500760","K5551","Fleet Workshops","D2004","Stock For Re-Sale"
"GUILDFORD BOROUGH COUNCIL","Vehicle Maintenance","Partsplusuk","984320","01/09/2020",30000502,-220.24,0,"Repair And Maintenance Of Vehicles","Third Party Supplier","II","BACS","None",2020-03-31 00:00:00,"2020","05","1309068","K5551","Fleet Workshops","C1002","Repair And Maintenance Of Vehicles"
"GUILDFORD BOROUGH COUNCIL","Vehicle Maintenance","Southern Electromotive Distribution Ltd","760300","01/09/2020",30000504,5.14,0,"Repair And Maintenance Of Vehicles","Car And Van Servicing And Maintenance Providers","II","BACS","None",2020-07-21 00:00:00,"2020","05","394961","K5551","Fleet Workshops","C1002","Repair And Maintenance Of Vehicles"
"GUILDFORD BOROUGH COUNCIL","Miscellaneous Expenses","Top Mill Limited","898090","13/08/2020",30000508,420,0,"Emergency Accomodation","Hotels","II","BACS","None",2020-07-27 00:00:00,"2020","05","3908","F7539","COVID-19","D8009","Emergency Accomodation"
"GUILDFORD BOROUGH COUNCIL","Resources Caseworker","Vision Office Technical Services Ltd","991940","01/09/2020",30000509,1177.28,0,"Printing, Photocopying And Reprographics Internal","","II","BACS","None",2020-07-27 00:00:00,"2020","05","100120026","G4545","Reprographics","D5006","Printing, Photocopying And Reprographics Internal"
"GUILDFORD BOROUGH COUNCIL","Property","Perfect Circle JV Ltd","919010","13/08/2020",30000511,23870.59,0,"Consultants Fees","Construction Project Management Consultants","II","BACS","None",2020-07-31 00:00:00,"2020","05","LNMS0179/045","P74040","Slyfield Area Regeneration Project","1221","Consultants Fees"
"GUILDFORD BOROUGH COUNCIL","Vehicle Maintenance","Partsplusuk","984320","01/09/2020",30000512,236.03,0,"Repair And Maintenance Of Vehicles","Third Party Supplier","II","BACS","None",2020-07-22 00:00:00,"2020","05","13565392","K5551","Fleet Workshops","C1002","Repair And Maintenance Of Vehicles"
"GUILDFORD BOROUGH COUNCIL","Inventories","Akw Medi-Care Limited","178400","01/09/2020",30000514,570,0,"Purchases","Mobility Disability Equipment Suppliers","II","BACS","None",2020-07-22 00:00:00,"2020","05","1841740","I01001","Stocks","2591","Purchases"
"GUILDFORD BOROUGH COUNCIL","Inventories","Akw Medi-Care Limited","178400","01/09/2020",30000517,588.71,0,"Purchases","Mobility Disability Equipment Suppliers","II","BACS","None",2020-07-22 00:00:00,"2020","05","1841312","I01001","Stocks","2591","Purchases"
"GUILDFORD BOROUGH COUNCIL","Tourism & Development","Yandell Publishing Ltd","869300","27/08/2020",30000519,300,0,"Advertising, Publicity & Promotion","Other Information Service Providers","II","BACS","None",2020-05-15 00:00:00,"2020","05","WB45006","F5545","Tourism","D5002","Advertising, Publicity & Promotion"
"GUILDFORD BOROUGH COUNCIL","Vehicle Maintenance","Partsplusuk","984320","01/09/2020",30000521,-77.04,0,"Repair And Maintenance Of Vehicles","Third Party Supplier","II","BACS","None",2020-04-07 00:00:00,"2020","05","1311145","K5551","Fleet Workshops","C1002","Repair And Maintenance Of Vehicles"
"GUILDFORD BOROUGH COUNCIL","Woking Road Depot","Banner Group Limited","834160","01/09/2020",30000522,44.36,0,"Stationery & Paper","Other Office Equipment Suppliers","II","BACS","None",2020-07-23 00:00:00,"2020","05","5729747","B4452","Woking Road Depot","D5007","Stationery & Paper"
"GUILDFORD BOROUGH COUNCIL","Lead Specialist - Finance","Hays Specialist Recruitment Limited","156250","27/08/2020",30000531,2058.1,0,"Agency","Other Recruitment Agencies And Service Providers","II","BACS","None",2020-07-27 00:00:00,"2020","05","1010728567","G3593","Procurement Services","A5191","Agency"
"GUILDFORD BOROUGH COUNCIL","Vehicle Maintenance","Geesink Norba Ltd","214500","01/09/2020",30000533,284.86,0,"Repair And Maintenance Of Vehicles","Waste Disposal Equipment Suppliers","II","BACS","None",2020-07-23 00:00:00,"2020","05","90024947","K5551","Fleet Workshops","C1002","Repair And Maintenance Of Vehicles"
"GUILDFORD BOROUGH COUNCIL","Investment Properties","ABM Surveys Limited","926480","01/09/2020",30000538,47.5,0,"Consultancy","Pest And Vermin Control Service Providers","II","BACS","None",2020-07-27 00:00:00,"2020","05","1709","B6111","Investment Property","D6001","Consultancy"
"GUILDFORD BOROUGH COUNCIL","Vehicle Maintenance","Jaama Ltd","904540","13/08/2020",30000541,7880,0,"Vehicle Operating Costs","Software Developers","II","BACS","None",2020-07-27 00:00:00,"2020","05","11627","K5551","Fleet Workshops","C1001","Vehicle Operating Costs"
"GUILDFORD BOROUGH COUNCIL","Industrial Estates","UK Power Networks (Operations) Ltd (CIS)","672220","17/08/2020",30000543,1159,0,"Contractor Payments","Mains Electricity Suppliers","II","BACS","None",2020-07-27 00:00:00,"2020","05","92040714","P72037","Midleton Ind Est Redevelop","1233","Contractor Payments"
"GUILDFORD BOROUGH COUNCIL","Vehicle Maintenance","Faun Zoeller (UK) Limited","875210","01/09/2020",30000547,225,0,"Repair And Maintenance Of Vehicles","Waste Disposal Equipment Suppliers","II","BACS","None",2020-07-28 00:00:00,"2020","05","SI119203","K5551","Fleet Workshops","C1002","Repair And Maintenance Of Vehicles"
"GUILDFORD BOROUGH COUNCIL","Off Street Parking","Contract Security Services Ltd","146600","27/08/2020",30000550,13537.7,0,"Car Parks and Parking","Other Security Service Providers","II","BACS","None",2020-06-02 00:00:00,"2020","05","58716","B2216","General Upkeep- Urban Car Pks","K4015","Car Parks and Parking"
"GUILDFORD BOROUGH COUNCIL","Lead Specialist - ICT","BT Global Services","777540","27/08/2020",30000551,11600.47,0,"Telephones & Broadband","Fixed Telecoms Service Providers","II","BACS","None",2020-07-27 00:00:00,"2020","05","542047","G3548","ICT Technical & Infrastructure","D7004","Telephones & Broadband"
"GUILDFORD BOROUGH COUNCIL","Resources Caseworker","Vector Resourcing Limited","983490","13/08/2020",30000552,4283.52,0,"Agency Staff","Third Party Supplier","II","BACS","None",2020-07-06 00:00:00,"2020","05","57267","G3550","Resources Caseworker","1222","Agency Staff"
"GUILDFORD BOROUGH COUNCIL","Vehicle Maintenance","Faun Zoeller (UK) Limited","875210","01/09/2020",30000558,454,0,"Repair And Maintenance Of Vehicles","Waste Disposal Equipment Suppliers","II","BACS","None",2020-07-28 00:00:00,"2020","05","SI119202","K5551","Fleet Workshops","C1002","Repair And Maintenance Of Vehicles"
"GUILDFORD BOROUGH COUNCIL","Markets","Chambers Waste Management Plc","127500","27/08/2020",30000562,99,0,"Asset Maintenance","Other Waste Disposal Suppliers","II","BACS","None",2020-07-19 00:00:00,"2020","05","P419248","F5550","Farmers Market","B1001","Asset Maintenance"
"GUILDFORD BOROUGH COUNCIL","Corporate Services","Hallmark Vending Ltd","461450","01/09/2020",30000567,175.5,0,"Equipment","Other Vending Services Suppliers","II","BACS","None",2020-07-31 00:00:00,"2020","05","09441","F1111","Corporate Services","D2001","Equipment"
"GUILDFORD BOROUGH COUNCIL","Property","Perfect Circle JV Ltd","919010","13/08/2020",30000570,7000,0,"Consultants Fees","Construction Project Management Consultants","II","BACS","None",2020-07-31 00:00:00,"2020","05","LNMS0179/046","P74040","Slyfield Area Regeneration Project","1221","Consultants Fees"
"GUILDFORD BOROUGH COUNCIL","Property","Perfect Circle JV Ltd","919010","13/08/2020",30000574,14000,0,"Consultants Fees","Construction Project Management Consultants","II","BACS","None",2020-07-31 00:00:00,"2020","05","LNMS0179/044","P74040","Slyfield Area Regeneration Project","1221","Consultants Fees"
"GUILDFORD BOROUGH COUNCIL","Vehicle Maintenance","Fluid Systems Ltd T/A Pirtek (Guildford)","667001","01/09/2020",30000575,137.56,0,"Repair And Maintenance Of Vehicles","","II","BACS","None",2020-07-27 00:00:00,"2020","05","GUI1276","K5551","Fleet Workshops","C1002","Repair And Maintenance Of Vehicles"
"GUILDFORD BOROUGH COUNCIL","Parks Countryside Management","Hampshire County Council","236200","13/08/2020",30000581,10300,0,"Grants And Subscriptions","Local Government [Uk Only]","II","BACS","None",2020-07-24 00:00:00,"2020","05","3650006369","A1300","Trees And Countryside","D9001","Grants And Subscriptions"
"GUILDFORD BOROUGH COUNCIL","Countryside and Parks Services","Hampshire County Council","236200","13/08/2020",30000581,10300,0,"Grants And Subscriptions","Local Government [Uk Only]","II","BACS","None",2020-07-24 00:00:00,"2020","05","3650006369","A1300","Trees And Countryside","D9001","Grants And Subscriptions"
"GUILDFORD BOROUGH COUNCIL","Vehicle Maintenance","Rossetts (UK) Ltd","720900","01/09/2020",30000582,110.36,0,"Repair And Maintenance Of Vehicles","Truck And Bus Dealers","II","BACS","None",2020-04-14 00:00:00,"2020","05","42537134","K5551","Fleet Workshops","C1002","Repair And Maintenance Of Vehicles"
"GUILDFORD BOROUGH COUNCIL","Crematorium","Alresford Marquee Hire Ltd","940750","13/08/2020",30000587,680,0,"Consultants Fees","Marquee Suppliers","II","BACS","None",2020-07-27 00:00:00,"2020","05","4011","P05009","Refurbish/Rebuild Crematorium","1221","Consultants Fees"
"GUILDFORD BOROUGH COUNCIL","Countryside and Parks Services","Marshels of Farnham Ltd","933200","17/08/2020",30000588,9600,0,"Asset Maintenance","Third Party Supplier","II","BACS","None",2020-07-15 00:00:00,"2020","05","INV13689","A1130","Castle Grounds","B1001","Asset Maintenance"
"GUILDFORD BOROUGH COUNCIL","Vehicle Maintenance","Charters Of Aldershot Limited","128600","01/09/2020",30000589,344.18,0,"Repair And Maintenance Of Vehicles","Third Party Supplier","II","BACS","None",2020-07-16 00:00:00,"2020","05","10249506","K5551","Fleet Workshops","C1002","Repair And Maintenance Of Vehicles"
"GUILDFORD BOROUGH COUNCIL","Industrial Estates","Dartmouth General Contractors Ltd (CIS)","980630","27/08/2020",30000590,132461.02,0,"Contractor Payments","","II","BACS","None",2020-07-27 00:00:00,"2020","05","32476","P72037","Midleton Ind Est Redevelop","1233","Contractor Payments"
"GUILDFORD BOROUGH COUNCIL","Parks & Countryside","Robinson Low Francis LLP","932390","01/09/2020",30000595,1462.89,0,"Contractor Payments","Quantity Surveyors","II","BACS","None",2020-07-27 00:00:00,"2020","05","SIN058230","P18219","Kings College Astro Turf","1233","Contractor Payments"
"GUILDFORD BOROUGH COUNCIL","Affordable Hsg - Site Prep Etc","Stillwell Ltd - Closed see new account","769700","01/09/2020",30000602,775,0,"Consultants Fees","Infrastructure Planning Consultants","II","BACS","None",2020-07-24 00:00:00,"2020","05","TSP12733","N55023","Clover Road Garages","1221","Consultants Fees"
"GUILDFORD BOROUGH COUNCIL","Vehicle Maintenance","Aebi Schmidt UK Limited","221340","01/09/2020",30000603,995.79,0,"Repair And Maintenance Of Vehicles","Other Vehicle Dealers","II","BACS","None",2020-07-15 00:00:00,"2020","05","60261878","K5551","Fleet Workshops","C1002","Repair And Maintenance Of Vehicles"
"GUILDFORD BOROUGH COUNCIL","Miscellaneous Expenses","Top Mill Limited","898090","13/08/2020",30000607,420,0,"Emergency Accomodation","Hotels","II","BACS","None",2020-07-27 00:00:00,"2020","05","3910","F7539","COVID-19","D8009","Emergency Accomodation"
"GUILDFORD BOROUGH COUNCIL","Miscellaneous Expenses","Top Mill Limited","898090","13/08/2020",30000612,420,0,"Emergency Accomodation","Hotels","II","BACS","None",2020-07-27 00:00:00,"2020","05","3909","F7539","COVID-19","D8009","Emergency Accomodation"
"GUILDFORD BOROUGH COUNCIL","Miscellaneous Expenses","Risk Solutions Bg Ltd (VAT Reg 213902831)","992420","01/09/2020",30000615,3276,0,"Emergency Accomodation","","II","BACS","None",2020-06-29 00:00:00,"2020","05","INV-2397","F7539","COVID-19","D8009","Emergency Accomodation"
"GUILDFORD BOROUGH COUNCIL","Vehicle Maintenance","Rossetts (UK) Ltd","720900","01/09/2020",30000622,62.1,0,"Repair And Maintenance Of Vehicles","Truck And Bus Dealers","II","BACS","None",2020-07-24 00:00:00,"2020","05","42542314","K5551","Fleet Workshops","C1002","Repair And Maintenance Of Vehicles"
"GUILDFORD BOROUGH COUNCIL","Homelessness Support","Chase Inventory Services Ltd","427810","25/08/2020",30000627,75,0,"Services","Removal Service Providers","II","BACS","None",2020-07-07 00:00:00,"2020","05","103180","C3311","Homelessness","D6004","Services"
"GUILDFORD BOROUGH COUNCIL","Vehicle Maintenance","A & P Services (Surrey) Ltd","320160","13/08/2020",30000638,661.07,0,"Services","Agricultural Engineers","II","BACS","None",2020-07-14 00:00:00,"2020","05","6143","K5551","Fleet Workshops","D6004","Services"
"GUILDFORD BOROUGH COUNCIL","Emergency Communications","Tunstall Healthcare (UK) Ltd","100310","01/09/2020",30000642,554,0,"Equipment","Community Alarm Suppliers","II","BACS","None",2020-07-30 00:00:00,"2020","05","3IN/10358643","C2511","Careline/Telecare","D2001","Equipment"
"GUILDFORD BOROUGH COUNCIL","Parks Countryside Management","FASTSIGNS (Guildford) Ltd","199300","13/08/2020",30000646,97.76,0,"Materials","Building Signage Suppliers","II","BACS","None",2020-07-26 00:00:00,"2020","05","858--17133","A1300","Trees And Countryside","D2003","Materials"
"GUILDFORD BOROUGH COUNCIL","Countryside and Parks Services","FASTSIGNS (Guildford) Ltd","199300","13/08/2020",30000646,97.76,0,"Materials","Building Signage Suppliers","II","BACS","None",2020-07-26 00:00:00,"2020","05","858--17133","A1300","Trees And Countryside","D2003","Materials"
"GUILDFORD BOROUGH COUNCIL","Miscellaneous Expenses","Cheesman Brothers Limited","129100","13/08/2020",30000649,8639.99,0,"Catering","Fruit And Vegetable Suppliers","II","BACS","None",2020-07-31 00:00:00,"2020","05","855856","F7539","COVID-19","D3001","Catering"
"GUILDFORD BOROUGH COUNCIL","Inventories","Crown Paints Ltd","497000","01/09/2020",30000650,60.6,0,"Purchases","Paint And Coating Suppliers","II","BACS","None",2020-07-28 00:00:00,"2020","05","8205094960","I01001","Stocks","2591","Purchases"
"GUILDFORD BOROUGH COUNCIL","Street Cleansing","Swift Industrial Supplies Ltd","783800","01/09/2020",30000651,240.5,0,"Clothing & Uniform","Personal Protective Equipment (Ppe) Suppliers","II","BACS","None",2020-07-31 00:00:00,"2020","05","IN280861","K4551","Street Cleansing","D4001","Clothing & Uniform"
"GUILDFORD BOROUGH COUNCIL","Executive - Miscellaneous","Tetra Tech Environment Planning Transport Limited","224940","13/08/2020",30000653,1745,0,"Consultants Fees","Other Construction Consultants","II","BACS","None",2020-07-23 00:00:00,"2020","05","878516","P79032","SMC (West) Phase 1","1221","Consultants Fees"
"GUILDFORD BOROUGH COUNCIL","Vehicle Maintenance","Motormech Gfd Ltd","418700","13/08/2020",30000656,48,0,"Repair And Maintenance Of Vehicles","Car And Van Parts Suppliers","II","BACS","None",2020-07-15 00:00:00,"2020","05","238375","K5551","Fleet Workshops","C1002","Repair And Maintenance Of Vehicles"
"GUILDFORD BOROUGH COUNCIL","Vehicle Maintenance","HTS Spares Limited","928730","13/08/2020",30000658,375.54,0,"Materials","Machinery And Engineering Parts Suppliers","II","BACS","None",2020-07-28 00:00:00,"2020","05","355068","K5551","Fleet Workshops","D2003","Materials"
"GUILDFORD BOROUGH COUNCIL","Miscellaneous Expenses","Beeline Taxis","908000","01/09/2020",30000660,28.6,0,"Expenses","Taxis And Private Hire Companies","II","BACS","None",2020-07-31 00:00:00,"2020","05","58175","F7539","COVID-19","D8004","Expenses"
"GUILDFORD BOROUGH COUNCIL","Vehicle Maintenance","Wex Europe Services (UK) Limited","193400","13/08/2020",30000664,27,0,"Vehicle Operating Costs","Oil Fuel Suppliers","II","BACS","None",2020-07-31 00:00:00,"2020","05","GBW020491208","K5551","Fleet Workshops","C1001","Vehicle Operating Costs"
"GUILDFORD BOROUGH COUNCIL","Miscellaneous Expenses","Cheesman Brothers Limited","129100","13/08/2020",30000665,6290.93,0,"Catering","Fruit And Vegetable Suppliers","II","BACS","None",2020-07-31 00:00:00,"2020","05","855859","F7539","COVID-19","D3001","Catering"
"GUILDFORD BOROUGH COUNCIL","Street Cleansing","Motormech Gfd Ltd","418700","10/08/2020",30000667,58.6,0,"Repair And Maintenance Of Vehicles","Car And Van Parts Suppliers","II","BACS","None",2020-07-10 00:00:00,"2020","05","237831","K4551","Street Cleansing","C1002","Repair And Maintenance Of Vehicles"
"GUILDFORD BOROUGH COUNCIL","On Street Parking","Flowbird Smart City UK Limited","686670","01/09/2020",30000668,189,0,"Specialist Services","Parking Management Providers","II","BACS","None",2020-07-21 00:00:00,"2020","05","UK129520","B2215","Waverley On-Street","D6009","Specialist Services"
"GUILDFORD BOROUGH COUNCIL","Vehicle Maintenance","IC Autocare Limited","938530","13/08/2020",30000669,369.38,0,"Materials","Other Retailers","II","BACS","None",2020-07-14 00:00:00,"2020","05","0205837","K5551","Fleet Workshops","D2003","Materials"
"GUILDFORD BOROUGH COUNCIL","Vehicle Maintenance","Frm Truck & Trailer Spares Ltd","208100","01/09/2020",30000670,243,0,"Repair And Maintenance Of Vehicles","Car And Van Parts Suppliers","II","BACS","None",2020-07-29 00:00:00,"2020","05","351923","K5551","Fleet Workshops","C1002","Repair And Maintenance Of Vehicles"
"GUILDFORD BOROUGH COUNCIL","Vehicle Maintenance","Connections UK","145000","25/08/2020",30000671,301.65,0,"Materials","Event Management Agencies","II","BACS","None",2020-07-15 00:00:00,"2020","05","3994","K5551","Fleet Workshops","D2003","Materials"
"GUILDFORD BOROUGH COUNCIL","Vehicle Maintenance","Geesink Norba Ltd","214500","01/09/2020",30000673,1089.31,0,"Repair And Maintenance Of Vehicles","Waste Disposal Equipment Suppliers","II","BACS","None",2020-07-29 00:00:00,"2020","05","90025034","K5551","Fleet Workshops","C1002","Repair And Maintenance Of Vehicles"
"GUILDFORD BOROUGH COUNCIL","Vehicle Maintenance","Certas Energy UK Limited","759300","13/08/2020",30000676,14932.5,0,"Vehicle Operating Costs","Oil Fuel Suppliers","II","BACS","None",2020-07-23 00:00:00,"2020","05","4412045","K5551","Fleet Workshops","C1001","Vehicle Operating Costs"
"GUILDFORD BOROUGH COUNCIL","Millmead House","Swift Industrial Supplies Ltd","783800","13/08/2020",30000680,50.5,0,"Equipment","Personal Protective Equipment (Ppe) Suppliers","II","BACS","None",2020-07-31 00:00:00,"2020","05","IN280994","G7511","Millmead House","D2001","Equipment"
"GUILDFORD BOROUGH COUNCIL","Resources Caseworker","Swift Industrial Supplies Ltd","783800","13/08/2020",30000680,50.5,0,"Equipment","Personal Protective Equipment (Ppe) Suppliers","II","BACS","None",2020-07-31 00:00:00,"2020","05","IN280994","G7511","Millmead House","D2001","Equipment"
"GUILDFORD BOROUGH COUNCIL","Vehicle Maintenance","FASTSIGNS (Guildford) Ltd","199300","01/09/2020",30000683,160,0,"Repair And Maintenance Of Vehicles","Building Signage Suppliers","II","BACS","None",2020-07-15 00:00:00,"2020","05","858--17135","K5551","Fleet Workshops","C1002","Repair And Maintenance Of Vehicles"
"GUILDFORD BOROUGH COUNCIL","Guildford Museum","Momart Limited","916980","01/09/2020",30000690,200.8,0,"Asset Maintenance","General Logistics Contractors","II","BACS","None",2020-07-31 00:00:00,"2020","05","I231240","A5511","Museum","B1001","Asset Maintenance"
"GUILDFORD BOROUGH COUNCIL","Vehicle Maintenance","F G Barnes & Sons Ltd T/A Barnes Daf","882000","01/09/2020",30000691,391.57,0,"Repair And Maintenance Of Vehicles","Car And Van Dealers","II","BACS","None",2020-07-15 00:00:00,"2020","05","40302456","K5551","Fleet Workshops","C1002","Repair And Maintenance Of Vehicles"
"GUILDFORD BOROUGH COUNCIL","Property","Pinsent Masons LLP","992900","13/08/2020",30000697,590,0,"Legal Expenses","Other Legal Service Providers","II","BACS","None",2020-07-29 00:00:00,"2020","05","6548955","P74040","Slyfield Area Regeneration Project","1395","Legal Expenses"
"GUILDFORD BOROUGH COUNCIL","Grants","Surrey County Council","230230","01/09/2020",30000699,192.03,0,"Purchase Of Equipment, Tools And Materials","Local Government [Uk Only]","II","BACS","None",2020-07-31 00:00:00,"2020","05","9500236293","N51019","BCF Non Grant Expenditure","1283","Purchase Of Equipment, Tools And Materials"
"GUILDFORD BOROUGH COUNCIL","Grants","Surrey County Council","230230","01/09/2020",30000699,192.03,0,"Advance, Loan Employees","Local Government [Uk Only]","II","BACS","None",2020-07-31 00:00:00,"2020","05","9500236293","N51019","BCF Non Grant Expenditure","1283","Advance, Loan Employees"
"GUILDFORD BOROUGH COUNCIL","Grants","Surrey County Council","230230","01/09/2020",30000699,192.03,0,"Advance, Loan Employees","Local Government [Uk Only]","II","BACS","None",2020-07-31 00:00:00,"2020","05","9500236293","N51019","BCF Non Grant Expenditure","1283","Advance, Loan Employees"
"GUILDFORD BOROUGH COUNCIL","Crematorium","Ant Structures Ltd","933760","01/09/2020",30000701,4200,0,"Asset Maintenance","Scaffolders","II","BACS","None",2020-07-31 00:00:00,"2020","05","3792","P05012","Broadwater Cottage","B1001","Asset Maintenance"
"GUILDFORD BOROUGH COUNCIL","Industrial Estates","A.S.L. Ltd (CIS)","667000","01/09/2020",30000702,2960,0,"Asset Maintenance","Sewerage And Drainage Service Providers","II","BACS","None",2020-04-06 00:00:00,"2020","05","66477","B5332","Lysons Avenue Small Units - Rechargeable","B1001","Asset Maintenance"
"GUILDFORD BOROUGH COUNCIL","Property","Montagu Evans LLP","952020","13/08/2020",30000707,5000,0,"Consultants Fees","Surveyors And Inspectors","II","BACS","None",2020-07-27 00:00:00,"2020","05","DVC210454","P74040","Slyfield Area Regeneration Project","1221","Consultants Fees"
"GUILDFORD BOROUGH COUNCIL","Vehicle Maintenance","Southern Electromotive Distribution Ltd","760300","01/09/2020",30000708,17.2,0,"Repair And Maintenance Of Vehicles","Car And Van Servicing And Maintenance Providers","II","BACS","None",2020-07-14 00:00:00,"2020","05","394641","K5551","Fleet Workshops","C1002","Repair And Maintenance Of Vehicles"
"GUILDFORD BOROUGH COUNCIL","Vehicle Maintenance","Motormech Gfd Ltd","418700","13/08/2020",30000715,48,0,"Repair And Maintenance Of Vehicles","Car And Van Parts Suppliers","II","BACS","None",2020-07-17 00:00:00,"2020","05","238764","K5551","Fleet Workshops","C1002","Repair And Maintenance Of Vehicles"
"GUILDFORD BOROUGH COUNCIL","Vehicle Maintenance","HTS Spares Limited","928730","01/09/2020",30000716,524.24,0,"Repair And Maintenance Of Vehicles","Machinery And Engineering Parts Suppliers","II","BACS","None",2020-07-28 00:00:00,"2020","05","355067","K5551","Fleet Workshops","C1002","Repair And Maintenance Of Vehicles"
"GUILDFORD BOROUGH COUNCIL","Guildford Museum","Momart Limited","916980","13/08/2020",30000717,13217.6,0,"Asset Maintenance","General Logistics Contractors","II","BACS","None",2020-07-31 00:00:00,"2020","05","I231239","A5511","Museum","B1001","Asset Maintenance"
"GUILDFORD BOROUGH COUNCIL","On Street Parking","Flowbird Smart City UK Limited","686670","01/09/2020",30000723,115,0,"Services","Parking Management Providers","II","BACS","None",2020-07-31 00:00:00,"2020","05","UK129858","B2215","Waverley On-Street","D6004","Services"
"GUILDFORD BOROUGH COUNCIL","Vehicle Maintenance","Connections UK","145000","25/08/2020",30000725,233.3,0,"Materials","Event Management Agencies","II","BACS","None",2020-07-22 00:00:00,"2020","05","3018","K5551","Fleet Workshops","D2003","Materials"
"GUILDFORD BOROUGH COUNCIL","Miscellaneous Expenses","Rent Refunds","9999997","10/08/2020",30000727,980,0,"Emergency Accomodation","","II","BACS","None",2020-07-30 00:00:00,"2020","05","Alex Ganderton","F7539","COVID-19","D8009","Emergency Accomodation"
"GUILDFORD BOROUGH COUNCIL","HRA Income","Rent Refunds","9999997","10/08/2020",30000729,95.57,0,"Rent","","II","BACS","None",2020-07-16 00:00:00,"2020","05","100507440007","M9111","General Income","K5001","Rent"
"GUILDFORD BOROUGH COUNCIL","Refuse and Recycling","Go Plant Fleet Services Ltd","979090","13/08/2020",30000731,715,0,"External Vehicle Hire","Third Party Supplier","II","BACS","None",2020-07-31 00:00:00,"2020","05","INV00011313","K3551","Refuse - Domestic","C3001","External Vehicle Hire"
"GUILDFORD BOROUGH COUNCIL","Refuse and Recycling","Riverside Truck Rental Ltd","993650","13/08/2020",30000733,5750,0,"External Vehicle Hire","","II","BACS","None",2020-07-31 00:00:00,"2020","05","IV642091","K3551","Refuse - Domestic","C3001","External Vehicle Hire"
"GUILDFORD BOROUGH COUNCIL","Inventories","Akw Medi-Care Limited","178400","01/09/2020",30000734,295.03,0,"Purchases","Mobility Disability Equipment Suppliers","II","BACS","None",2020-07-31 00:00:00,"2020","05","1844078","I01001","Stocks","2591","Purchases"
"GUILDFORD BOROUGH COUNCIL","Corporate Services","Worldpay Limited","909830","01/09/2020",30000735,19.95,0,"Bank Charges","Other Financial Service Providers","II","BACS","None",2020-08-01 00:00:00,"2020","05","WM11270713","F1111","Corporate Services","D8002","Bank Charges"
"GUILDFORD BOROUGH COUNCIL","Inventories","Saint-Gobain Building Distribution Limited (Jewson)","271200","01/09/2020",30000738,-9.33,0,"Purchases","Builders Merchants","II","BACS","None",2020-07-21 00:00:00,"2020","05","0374/0138766","I01001","Stocks","2591","Purchases"
"GUILDFORD BOROUGH COUNCIL","SPA Sites","I & J Bushell Ltd (CIS)","804030","17/08/2020",30000740,1040,0,"Spa Endowment Exp.","Other Farming And Agricultural Activities","II","BACS","None",2020-07-31 00:00:00,"2020","05","04201","A1010","SPA Sites","E5000","Spa Endowment Exp."
"GUILDFORD BOROUGH COUNCIL","SPA Sites","I & J Bushell Ltd (CIS)","804030","17/08/2020",30000740,500,0,"Spa Endowment Exp.","Other Farming And Agricultural Activities","II","BACS","None",2020-07-31 00:00:00,"2020","05","04201","A1010","SPA Sites","E5000","Spa Endowment Exp."
"GUILDFORD BOROUGH COUNCIL","Woking Road Depot","Zepbrook Ltd","927700","13/08/2020",30000743,17.78,0,"Equipment","Other Food Suppliers","II","BACS","None",2020-08-04 00:00:00,"2020","05","SIN428451","B4452","Woking Road Depot","D2001","Equipment"
"GUILDFORD BOROUGH COUNCIL","Crematorium","Ant Structures Ltd","933760","01/09/2020",30000749,1982.4,0,"Asset Maintenance","Scaffolders","II","BACS","None",2020-07-31 00:00:00,"2020","05","3793","P05012","Broadwater Cottage","B1001","Asset Maintenance"
"GUILDFORD BOROUGH COUNCIL","Woking Road Depot","Zepbrook Ltd","927700","13/08/2020",30000750,14.82,0,"Materials","Other Food Suppliers","II","BACS","None",2020-07-31 00:00:00,"2020","05","SIN428321","B4452","Woking Road Depot","D2003","Materials"
"GUILDFORD BOROUGH COUNCIL","Renovations","The OT Practice Ltd","984970","01/09/2020",30000755,229,0,"Contractor Payments","","II","BACS","None",2020-07-31 00:00:00,"2020","05","INV-023129","N40282","Disabled adaptations 2020-21","1233","Contractor Payments"
"GUILDFORD BOROUGH COUNCIL","Countryside and Parks Services","Hire Services (Southern) Ltd","244300","13/08/2020",30000756,108,0,"Materials","Power And Hand Tool Suppliers","II","BACS","None",2020-07-31 00:00:00,"2020","05","416289","A1100","Horticulture","D2003","Materials"
"GUILDFORD BOROUGH COUNCIL","Renovations","The OT Practice Ltd","984970","01/09/2020",30000762,350,0,"Contractor Payments","","II","BACS","None",2020-07-31 00:00:00,"2020","05","INV-023131","N40282","Disabled adaptations 2020-21","1233","Contractor Payments"
"GUILDFORD BOROUGH COUNCIL","Lead Specialist - Legal","Veale Wasbrough Vizards LLP","955270","01/09/2020",30000764,1757.2,0,"Services","Property Letting And Estate Agents","II","BACS","None",2020-07-30 00:00:00,"2020","05","BN1-00066247","G4525","Legal Services","D6004","Services"
"GUILDFORD BOROUGH COUNCIL","Spectrum","Southern Industrial Roofing Ltd","259720","27/08/2020",30000770,4866.42,0,"Contractor Payments","Roofers","II","BACS","None",2020-07-31 00:00:00,"2020","05","5832","P22062","Spectrum Roof","1233","Contractor Payments"
"GUILDFORD BOROUGH COUNCIL","Lead Specialist - HR","TP Health Ltd","957830","01/09/2020",30000771,348,0,"Staff Costs","Health And Safety Training Providers","II","BACS","None",2020-07-31 00:00:00,"2020","05","INV-000006322","G2555","HR Services","A7100","Staff Costs"
"GUILDFORD BOROUGH COUNCIL","Building Maintenance","AMG Electrical - Closed see account 1000451","268000","19/08/2020",30000776,878.25,0,"Services","Electricians","II","BACS","None",2020-07-23 00:00:00,"2020","05","2007-53","K1515","Building Maintenance","D6004","Services"
"GUILDFORD BOROUGH COUNCIL","Building Maintenance","CTG Enterprises Ltd","795800","01/09/2020",30000777,160,0,"Services","Other Cleaning And Janitorial Service Providers","II","BACS","None",2020-08-01 00:00:00,"2020","05","GU1668GBC","K1515","Building Maintenance","D6004","Services"
"GUILDFORD BOROUGH COUNCIL","Building Maintenance","Davis Property Services GU Limited (CIS)","946970","10/08/2020",30000778,8923,0,"Services","Roofers","II","BACS","None",2020-07-28 00:00:00,"2020","05","X0068126/17","K1515","Building Maintenance","D6004","Services"
"GUILDFORD BOROUGH COUNCIL","Woking Road Depot","CTG Enterprises Ltd","795800","13/08/2020",30000780,140,0,"Cleaning Contractors","Other Cleaning And Janitorial Service Providers","II","BACS","None",2020-08-01 00:00:00,"2020","05","GU1661G","B4452","Woking Road Depot","D6006","Cleaning Contractors"
"GUILDFORD BOROUGH COUNCIL","Street Cleansing","CTG Enterprises Ltd","795800","01/09/2020",30000781,340,0,"Services","Other Cleaning And Janitorial Service Providers","II","BACS","None",2020-08-01 00:00:00,"2020","05","GU1666GBC","K4551","Street Cleansing","D6004","Services"
"GUILDFORD BOROUGH COUNCIL","Building Maintenance","Revive Services (CIS)","846250","10/08/2020",30000782,2770,0,"Services","Other Cleaning And Janitorial Service Providers","II","BACS","None",2020-07-28 00:00:00,"2020","05","071","K1515","Building Maintenance","D6004","Services"
"GUILDFORD BOROUGH COUNCIL","Building Maintenance","Cinnamon Construction Limited (CIS)","921860","10/08/2020",30000784,2940,0,"Services","General Builders","II","BACS","None",2020-08-03 00:00:00,"2020","05","X0068127/6","K1515","Building Maintenance","D6004","Services"
"GUILDFORD BOROUGH COUNCIL","Building Maintenance","A Star Maintenance Contractors Ltd (CIS)","969700","17/08/2020",30000785,80,0,"Services","Property Maintenance Contractors","II","BACS","None",2020-07-21 00:00:00,"2020","05","13621","K1515","Building Maintenance","D6004","Services"
"GUILDFORD BOROUGH COUNCIL","Corporate Property Management","Curchod & Co","972750","01/09/2020",30000786,940,0,"Consultancy","","II","BACS","None",2020-07-23 00:00:00,"2020","05","F25669JAB","G4575","Asset Management","D6001","Consultancy"
"GUILDFORD BOROUGH COUNCIL","Building Maintenance","RGB Decorating Limited (CIS)","769600","10/08/2020",30000787,4716,0,"Services","Painters And Decorators","II","BACS","None",2020-07-29 00:00:00,"2020","05","X0068120/11","K1515","Building Maintenance","D6004","Services"
"GUILDFORD BOROUGH COUNCIL","Corporate Property Management","CLM Surveyors LLP","908770","03/09/2020",30000788,855,0,"Consultancy","Surveyors And Inspectors","II","BACS","None",2020-08-04 00:00:00,"2020","05","23418","G4575","Asset Management","D6001","Consultancy"
"GUILDFORD BOROUGH COUNCIL","Building Maintenance","Davis Property Services GU Limited (CIS)","946970","10/08/2020",30000789,6171.75,0,"Services","Roofers","II","BACS","None",2020-07-25 00:00:00,"2020","05","X0068126/16","K1515","Building Maintenance","D6004","Services"
"GUILDFORD BOROUGH COUNCIL","Vehicle Maintenance","HTS Spares Limited","928730","01/09/2020",30000795,262.48,0,"Repair And Maintenance Of Vehicles","Machinery And Engineering Parts Suppliers","II","BACS","None",2020-07-31 00:00:00,"2020","05","356165","K5551","Fleet Workshops","C1002","Repair And Maintenance Of Vehicles"
"GUILDFORD BOROUGH COUNCIL","Building Control","Hays Specialist Recruitment Limited","156250","03/09/2020",30000797,50.4,0,"Agency","Other Recruitment Agencies And Service Providers","II","BACS","None",2020-08-04 00:00:00,"2020","05","1010740985","D5700","Building Control - Fee","A5191","Agency"
"GUILDFORD BOROUGH COUNCIL","Building Control","Hays Specialist Recruitment Limited","156250","03/09/2020",30000801,2630.56,0,"Agency","Other Recruitment Agencies And Service Providers","II","BACS","None",2020-08-03 00:00:00,"2020","05","1010739769","D5700","Building Control - Fee","A5191","Agency"
"GUILDFORD BOROUGH COUNCIL","Day Services","Scattergoods Agency Ltd","742000","13/08/2020",30000802,870.3,0,"Agency","Other Recruitment Agencies And Service Providers","II","BACS","None",2020-08-04 00:00:00,"2020","05","410645","C8100","Community Hubs","A5191","Agency"
"GUILDFORD BOROUGH COUNCIL","Inventories","Akw Medi-Care Limited","178400","01/09/2020",30000803,295.03,0,"Purchases","Mobility Disability Equipment Suppliers","II","BACS","None",2020-06-24 00:00:00,"2020","05","1835446","I01001","Stocks","2591","Purchases"
"GUILDFORD BOROUGH COUNCIL","Street Cleansing","CTG Enterprises Ltd","795800","01/09/2020",30000804,153,0,"Services","Other Cleaning And Janitorial Service Providers","II","BACS","None",2020-08-01 00:00:00,"2020","05","GUI660G","K4551","Street Cleansing","D6004","Services"
"GUILDFORD BOROUGH COUNCIL","Street Cleansing","CTG Enterprises Ltd","795800","01/09/2020",30000805,999.6,0,"Services","Other Cleaning And Janitorial Service Providers","II","BACS","None",2020-08-01 00:00:00,"2020","05","GUI659C","K4551","Street Cleansing","D6004","Services"
"GUILDFORD BOROUGH COUNCIL","Woking Road Depot","Banner Group Limited","834160","13/08/2020",30000806,15.26,0,"Stationery & Paper","Other Office Equipment Suppliers","II","BACS","None",2020-08-03 00:00:00,"2020","05","5766842","B4452","Woking Road Depot","D5007","Stationery & Paper"
"GUILDFORD BOROUGH COUNCIL","Street Cleansing","CTG Enterprises Ltd","795800","01/09/2020",30000807,655,0,"Services","Other Cleaning And Janitorial Service Providers","II","BACS","None",2020-08-01 00:00:00,"2020","05","GU1667GBC","K4551","Street Cleansing","D6004","Services"
"GUILDFORD BOROUGH COUNCIL","Vehicle Maintenance","A & P Services (Surrey) Ltd","320160","03/09/2020",30000808,661.56,0,"Repair And Maintenance Of Vehicles","Agricultural Engineers","II","BACS","None",2020-08-04 00:00:00,"2020","05","6170","K5551","Fleet Workshops","C1002","Repair And Maintenance Of Vehicles"
"GUILDFORD BOROUGH COUNCIL","Building Maintenance","A Star Maintenance Contractors Ltd (CIS)","969700","17/08/2020",30000809,2254.1,0,"Services","Property Maintenance Contractors","II","BACS","None",2020-07-21 00:00:00,"2020","05","13620","K1515","Building Maintenance","D6004","Services"
"GUILDFORD BOROUGH COUNCIL","HRA Income","Rent Refunds","9999997","10/08/2020",30000810,170.84,0,"Rent","","II","BACS","None",2020-07-16 00:00:00,"2020","05","100511660009","M9111","General Income","K5001","Rent"
"GUILDFORD BOROUGH COUNCIL","Community Development","Community Foundation For Surrey","774460","13/08/2020",30000812,1312.15,0,"Grants And Subscriptions","Community Partnerships","II","BACS","None",2020-07-31 00:00:00,"2020","05","Lottery/Match Fund","F1127","Community Development","D9001","Grants And Subscriptions"
"GUILDFORD BOROUGH COUNCIL","Town Centre Management","JC Electrics (Guildford) Ltd","748360","17/08/2020",30000813,177,0,"Asset Maintenance","Electrical Wiring And Parts Suppliers","II","BACS","None",2020-06-30 00:00:00,"2020","05","T0070","B5711","Markets","B1001","Asset Maintenance"
"GUILDFORD BOROUGH COUNCIL","Flats Communal Services","Thorley Smith Ltd","169400","13/08/2020",30000814,60,0,"Asset Maintenance","Other Retailers","II","BACS","None",2020-07-16 00:00:00,"2020","05","14481","M2667","Clover Road 53-63 Odd (6)","B1001","Asset Maintenance"
"GUILDFORD BOROUGH COUNCIL","Responsive & Planned Maintenance","Thorley Smith Ltd","169400","13/08/2020",30000815,355,0,"Cleaning Contractors","Other Retailers","II","BACS","None",2020-07-16 00:00:00,"2020","05","14482","M5113","Repairs-Responsive (BHS)","D6006","Cleaning Contractors"
"GUILDFORD BOROUGH COUNCIL","Renovations","T J Hunt Contracting Ltd","960100","10/08/2020",30000816,4837,0,"Contractor Payments","Civil Engineers","II","BACS","None",2020-07-17 00:00:00,"2020","05","29284","N40282","Disabled adaptations 2020-21","1233","Contractor Payments"
"GUILDFORD BOROUGH COUNCIL","Modern Homes","Breyer Group Plc","129090","10/08/2020",30000817,8813.58,0,"Contractor Payments","General Builders","II","BACS","None",2020-07-24 00:00:00,"2020","05","50020a","N42067","Void properties 2020-21","1233","Contractor Payments"
"GUILDFORD BOROUGH COUNCIL","Leisure and Community","Paul Phelan","261400","10/08/2020",30000832,195,0,"Asset Maintenance","Sewerage And Drainage Service Providers","II","BACS","None",2020-02-14 00:00:00,"2020","05","81467","A8151","Stoughton Youth and Community Centre","B1001","Asset Maintenance"
"GUILDFORD BOROUGH COUNCIL","Public Conveniences","Paul Phelan","261400","10/08/2020",30000833,59.5,0,"Asset Maintenance","Sewerage And Drainage Service Providers","II","BACS","None",2020-07-15 00:00:00,"2020","05","82066","K6500","Public Conveniences","B1001","Asset Maintenance"
"GUILDFORD BOROUGH COUNCIL","Responsive & Planned Maintenance","Paul Phelan","261400","10/08/2020",30000834,76,0,"Asset Maintenance","Sewerage And Drainage Service Providers","II","BACS","None",2020-07-15 00:00:00,"2020","05","82067","M5113","Repairs-Responsive (BHS)","B1001","Asset Maintenance"
"GUILDFORD BOROUGH COUNCIL","Responsive & Planned Maintenance","Paul Phelan","261400","10/08/2020",30000835,100,0,"Asset Maintenance","Sewerage And Drainage Service Providers","II","BACS","None",2020-07-17 00:00:00,"2020","05","82081","M5113","Repairs-Responsive (BHS)","B1001","Asset Maintenance"
"GUILDFORD BOROUGH COUNCIL","Responsive & Planned Maintenance","Paul Phelan","261400","10/08/2020",30000836,59.5,0,"Asset Maintenance","Sewerage And Drainage Service Providers","II","BACS","None",2020-07-17 00:00:00,"2020","05","82082","M5113","Repairs-Responsive (BHS)","B1001","Asset Maintenance"
"GUILDFORD BOROUGH COUNCIL","Modern Homes","Breyer Group Plc","129090","10/08/2020",30000838,10159.63,0,"Contractor Payments","General Builders","II","BACS","None",2020-07-20 00:00:00,"2020","05","50004","N42067","Void properties 2020-21","1233","Contractor Payments"
"GUILDFORD BOROUGH COUNCIL","Modern Homes","Breyer Group Plc","129090","10/08/2020",30000839,7137.27,0,"Contractor Payments","General Builders","II","BACS","None",2020-07-20 00:00:00,"2020","05","50005","N42067","Void properties 2020-21","1233","Contractor Payments"
"GUILDFORD BOROUGH COUNCIL","Responsive & Planned Maintenance","T J Plant Ltd","788900","13/08/2020",30000840,949,0,"Asset Maintenance","Plant And Construction Equipment Suppliers","II","BACS","None",2020-07-20 00:00:00,"2020","05","13646","M5113","Repairs-Responsive (BHS)","B1001","Asset Maintenance"
"GUILDFORD BOROUGH COUNCIL","Responsive & Planned Maintenance","T J Plant Ltd","788900","13/08/2020",30000840,440,0,"Asset Maintenance","Plant And Construction Equipment Suppliers","II","BACS","None",2020-07-20 00:00:00,"2020","05","13646","M5113","Repairs-Responsive (BHS)","B1001","Asset Maintenance"
"GUILDFORD BOROUGH COUNCIL","Responsive & Planned Maintenance","T J Plant Ltd","788900","13/08/2020",30000841,270,0,"Asset Maintenance","Plant And Construction Equipment Suppliers","II","BACS","None",2020-07-22 00:00:00,"2020","05","13653","M5113","Repairs-Responsive (BHS)","B1001","Asset Maintenance"
"GUILDFORD BOROUGH COUNCIL","Responsive & Planned Maintenance","T J Plant Ltd","788900","13/08/2020",30000841,74,0,"Asset Maintenance","Plant And Construction Equipment Suppliers","II","BACS","None",2020-07-22 00:00:00,"2020","05","13653","M5113","Repairs-Responsive (BHS)","B1001","Asset Maintenance"
"GUILDFORD BOROUGH COUNCIL","Responsive & Planned Maintenance","J T S Civil Engineers Ltd","648550","10/08/2020",30000842,112.5,0,"Asset Maintenance","Sewerage And Drainage Service Providers","II","BACS","None",2020-07-07 00:00:00,"2020","05","155253a","M5113","Repairs-Responsive (BHS)","B1001","Asset Maintenance"
"GUILDFORD BOROUGH COUNCIL","Responsive & Planned Maintenance","J T S Civil Engineers Ltd","648550","10/08/2020",30000842,300,0,"Asset Maintenance","Sewerage And Drainage Service Providers","II","BACS","None",2020-07-07 00:00:00,"2020","05","155253a","M5113","Repairs-Responsive (BHS)","B1001","Asset Maintenance"
"GUILDFORD BOROUGH COUNCIL","Responsive & Planned Maintenance","European Asbestos Services Limited","919910","10/08/2020",30000843,3086,0,"Asset Maintenance","Asbestos Removal Service Providers","II","BACS","None",2020-07-07 00:00:00,"2020","05","IA24378","M5113","Repairs-Responsive (BHS)","B1001","Asset Maintenance"
"GUILDFORD BOROUGH COUNCIL","Responsive & Planned Maintenance","European Asbestos Services Limited","919910","10/08/2020",30000844,697,0,"Asset Maintenance","Asbestos Removal Service Providers","II","BACS","None",2020-03-19 00:00:00,"2020","05","IA24778","M5113","Repairs-Responsive (BHS)","B1001","Asset Maintenance"
"GUILDFORD BOROUGH COUNCIL","Heating","European Asbestos Services Limited","919910","10/08/2020",30000845,85,0,"Contractor Payments","Asbestos Removal Service Providers","II","BACS","None",2020-01-30 00:00:00,"2020","05","ISS24186","N44069","Central Heating/Boiler 2019-20","1233","Contractor Payments"
"GUILDFORD BOROUGH COUNCIL","Heating","European Asbestos Services Limited","919910","10/08/2020",30000846,85,0,"Contractor Payments","Asbestos Removal Service Providers","II","BACS","None",2020-03-25 00:00:00,"2020","05","ISS24877","N44069","Central Heating/Boiler 2019-20","1233","Contractor Payments"
"GUILDFORD BOROUGH COUNCIL","Responsive & Planned Maintenance","Pennington Choices Limited","937390","10/08/2020",30000847,44.92,0,"Licences","Construction Project Management Consultants","II","BACS","None",2020-06-30 00:00:00,"2020","05","31795","M5114","Repairs-Cyclical (BHS)","D8001","Licences"
"GUILDFORD BOROUGH COUNCIL","Responsive & Planned Maintenance","Pennington Choices Limited","937390","10/08/2020",30000847,44.92,0,"Licences","Construction Project Management Consultants","II","BACS","None",2020-06-30 00:00:00,"2020","05","31795","M5114","Repairs-Cyclical (BHS)","D8001","Licences"
"GUILDFORD BOROUGH COUNCIL","Responsive & Planned Maintenance","Pennington Choices Limited","937390","10/08/2020",30000847,44.92,0,"Licences","Construction Project Management Consultants","II","BACS","None",2020-06-30 00:00:00,"2020","05","31795","M5114","Repairs-Cyclical (BHS)","D8001","Licences"
"GUILDFORD BOROUGH COUNCIL","Responsive & Planned Maintenance","Pennington Choices Limited","937390","10/08/2020",30000847,44.92,0,"Licences","Construction Project Management Consultants","II","BACS","None",2020-06-30 00:00:00,"2020","05","31795","M5114","Repairs-Cyclical (BHS)","D8001","Licences"
"GUILDFORD BOROUGH COUNCIL","Responsive & Planned Maintenance","Pennington Choices Limited","937390","10/08/2020",30000847,44.92,0,"Licences","Construction Project Management Consultants","II","BACS","None",2020-06-30 00:00:00,"2020","05","31795","M5114","Repairs-Cyclical (BHS)","D8001","Licences"
"GUILDFORD BOROUGH COUNCIL","Responsive & Planned Maintenance","Pennington Choices Limited","937390","10/08/2020",30000847,44.92,0,"Licences","Construction Project Management Consultants","II","BACS","None",2020-06-30 00:00:00,"2020","05","31795","M5114","Repairs-Cyclical (BHS)","D8001","Licences"
"GUILDFORD BOROUGH COUNCIL","Responsive & Planned Maintenance","Pennington Choices Limited","937390","10/08/2020",30000847,44.92,0,"Licences","Construction Project Management Consultants","II","BACS","None",2020-06-30 00:00:00,"2020","05","31795","M5114","Repairs-Cyclical (BHS)","D8001","Licences"
"GUILDFORD BOROUGH COUNCIL","Responsive & Planned Maintenance","Pennington Choices Limited","937390","10/08/2020",30000847,44.92,0,"Licences","Construction Project Management Consultants","II","BACS","None",2020-06-30 00:00:00,"2020","05","31795","M5114","Repairs-Cyclical (BHS)","D8001","Licences"
"GUILDFORD BOROUGH COUNCIL","Responsive & Planned Maintenance","Pennington Choices Limited","937390","10/08/2020",30000847,44.92,0,"Licences","Construction Project Management Consultants","II","BACS","None",2020-06-30 00:00:00,"2020","05","31795","M5114","Repairs-Cyclical (BHS)","D8001","Licences"
"GUILDFORD BOROUGH COUNCIL","Responsive & Planned Maintenance","Pennington Choices Limited","937390","10/08/2020",30000847,44.92,0,"Licences","Construction Project Management Consultants","II","BACS","None",2020-06-30 00:00:00,"2020","05","31795","M5114","Repairs-Cyclical (BHS)","D8001","Licences"
"GUILDFORD BOROUGH COUNCIL","Responsive & Planned Maintenance","Pennington Choices Limited","937390","10/08/2020",30000847,44.92,0,"Licences","Construction Project Management Consultants","II","BACS","None",2020-06-30 00:00:00,"2020","05","31795","M5114","Repairs-Cyclical (BHS)","D8001","Licences"
"GUILDFORD BOROUGH COUNCIL","Responsive & Planned Maintenance","Pennington Choices Limited","937390","10/08/2020",30000847,44.93,0,"Licences","Construction Project Management Consultants","II","BACS","None",2020-06-30 00:00:00,"2020","05","31795","M5114","Repairs-Cyclical (BHS)","D8001","Licences"
"GUILDFORD BOROUGH COUNCIL","Responsive & Planned Maintenance","Pennington Choices Limited","937390","10/08/2020",30000847,44.93,0,"Licences","Construction Project Management Consultants","II","BACS","None",2020-06-30 00:00:00,"2020","05","31795","M5114","Repairs-Cyclical (BHS)","D8001","Licences"
"GUILDFORD BOROUGH COUNCIL","Responsive & Planned Maintenance","Pennington Choices Limited","937390","10/08/2020",30000847,44.93,0,"Licences","Construction Project Management Consultants","II","BACS","None",2020-06-30 00:00:00,"2020","05","31795","M5114","Repairs-Cyclical (BHS)","D8001","Licences"
"GUILDFORD BOROUGH COUNCIL","River Control","JC Electrics (Guildford) Ltd","748360","10/08/2020",30000848,322,0,"Asset Maintenance","Electrical Wiring And Parts Suppliers","II","BACS","None",2020-06-30 00:00:00,"2020","05","T0071","B8111","River Control","B1001","Asset Maintenance"
"GUILDFORD BOROUGH COUNCIL","Other Property","JC Electrics (Guildford) Ltd","748360","10/08/2020",30000849,61,0,"Asset Maintenance","Electrical Wiring And Parts Suppliers","II","BACS","None",2020-06-30 00:00:00,"2020","05","T0072","G7515","Old Millmead House","B1001","Asset Maintenance"
"GUILDFORD BOROUGH COUNCIL","Responsive & Planned Maintenance","Thorley Smith Ltd","169400","10/08/2020",30000850,80,0,"Cleaning Contractors","Other Retailers","II","BACS","None",2020-07-10 00:00:00,"2020","05","14466","M5113","Repairs-Responsive (BHS)","D6006","Cleaning Contractors"
"GUILDFORD BOROUGH COUNCIL","Flats Communal Services","Pirbright Electrical Contractors Ltd","151880","10/08/2020",30000851,54,0,"Asset Maintenance","Electricians","II","BACS","None",2020-06-30 00:00:00,"2020","05","43784","M2841","Parsons Green 1-24 (24)","B1001","Asset Maintenance"
"GUILDFORD BOROUGH COUNCIL","Flats Communal Services","Pirbright Electrical Contractors Ltd","151880","10/08/2020",30000852,183,0,"Asset Maintenance","Electricians","II","BACS","None",2020-06-30 00:00:00,"2020","05","43785","M2657","Cabell Rd 237-251 Odd (8)","B1001","Asset Maintenance"
"GUILDFORD BOROUGH COUNCIL","Responsive & Planned Maintenance","Pirbright Electrical Contractors Ltd","151880","10/08/2020",30000853,54,0,"Asset Maintenance","Electricians","II","BACS","None",2020-06-30 00:00:00,"2020","05","43786","M5113","Repairs-Responsive (BHS)","B1001","Asset Maintenance"
"GUILDFORD BOROUGH COUNCIL","Flats Communal Services","Pirbright Electrical Contractors Ltd","151880","10/08/2020",30000854,136,0,"Asset Maintenance","Electricians","II","BACS","None",2020-06-30 00:00:00,"2020","05","43787","M2636","Bedford House (67)","B1001","Asset Maintenance"
"GUILDFORD BOROUGH COUNCIL","Flats Communal Services","Pirbright Electrical Contractors Ltd","151880","10/08/2020",30000855,90,0,"Asset Maintenance","Electricians","II","BACS","None",2020-06-30 00:00:00,"2020","05","43788","M3511","Walnut Tree Close Eq. Share","B1001","Asset Maintenance"
"GUILDFORD BOROUGH COUNCIL","Responsive & Planned Maintenance","Pirbright Electrical Contractors Ltd","151880","10/08/2020",30000856,78,0,"Asset Maintenance","Electricians","II","BACS","None",2020-06-30 00:00:00,"2020","05","43795","M5113","Repairs-Responsive (BHS)","B1001","Asset Maintenance"
"GUILDFORD BOROUGH COUNCIL","Flats Communal Services","Pirbright Electrical Contractors Ltd","151880","10/08/2020",30000857,593,0,"Asset Maintenance","Electricians","II","BACS","None",2020-06-30 00:00:00,"2020","05","43796","M2636","Bedford House (67)","B1001","Asset Maintenance"
"GUILDFORD BOROUGH COUNCIL","Responsive & Planned Maintenance","Clearway Environmental Services (UK) Ltd","442770","10/08/2020",30000858,85,0,"Grounds Maintenance","Other Waste Disposal Suppliers","II","BACS","None",2020-06-30 00:00:00,"2020","05","456056","M5115","Repairs-Other Reponsive (BHS)","B6001","Grounds Maintenance"
"GUILDFORD BOROUGH COUNCIL","Responsive & Planned Maintenance","Clearway Environmental Services (UK) Ltd","442770","10/08/2020",30000859,140,0,"Grounds Maintenance","Other Waste Disposal Suppliers","II","BACS","None",2020-06-30 00:00:00,"2020","05","456271","M5115","Repairs-Other Reponsive (BHS)","B6001","Grounds Maintenance"
"GUILDFORD BOROUGH COUNCIL","Modern Homes","T Gilmartin Limited","949710","10/08/2020",30000860,21444.77,0,"Contractor Payments","Asbestos Removal Service Providers","II","BACS","None",2020-07-14 00:00:00,"2020","05","154797","N48056","Structural works 2020-21","1233","Contractor Payments"
"GUILDFORD BOROUGH COUNCIL","Responsive & Planned Maintenance","T J Plant Ltd","788900","10/08/2020",30000861,46,0,"Asset Maintenance","Plant And Construction Equipment Suppliers","II","BACS","None",2020-07-06 00:00:00,"2020","05","13627","M5113","Repairs-Responsive (BHS)","B1001","Asset Maintenance"
"GUILDFORD BOROUGH COUNCIL","Responsive & Planned Maintenance","T J Plant Ltd","788900","10/08/2020",30000861,75,0,"Asset Maintenance","Plant And Construction Equipment Suppliers","II","BACS","None",2020-07-06 00:00:00,"2020","05","13627","M5113","Repairs-Responsive (BHS)","B1001","Asset Maintenance"
"GUILDFORD BOROUGH COUNCIL","Responsive & Planned Maintenance","J T S Civil Engineers Ltd","648550","10/08/2020",30000862,100,0,"Asset Maintenance","Sewerage And Drainage Service Providers","II","BACS","None",2020-07-18 00:00:00,"2020","05","155272","M5113","Repairs-Responsive (BHS)","B1001","Asset Maintenance"
"GUILDFORD BOROUGH COUNCIL","Responsive & Planned Maintenance","J T S Civil Engineers Ltd","648550","10/08/2020",30000862,1150,0,"Asset Maintenance","Sewerage And Drainage Service Providers","II","BACS","None",2020-07-18 00:00:00,"2020","05","155272","M5113","Repairs-Responsive (BHS)","B1001","Asset Maintenance"
"GUILDFORD BOROUGH COUNCIL","Responsive & Planned Maintenance","White Barnes & Co Ltd","861100","10/08/2020",30000863,780,0,"Asset Maintenance","Floor Covering Suppliers","II","BACS","None",2020-06-23 00:00:00,"2020","05","14922","M5113","Repairs-Responsive (BHS)","B1001","Asset Maintenance"
"GUILDFORD BOROUGH COUNCIL","Responsive & Planned Maintenance","Concrete Repairs Ltd","722880","10/08/2020",30000864,110.47,0,"Building Expenses","Concrete Cutting, Drilling And Maintenance Contractors","II","BACS","None",2020-06-30 00:00:00,"2020","05","INV/016374","M5113","Repairs-Responsive (BHS)","B1002","Building Expenses"
"GUILDFORD BOROUGH COUNCIL","Responsive & Planned Maintenance","Concrete Repairs Ltd","722880","10/08/2020",30000864,142.03,0,"Building Expenses","Concrete Cutting, Drilling And Maintenance Contractors","II","BACS","None",2020-06-30 00:00:00,"2020","05","INV/016374","M5113","Repairs-Responsive (BHS)","B1002","Building Expenses"
"GUILDFORD BOROUGH COUNCIL","Day Services","Concrete Repairs Ltd","722880","10/08/2020",30000864,142.03,0,"Building Expenses","Concrete Cutting, Drilling And Maintenance Contractors","II","BACS","None",2020-06-30 00:00:00,"2020","05","INV/016374","C8100","Community Hubs","B1002","Building Expenses"
"GUILDFORD BOROUGH COUNCIL","Leisure and Community","Concrete Repairs Ltd","722880","10/08/2020",30000864,47.34,0,"Asset Maintenance","Concrete Cutting, Drilling And Maintenance Contractors","II","BACS","None",2020-06-30 00:00:00,"2020","05","INV/016374","A8121","Bellfields Youth and Community Centre","B1001","Asset Maintenance"
"GUILDFORD BOROUGH COUNCIL","Guildford Museum","Concrete Repairs Ltd","722880","10/08/2020",30000864,264.67,0,"Asset Maintenance","Concrete Cutting, Drilling And Maintenance Contractors","II","BACS","None",2020-06-30 00:00:00,"2020","05","INV/016374","A5511","Museum","B1001","Asset Maintenance"
"GUILDFORD BOROUGH COUNCIL","Woking Road Depot","Concrete Repairs Ltd","722880","10/08/2020",30000864,186.21,0,"Asset Maintenance","Concrete Cutting, Drilling And Maintenance Contractors","II","BACS","None",2020-06-30 00:00:00,"2020","05","INV/016374","B4452","Woking Road Depot","B1001","Asset Maintenance"
"GUILDFORD BOROUGH COUNCIL","Countryside and Parks Services","Concrete Repairs Ltd","722880","10/08/2020",30000864,47.34,0,"Asset Maintenance","Concrete Cutting, Drilling And Maintenance Contractors","II","BACS","None",2020-06-30 00:00:00,"2020","05","INV/016374","A1230","Sutherland Memorial Park  Pavilion","B1001","Asset Maintenance"
"GUILDFORD BOROUGH COUNCIL","Responsive & Planned Maintenance","Concrete Repairs Ltd","722880","10/08/2020",30000864,142.03,0,"Building Expenses","Concrete Cutting, Drilling And Maintenance Contractors","II","BACS","None",2020-06-30 00:00:00,"2020","05","INV/016374","M5106","Repairs-Shelt-Responsive (BHS)","B1002","Building Expenses"
"GUILDFORD BOROUGH COUNCIL","Responsive & Planned Maintenance","Concrete Repairs Ltd","722880","10/08/2020",30000864,142.03,0,"Building Expenses","Concrete Cutting, Drilling And Maintenance Contractors","II","BACS","None",2020-06-30 00:00:00,"2020","05","INV/016374","M5106","Repairs-Shelt-Responsive (BHS)","B1002","Building Expenses"
"GUILDFORD BOROUGH COUNCIL","Responsive & Planned Maintenance","Concrete Repairs Ltd","722880","10/08/2020",30000864,142.03,0,"Building Expenses","Concrete Cutting, Drilling And Maintenance Contractors","II","BACS","None",2020-06-30 00:00:00,"2020","05","INV/016374","M5106","Repairs-Shelt-Responsive (BHS)","B1002","Building Expenses"
"GUILDFORD BOROUGH COUNCIL","Responsive & Planned Maintenance","Concrete Repairs Ltd","722880","10/08/2020",30000864,56.82,0,"Building Expenses","Concrete Cutting, Drilling And Maintenance Contractors","II","BACS","None",2020-06-30 00:00:00,"2020","05","INV/016374","M5106","Repairs-Shelt-Responsive (BHS)","B1002","Building Expenses"
"GUILDFORD BOROUGH COUNCIL","Responsive & Planned Maintenance","Concrete Repairs Ltd","722880","10/08/2020",30000864,110.47,0,"Building Expenses","Concrete Cutting, Drilling And Maintenance Contractors","II","BACS","None",2020-06-30 00:00:00,"2020","05","INV/016374","M5106","Repairs-Shelt-Responsive (BHS)","B1002","Building Expenses"
"GUILDFORD BOROUGH COUNCIL","Responsive & Planned Maintenance","Concrete Repairs Ltd","722880","10/08/2020",30000864,656,0,"Building Expenses","Concrete Cutting, Drilling And Maintenance Contractors","II","BACS","None",2020-06-30 00:00:00,"2020","05","INV/016374","M5106","Repairs-Shelt-Responsive (BHS)","B1002","Building Expenses"
"GUILDFORD BOROUGH COUNCIL","Renovations","Steadfast Automation Ltd (CIS)","780620","10/08/2020",30000865,438.74,0,"Contractor Payments","Alarm And Access Control System Suppliers","II","BACS","None",2020-07-13 00:00:00,"2020","05","500263","N40282","Disabled adaptations 2020-21","1233","Contractor Payments"
"GUILDFORD BOROUGH COUNCIL","Flats Communal Services","SDK Environmental Ltd","800110","10/08/2020",30000866,80,0,"Asset Maintenance","Pest And Vermin Control Service Providers","II","BACS","None",2020-06-30 00:00:00,"2020","05","45189","M2646","Bishops Court 1-40 (40)","B1001","Asset Maintenance"
"GUILDFORD BOROUGH COUNCIL","Other Property","Integrated Water Services Ltd","875170","10/08/2020",30000867,1177.91,0,"Asset Maintenance","Water Treatment Service Providers","II","BACS","None",2020-06-29 00:00:00,"2020","05","CD200182554","G7515","Old Millmead House","B1001","Asset Maintenance"
"GUILDFORD BOROUGH COUNCIL","Heating","BSW Building Services Ltd","900320","10/08/2020",30000868,9361.68,0,"Contractor Payments","Plumbing, Heating And Ac (Hvac) Contractors","II","BACS","None",2020-06-30 00:00:00,"2020","05","75797","N44070","Electric Heating -Ashp 2019-20","1233","Contractor Payments"
"GUILDFORD BOROUGH COUNCIL","Responsive & Planned Maintenance","K&T Heating Services Ltd (CIS)","930000","10/08/2020",30000869,9653.97,0,"Asset Maintenance","Plumbing, Heating And Ac (Hvac) Contractors","II","BACS","None",2020-06-30 00:00:00,"2020","05","SI36197","M5114","Repairs-Cyclical (BHS)","B1001","Asset Maintenance"
"GUILDFORD BOROUGH COUNCIL","Responsive & Planned Maintenance","K&T Heating Services Ltd (CIS)","930000","10/08/2020",30000870,55.22,0,"Asset Maintenance","Plumbing, Heating And Ac (Hvac) Contractors","II","BACS","None",2020-06-30 00:00:00,"2020","05","SI36267","M5113","Repairs-Responsive (BHS)","B1001","Asset Maintenance"
"GUILDFORD BOROUGH COUNCIL","Responsive & Planned Maintenance","K&T Heating Services Ltd (CIS)","930000","10/08/2020",30000870,55.22,0,"Asset Maintenance","Plumbing, Heating And Ac (Hvac) Contractors","II","BACS","None",2020-06-30 00:00:00,"2020","05","SI36267","M5113","Repairs-Responsive (BHS)","B1001","Asset Maintenance"
"GUILDFORD BOROUGH COUNCIL","Responsive & Planned Maintenance","K&T Heating Services Ltd (CIS)","930000","10/08/2020",30000870,55.22,0,"Asset Maintenance","Plumbing, Heating And Ac (Hvac) Contractors","II","BACS","None",2020-06-30 00:00:00,"2020","05","SI36267","M5113","Repairs-Responsive (BHS)","B1001","Asset Maintenance"
"GUILDFORD BOROUGH COUNCIL","Responsive & Planned Maintenance","K&T Heating Services Ltd (CIS)","930000","10/08/2020",30000870,70.56,0,"Asset Maintenance","Plumbing, Heating And Ac (Hvac) Contractors","II","BACS","None",2020-06-30 00:00:00,"2020","05","SI36267","M5113","Repairs-Responsive (BHS)","B1001","Asset Maintenance"
"GUILDFORD BOROUGH COUNCIL","Responsive & Planned Maintenance","K&T Heating Services Ltd (CIS)","930000","10/08/2020",30000870,321.61,0,"Asset Maintenance","Plumbing, Heating And Ac (Hvac) Contractors","II","BACS","None",2020-06-30 00:00:00,"2020","05","SI36267","M5113","Repairs-Responsive (BHS)","B1001","Asset Maintenance"
"GUILDFORD BOROUGH COUNCIL","Responsive & Planned Maintenance","K&T Heating Services Ltd (CIS)","930000","10/08/2020",30000870,55.22,0,"Asset Maintenance","Plumbing, Heating And Ac (Hvac) Contractors","II","BACS","None",2020-06-30 00:00:00,"2020","05","SI36267","M5113","Repairs-Responsive (BHS)","B1001","Asset Maintenance"
"GUILDFORD BOROUGH COUNCIL","Heating","K&T Heating Services Ltd (CIS)","930000","10/08/2020",30000870,37.01,0,"Contractor Payments","Plumbing, Heating And Ac (Hvac) Contractors","II","BACS","None",2020-06-30 00:00:00,"2020","05","SI36267","N44072","Boiler Upgrades 2020-21","1233","Contractor Payments"
"GUILDFORD BOROUGH COUNCIL","Heating","K&T Heating Services Ltd (CIS)","930000","10/08/2020",30000870,37.01,0,"Contractor Payments","Plumbing, Heating And Ac (Hvac) Contractors","II","BACS","None",2020-06-30 00:00:00,"2020","05","SI36267","N44072","Boiler Upgrades 2020-21","1233","Contractor Payments"
"GUILDFORD BOROUGH COUNCIL","Responsive & Planned Maintenance","K&T Heating Services Ltd (CIS)","930000","10/08/2020",30000870,743.15,0,"Asset Maintenance","Plumbing, Heating And Ac (Hvac) Contractors","II","BACS","None",2020-06-30 00:00:00,"2020","05","SI36267","M5114","Repairs-Cyclical (BHS)","B1001","Asset Maintenance"
"GUILDFORD BOROUGH COUNCIL","Heating","K&T Heating Services Ltd (CIS)","930000","10/08/2020",30000871,1682.93,0,"Contractor Payments","Plumbing, Heating And Ac (Hvac) Contractors","II","BACS","None",2020-06-30 00:00:00,"2020","05","SI36268","N44072","Boiler Upgrades 2020-21","1233","Contractor Payments"
"GUILDFORD BOROUGH COUNCIL","Responsive & Planned Maintenance","K&T Heating Services Ltd (CIS)","930000","10/08/2020",30000872,228,0,"Asset Maintenance","Plumbing, Heating And Ac (Hvac) Contractors","II","BACS","None",2020-07-02 00:00:00,"2020","05","SI36369","M5113","Repairs-Responsive (BHS)","B1001","Asset Maintenance"
"GUILDFORD BOROUGH COUNCIL","Modern Homes","Perega Limited","144020","13/08/2020",30000873,183.75,0,"Contractor Payments","Other Construction Consultants","II","BACS","None",2020-07-20 00:00:00,"2020","05","10738a","N48056","Structural works 2020-21","1233","Contractor Payments"
"GUILDFORD BOROUGH COUNCIL","Responsive & Planned Maintenance","European Asbestos Services Limited","919910","10/08/2020",30000874,90,0,"Asset Maintenance","Asbestos Removal Service Providers","II","BACS","None",2020-06-29 00:00:00,"2020","05","IA25335","M5113","Repairs-Responsive (BHS)","B1001","Asset Maintenance"
"GUILDFORD BOROUGH COUNCIL","Heating","European Asbestos Services Limited","919910","10/08/2020",30000875,85,0,"Contractor Payments","Asbestos Removal Service Providers","II","BACS","None",2020-06-30 00:00:00,"2020","05","IA25391","N44072","Boiler Upgrades 2020-21","1233","Contractor Payments"
"GUILDFORD BOROUGH COUNCIL","Responsive & Planned Maintenance","Drain & Sewer Services","108390","10/08/2020",30000878,125,0,"Asset Maintenance","Sewerage And Drainage Service Providers","II","BACS","None",2020-07-06 00:00:00,"2020","05","88006","M5105","Repairs-Garages (BHS)","B1001","Asset Maintenance"
"GUILDFORD BOROUGH COUNCIL","Off Street Parking","Kone Plc","904300","10/08/2020",30000879,342,0,"Asset Maintenance","Lift Contractors","II","BACS","None",2019-08-02 00:00:00,"2020","05","7678054","B2216","General Upkeep- Urban Car Pks","B1001","Asset Maintenance"
"GUILDFORD BOROUGH COUNCIL","Responsive & Planned Maintenance","Kone Plc","904300","10/08/2020",30000880,1012.2,0,"Asset Maintenance","Lift Contractors","II","BACS","None",2020-07-09 00:00:00,"2020","05","7707000","M5106","Repairs-Shelt-Responsive (BHS)","B1001","Asset Maintenance"
"GUILDFORD BOROUGH COUNCIL","Responsive & Planned Maintenance","Kone Plc","904300","10/08/2020",30000881,2491.8,0,"Asset Maintenance","Lift Contractors","II","BACS","None",2020-07-10 00:00:00,"2020","05","7707066","M5106","Repairs-Shelt-Responsive (BHS)","B1001","Asset Maintenance"
"GUILDFORD BOROUGH COUNCIL","Other Property","Kone Plc","904300","10/08/2020",30000882,2962.5,0,"Asset Maintenance","Lift Contractors","II","BACS","None",2020-03-16 00:00:00,"2020","05","29610260","B6100","Other Property Admin","B1001","Asset Maintenance"
"GUILDFORD BOROUGH COUNCIL","Off Street Parking","Kone Plc","904300","10/08/2020",30000883,1146.42,0,"Asset Maintenance","Lift Contractors","II","BACS","None",2020-06-26 00:00:00,"2020","05","77060701Q","B2277","Castle Mscp","B1001","Asset Maintenance"
"GUILDFORD BOROUGH COUNCIL","Responsive & Planned Maintenance","Stannah Limited (CIS)","913700","10/08/2020",30000884,5713,0,"Asset Maintenance","Stairlift Suppliers","II","BACS","None",2020-06-30 00:00:00,"2020","05","1085203405","M5113","Repairs-Responsive (BHS)","B1001","Asset Maintenance"
"GUILDFORD BOROUGH COUNCIL","Modern Homes","A P Benson Roofing & Building Limited","713700","10/08/2020",30000885,1198,0,"Contractor Payments","Roofers","II","BACS","None",2020-02-05 00:00:00,"2020","05","4411","N47031","Roof Renewal 2019-20","1233","Contractor Payments"
"GUILDFORD BOROUGH COUNCIL","Modern Homes","A P Benson Roofing & Building Limited","713700","10/08/2020",30000886,3898,0,"Contractor Payments","Roofers","II","BACS","None",2020-02-19 00:00:00,"2020","05","4422","N47031","Roof Renewal 2019-20","1233","Contractor Payments"
"GUILDFORD BOROUGH COUNCIL","Responsive & Planned Maintenance","A P Benson Roofing & Building Limited","713700","10/08/2020",30000887,2450,0,"Asset Maintenance","Roofers","II","BACS","None",2020-06-03 00:00:00,"2020","05","4472","M5113","Repairs-Responsive (BHS)","B1001","Asset Maintenance"
"GUILDFORD BOROUGH COUNCIL","Flats Communal Services","A P Benson Roofing & Building Limited","713700","10/08/2020",30000888,1780,0,"Asset Maintenance","Roofers","II","BACS","None",2020-06-03 00:00:00,"2020","05","4473","M2878","Roundhill Way 57-63 (4)","B1001","Asset Maintenance"
"GUILDFORD BOROUGH COUNCIL","Responsive & Planned Maintenance","A P Benson Roofing & Building Limited","713700","10/08/2020",30000889,2300,0,"Asset Maintenance","Roofers","II","BACS","None",2020-06-29 00:00:00,"2020","05","4497","M5113","Repairs-Responsive (BHS)","B1001","Asset Maintenance"
"GUILDFORD BOROUGH COUNCIL","Responsive & Planned Maintenance","Tunstall Healthcare (UK) Ltd","100310","10/08/2020",30000890,93.4,0,"Building Expenses","Community Alarm Suppliers","II","BACS","None",2020-07-09 00:00:00,"2020","05","INV/50353624","M5106","Repairs-Shelt-Responsive (BHS)","B1002","Building Expenses"
"GUILDFORD BOROUGH COUNCIL","Strategic Support","S J Phelps T/A Ladymead Carpets And Flooring","753330","20/08/2020",30000891,122,0,"Asset Maintenance","Floor Covering Suppliers","II","BACS","None",2020-07-21 00:00:00,"2020","05","30814","M6666","King Edward Ct 120 Walnut Tree","B1001","Asset Maintenance"
"GUILDFORD BOROUGH COUNCIL","Responsive & Planned Maintenance","Guildford Lock And Safe Limited","229400","10/08/2020",30000892,166,0,"Asset Maintenance","Keys And Locksmiths","II","BACS","None",2020-07-02 00:00:00,"2020","05","27061","M5106","Repairs-Shelt-Responsive (BHS)","B1001","Asset Maintenance"
"GUILDFORD BOROUGH COUNCIL","Responsive & Planned Maintenance","Paul Phelan","261400","10/08/2020",30000893,100,0,"Asset Maintenance","Sewerage And Drainage Service Providers","II","BACS","None",2020-06-26 00:00:00,"2020","05","81986","M5113","Repairs-Responsive (BHS)","B1001","Asset Maintenance"
"GUILDFORD BOROUGH COUNCIL","Responsive & Planned Maintenance","Paul Phelan","261400","10/08/2020",30000894,59.5,0,"Asset Maintenance","Sewerage And Drainage Service Providers","II","BACS","None",2020-06-29 00:00:00,"2020","05","81989","M5113","Repairs-Responsive (BHS)","B1001","Asset Maintenance"
"GUILDFORD BOROUGH COUNCIL","Responsive & Planned Maintenance","Paul Phelan","261400","10/08/2020",30000895,76,0,"Asset Maintenance","Sewerage And Drainage Service Providers","II","BACS","None",2020-06-29 00:00:00,"2020","05","81996","M5113","Repairs-Responsive (BHS)","B1001","Asset Maintenance"
"GUILDFORD BOROUGH COUNCIL","Responsive & Planned Maintenance","Paul Phelan","261400","10/08/2020",30000896,59.5,0,"Asset Maintenance","Sewerage And Drainage Service Providers","II","BACS","None",2020-06-30 00:00:00,"2020","05","82004","M5113","Repairs-Responsive (BHS)","B1001","Asset Maintenance"
"GUILDFORD BOROUGH COUNCIL","Responsive & Planned Maintenance","Paul Phelan","261400","10/08/2020",30000897,59.5,0,"Asset Maintenance","Sewerage And Drainage Service Providers","II","BACS","None",2020-06-30 00:00:00,"2020","05","82005","M5113","Repairs-Responsive (BHS)","B1001","Asset Maintenance"
"GUILDFORD BOROUGH COUNCIL","Responsive & Planned Maintenance","Paul Phelan","261400","10/08/2020",30000898,76,0,"Asset Maintenance","Sewerage And Drainage Service Providers","II","BACS","None",2020-06-30 00:00:00,"2020","05","82006","M5113","Repairs-Responsive (BHS)","B1001","Asset Maintenance"
"GUILDFORD BOROUGH COUNCIL","Responsive & Planned Maintenance","Paul Phelan","261400","10/08/2020",30000899,230,0,"Asset Maintenance","Sewerage And Drainage Service Providers","II","BACS","None",2020-06-30 00:00:00,"2020","05","82007","M5113","Repairs-Responsive (BHS)","B1001","Asset Maintenance"
"GUILDFORD BOROUGH COUNCIL","Responsive & Planned Maintenance","Paul Phelan","261400","10/08/2020",30000900,59.5,0,"Asset Maintenance","Sewerage And Drainage Service Providers","II","BACS","None",2020-06-30 00:00:00,"2020","05","82008","M5106","Repairs-Shelt-Responsive (BHS)","B1001","Asset Maintenance"
"GUILDFORD BOROUGH COUNCIL","Responsive & Planned Maintenance","R A Robertson & Sons","679700","10/08/2020",30000901,202.59,0,"Equipment","White Goods Suppliers","II","BACS","None",2020-07-08 00:00:00,"2020","05","29170","M5106","Repairs-Shelt-Responsive (BHS)","D2001","Equipment"
"GUILDFORD BOROUGH COUNCIL","HRA Income","Rent Refunds","9999997","10/08/2020",30000902,488.74,0,"Rent","","II","BACS","None",2020-08-05 00:00:00,"2020","05","100384700003","M9111","General Income","K5001","Rent"
"GUILDFORD BOROUGH COUNCIL","HRA Income","Rent Refunds","9999997","10/08/2020",30000903,16.18,0,"Rent","","II","BACS","None",2020-08-05 00:00:00,"2020","05","10045227","M9111","General Income","K5001","Rent"
"GUILDFORD BOROUGH COUNCIL","HRA Income","Rent Refunds","9999997","10/08/2020",30000904,291.56,0,"Rent","","II","BACS","None",2020-08-05 00:00:00,"2020","05","10043107","M9111","General Income","K5001","Rent"
"GUILDFORD BOROUGH COUNCIL","Off Street Parking","JC Electrics (Guildford) Ltd","748360","10/08/2020",30000905,176.4,0,"Asset Maintenance","Electrical Wiring And Parts Suppliers","II","BACS","None",2020-02-04 00:00:00,"2020","05","S990","B2219","Bedford Road Mscp","B1001","Asset Maintenance"
"GUILDFORD BOROUGH COUNCIL","Off Street Parking","JC Electrics (Guildford) Ltd","748360","10/08/2020",30000906,61,0,"Asset Maintenance","Electrical Wiring And Parts Suppliers","II","BACS","None",2020-02-04 00:00:00,"2020","05","S991","B2216","General Upkeep- Urban Car Pks","B1001","Asset Maintenance"
"GUILDFORD BOROUGH COUNCIL","Off Street Parking","JC Electrics (Guildford) Ltd","748360","10/08/2020",30000907,817.2,0,"Asset Maintenance","Electrical Wiring And Parts Suppliers","II","BACS","None",2020-02-04 00:00:00,"2020","05","S992","B2219","Bedford Road Mscp","B1001","Asset Maintenance"
"GUILDFORD BOROUGH COUNCIL","Modern Homes","Breyer Group Plc","129090","10/08/2020",30000908,4137.56,0,"Contractor Payments","General Builders","II","BACS","None",2020-06-18 00:00:00,"2020","05","49846","N42065","Void Refururbisments 2019-20","1233","Contractor Payments"
"GUILDFORD BOROUGH COUNCIL","Modern Homes","Breyer Group Plc","129090","10/08/2020",30000908,8765.89,0,"Contractor Payments","General Builders","II","BACS","None",2020-06-18 00:00:00,"2020","05","49846","N42064","Kitchens & Bathrooms 2019-20","1233","Contractor Payments"
"GUILDFORD BOROUGH COUNCIL","Modern Homes","Breyer Group Plc","129090","10/08/2020",30000909,8793.11,0,"Contractor Payments","General Builders","II","BACS","None",2020-06-25 00:00:00,"2020","05","49868","N42066","Kitchen & Bathroom refurb 2020-21","1233","Contractor Payments"
"GUILDFORD BOROUGH COUNCIL","Modern Homes","Breyer Group Plc","129090","10/08/2020",30000909,9663.17,0,"Contractor Payments","General Builders","II","BACS","None",2020-06-25 00:00:00,"2020","05","49868","N42067","Void properties 2020-21","1233","Contractor Payments"
"GUILDFORD BOROUGH COUNCIL","Tenant Services","Clearway Environmental Services (UK) Ltd","442770","10/08/2020",30000910,485,0,"Cleaning Contractors","Other Waste Disposal Suppliers","II","BACS","None",2020-06-26 00:00:00,"2020","05","455662","M1151","Tenants Services (BHS)","D6006","Cleaning Contractors"
"GUILDFORD BOROUGH COUNCIL","Responsive & Planned Maintenance","Bolton Gate Services Ltd","495400","10/08/2020",30000911,306,0,"Asset Maintenance","Security Shutter, Door And Gate Contractors","II","BACS","None",2020-06-23 00:00:00,"2020","05","SI0030918","M5106","Repairs-Shelt-Responsive (BHS)","B1001","Asset Maintenance"
"GUILDFORD BOROUGH COUNCIL","Modern Homes","T Gilmartin Limited","949710","10/08/2020",30000912,17057.4,0,"Contractor Payments","Asbestos Removal Service Providers","II","BACS","None",2020-06-30 00:00:00,"2020","05","154228a","N48056","Structural works 2020-21","1233","Contractor Payments"
"GUILDFORD BOROUGH COUNCIL","Inventories","T Gilmartin Limited","949710","10/08/2020",30000913,11649.73,0,"Work Carried Out - Current Yr","Asbestos Removal Service Providers","II","BACS","None",2020-06-30 00:00:00,"2020","05","154234","H01001","Rechargeable Works","2996","Work Carried Out - Current Yr"
"GUILDFORD BOROUGH COUNCIL","Woking Road Depot","Chubb Fire & Security Ltd","186020","10/08/2020",30000914,192.25,0,"Asset Maintenance","Fire Fighting And Rescue Equipment Suppliers","II","BACS","None",2020-06-23 00:00:00,"2020","05","8241702","B4452","Woking Road Depot","B1001","Asset Maintenance"
"GUILDFORD BOROUGH COUNCIL","Responsive & Planned Maintenance","Cranleigh Aerials Limited","698990","10/08/2020",30000915,50,0,"Building Expenses","Audio And Visual Equipment Suppliers","II","BACS","None",2020-06-18 00:00:00,"2020","05","705044","M5113","Repairs-Responsive (BHS)","B1002","Building Expenses"
"GUILDFORD BOROUGH COUNCIL","Responsive & Planned Maintenance","Cranleigh Aerials Limited","698990","10/08/2020",30000916,62.5,0,"Building Expenses","Audio And Visual Equipment Suppliers","II","BACS","None",2020-06-18 00:00:00,"2020","05","705045","M5113","Repairs-Responsive (BHS)","B1002","Building Expenses"
"GUILDFORD BOROUGH COUNCIL","Responsive & Planned Maintenance","Cranleigh Aerials Limited","698990","10/08/2020",30000916,125,0,"Building Expenses","Audio And Visual Equipment Suppliers","II","BACS","None",2020-06-18 00:00:00,"2020","05","705045","M5113","Repairs-Responsive (BHS)","B1002","Building Expenses"
"GUILDFORD BOROUGH COUNCIL","Flats Communal Services","Cranleigh Aerials Limited","698990","10/08/2020",30000917,75,0,"Asset Maintenance","Audio And Visual Equipment Suppliers","II","BACS","None",2020-06-23 00:00:00,"2020","05","705047","M2811","Mount Court 1 - 40 (40)","B1001","Asset Maintenance"
"GUILDFORD BOROUGH COUNCIL","Responsive & Planned Maintenance","Cranleigh Aerials Limited","698990","10/08/2020",30000918,75,0,"Building Expenses","Audio And Visual Equipment Suppliers","II","BACS","None",2020-06-23 00:00:00,"2020","05","705048","M5113","Repairs-Responsive (BHS)","B1002","Building Expenses"
"GUILDFORD BOROUGH COUNCIL","Responsive & Planned Maintenance","Cranleigh Aerials Limited","698990","10/08/2020",30000919,75,0,"Building Expenses","Audio And Visual Equipment Suppliers","II","BACS","None",2020-06-23 00:00:00,"2020","05","705049","M5113","Repairs-Responsive (BHS)","B1002","Building Expenses"
"GUILDFORD BOROUGH COUNCIL","Responsive & Planned Maintenance","Paul Phelan","261400","10/08/2020",30000920,76,0,"Asset Maintenance","Sewerage And Drainage Service Providers","II","BACS","None",2020-06-22 00:00:00,"2020","05","81966","M5113","Repairs-Responsive (BHS)","B1001","Asset Maintenance"
"GUILDFORD BOROUGH COUNCIL","Responsive & Planned Maintenance","Paul Phelan","261400","10/08/2020",30000921,59.5,0,"Asset Maintenance","Sewerage And Drainage Service Providers","II","BACS","None",2020-06-22 00:00:00,"2020","05","81967","M5113","Repairs-Responsive (BHS)","B1001","Asset Maintenance"
"GUILDFORD BOROUGH COUNCIL","Responsive & Planned Maintenance","Paul Phelan","261400","10/08/2020",30000922,59.5,0,"Asset Maintenance","Sewerage And Drainage Service Providers","II","BACS","None",2020-06-23 00:00:00,"2020","05","81970","M5113","Repairs-Responsive (BHS)","B1001","Asset Maintenance"
"GUILDFORD BOROUGH COUNCIL","Responsive & Planned Maintenance","Paul Phelan","261400","10/08/2020",30000923,59.5,0,"Asset Maintenance","Sewerage And Drainage Service Providers","II","BACS","None",2020-06-23 00:00:00,"2020","05","81971","M5113","Repairs-Responsive (BHS)","B1001","Asset Maintenance"
"GUILDFORD BOROUGH COUNCIL","Responsive & Planned Maintenance","Paul Phelan","261400","10/08/2020",30000924,59.5,0,"Asset Maintenance","Sewerage And Drainage Service Providers","II","BACS","None",2020-06-23 00:00:00,"2020","05","81972","M5113","Repairs-Responsive (BHS)","B1001","Asset Maintenance"
"GUILDFORD BOROUGH COUNCIL","Responsive & Planned Maintenance","Paul Phelan","261400","10/08/2020",30000925,59.5,0,"Asset Maintenance","Sewerage And Drainage Service Providers","II","BACS","None",2020-06-24 00:00:00,"2020","05","81977","M5113","Repairs-Responsive (BHS)","B1001","Asset Maintenance"
"GUILDFORD BOROUGH COUNCIL","Responsive & Planned Maintenance","Paul Phelan","261400","10/08/2020",30000926,59.5,0,"Asset Maintenance","Sewerage And Drainage Service Providers","II","BACS","None",2020-06-24 00:00:00,"2020","05","81978","M5113","Repairs-Responsive (BHS)","B1001","Asset Maintenance"
"GUILDFORD BOROUGH COUNCIL","Responsive & Planned Maintenance","Paul Phelan","261400","10/08/2020",30000927,63.5,0,"Asset Maintenance","Sewerage And Drainage Service Providers","II","BACS","None",2020-06-24 00:00:00,"2020","05","81979","M5113","Repairs-Responsive (BHS)","B1001","Asset Maintenance"
"GUILDFORD BOROUGH COUNCIL","HRA Income","Rent Refunds","9999997","10/08/2020",30000928,110.95,0,"Rent","","II","BACS","None",2020-08-05 00:00:00,"2020","05","10049684","M9111","General Income","K5001","Rent"
"GUILDFORD BOROUGH COUNCIL","Public Conveniences","JC Electrics (Guildford) Ltd","748360","13/08/2020",30000929,61,0,"Asset Maintenance","Electrical Wiring And Parts Suppliers","II","BACS","None",2020-08-04 00:00:00,"2020","05","S1006","K6500","Public Conveniences","B1001","Asset Maintenance"
"GUILDFORD BOROUGH COUNCIL","Other Property","JC Electrics (Guildford) Ltd","748360","10/08/2020",30000930,206,0,"Asset Maintenance","Electrical Wiring And Parts Suppliers","II","BACS","None",2020-04-27 00:00:00,"2020","05","S1014","G7515","Old Millmead House","B1001","Asset Maintenance"
"GUILDFORD BOROUGH COUNCIL","Countryside and Parks Services","JC Electrics (Guildford) Ltd","748360","10/08/2020",30000931,119,0,"Asset Maintenance","Electrical Wiring And Parts Suppliers","II","BACS","None",2020-04-27 00:00:00,"2020","05","S1015","A1130","Castle Grounds","B1001","Asset Maintenance"
"GUILDFORD BOROUGH COUNCIL","Countryside and Parks Services","JC Electrics (Guildford) Ltd","748360","10/08/2020",30000932,136,0,"Asset Maintenance","Electrical Wiring And Parts Suppliers","II","BACS","None",2020-05-05 00:00:00,"2020","05","T0007","A1232","Sutherland Memorial Park","B1001","Asset Maintenance"
"GUILDFORD BOROUGH COUNCIL","Guildford House","JC Electrics (Guildford) Ltd","748360","10/08/2020",30000933,264,0,"Asset Maintenance","Electrical Wiring And Parts Suppliers","II","BACS","None",2020-05-05 00:00:00,"2020","05","T0008","A4511","Guildford House Administration","B1001","Asset Maintenance"
"GUILDFORD BOROUGH COUNCIL","Guildhall","JC Electrics (Guildford) Ltd","748360","10/08/2020",30000934,432.9,0,"Asset Maintenance","Electrical Wiring And Parts Suppliers","II","BACS","None",2020-06-18 00:00:00,"2020","05","T0053","F3311","Guildhall","B1001","Asset Maintenance"
"GUILDFORD BOROUGH COUNCIL","Guildford House","JC Electrics (Guildford) Ltd","748360","10/08/2020",30000935,488.1,0,"Asset Maintenance","Electrical Wiring And Parts Suppliers","II","BACS","None",2020-06-18 00:00:00,"2020","05","T0054","A4511","Guildford House Administration","B1001","Asset Maintenance"
"GUILDFORD BOROUGH COUNCIL","Other Property","JC Electrics (Guildford) Ltd","748360","10/08/2020",30000936,133.1,0,"Asset Maintenance","Electrical Wiring And Parts Suppliers","II","BACS","None",2020-06-18 00:00:00,"2020","05","T0055","G7515","Old Millmead House","B1001","Asset Maintenance"
"GUILDFORD BOROUGH COUNCIL","Town Centre Management","JC Electrics (Guildford) Ltd","748360","10/08/2020",30000937,119,0,"Asset Maintenance","Electrical Wiring And Parts Suppliers","II","BACS","None",2020-06-18 00:00:00,"2020","05","T0056","B5711","Markets","B1001","Asset Maintenance"
"GUILDFORD BOROUGH COUNCIL","Off Street Parking","JC Electrics (Guildford) Ltd","748360","10/08/2020",30000938,61,0,"Asset Maintenance","Electrical Wiring And Parts Suppliers","II","BACS","None",2020-06-18 00:00:00,"2020","05","T0058","B2216","General Upkeep- Urban Car Pks","B1001","Asset Maintenance"
"GUILDFORD BOROUGH COUNCIL","Planning Policy","JC Electrics (Guildford) Ltd","748360","10/08/2020",30000939,61,0,"Asset Maintenance","Electrical Wiring And Parts Suppliers","II","BACS","None",2020-06-18 00:00:00,"2020","05","T0059","D5555","Design And Conservation","B1001","Asset Maintenance"
"GUILDFORD BOROUGH COUNCIL","Flats Communal Services","Pirbright Electrical Contractors Ltd","151880","10/08/2020",30000940,54,0,"Asset Maintenance","Electricians","II","BACS","None",2020-06-16 00:00:00,"2020","05","43757","M2897","Slyfield Court 21-28 (8)","B1001","Asset Maintenance"
"GUILDFORD BOROUGH COUNCIL","Responsive & Planned Maintenance","TSG Building Services Plc","692680","10/08/2020",30000941,8311.33,0,"Asset Maintenance","General Builders","II","BACS","None",2020-06-30 00:00:00,"2020","05","0321-0204","M5114","Repairs-Cyclical (BHS)","B1001","Asset Maintenance"
"GUILDFORD BOROUGH COUNCIL","Responsive & Planned Maintenance","TSG Building Services Plc","692680","10/08/2020",30000942,60,0,"Asset Maintenance","General Builders","II","BACS","None",2020-06-30 00:00:00,"2020","05","0321-0207","M5114","Repairs-Cyclical (BHS)","B1001","Asset Maintenance"
"GUILDFORD BOROUGH COUNCIL","Responsive & Planned Maintenance","TSG Building Services Plc","692680","10/08/2020",30000942,60,0,"Asset Maintenance","General Builders","II","BACS","None",2020-06-30 00:00:00,"2020","05","0321-0207","M5114","Repairs-Cyclical (BHS)","B1001","Asset Maintenance"
"GUILDFORD BOROUGH COUNCIL","Responsive & Planned Maintenance","TSG Building Services Plc","692680","10/08/2020",30000942,60,0,"Asset Maintenance","General Builders","II","BACS","None",2020-06-30 00:00:00,"2020","05","0321-0207","M5114","Repairs-Cyclical (BHS)","B1001","Asset Maintenance"
"GUILDFORD BOROUGH COUNCIL","Responsive & Planned Maintenance","TSG Building Services Plc","692680","10/08/2020",30000942,60,0,"Asset Maintenance","General Builders","II","BACS","None",2020-06-30 00:00:00,"2020","05","0321-0207","M5114","Repairs-Cyclical (BHS)","B1001","Asset Maintenance"
"GUILDFORD BOROUGH COUNCIL","Responsive & Planned Maintenance","TSG Building Services Plc","692680","10/08/2020",30000942,60,0,"Asset Maintenance","General Builders","II","BACS","None",2020-06-30 00:00:00,"2020","05","0321-0207","M5114","Repairs-Cyclical (BHS)","B1001","Asset Maintenance"
"GUILDFORD BOROUGH COUNCIL","Responsive & Planned Maintenance","TSG Building Services Plc","692680","10/08/2020",30000942,60,0,"Asset Maintenance","General Builders","II","BACS","None",2020-06-30 00:00:00,"2020","05","0321-0207","M5114","Repairs-Cyclical (BHS)","B1001","Asset Maintenance"
"GUILDFORD BOROUGH COUNCIL","Responsive & Planned Maintenance","TSG Building Services Plc","692680","10/08/2020",30000942,60,0,"Asset Maintenance","General Builders","II","BACS","None",2020-06-30 00:00:00,"2020","05","0321-0207","M5114","Repairs-Cyclical (BHS)","B1001","Asset Maintenance"
"GUILDFORD BOROUGH COUNCIL","Responsive & Planned Maintenance","TSG Building Services Plc","692680","10/08/2020",30000942,60,0,"Asset Maintenance","General Builders","II","BACS","None",2020-06-30 00:00:00,"2020","05","0321-0207","M5114","Repairs-Cyclical (BHS)","B1001","Asset Maintenance"
"GUILDFORD BOROUGH COUNCIL","Responsive & Planned Maintenance","TSG Building Services Plc","692680","10/08/2020",30000942,60,0,"Asset Maintenance","General Builders","II","BACS","None",2020-06-30 00:00:00,"2020","05","0321-0207","M5114","Repairs-Cyclical (BHS)","B1001","Asset Maintenance"
"GUILDFORD BOROUGH COUNCIL","Responsive & Planned Maintenance","TSG Building Services Plc","692680","10/08/2020",30000942,60,0,"Asset Maintenance","General Builders","II","BACS","None",2020-06-30 00:00:00,"2020","05","0321-0207","M5114","Repairs-Cyclical (BHS)","B1001","Asset Maintenance"
"GUILDFORD BOROUGH COUNCIL","Responsive & Planned Maintenance","TSG Building Services Plc","692680","10/08/2020",30000942,60,0,"Asset Maintenance","General Builders","II","BACS","None",2020-06-30 00:00:00,"2020","05","0321-0207","M5114","Repairs-Cyclical (BHS)","B1001","Asset Maintenance"
"GUILDFORD BOROUGH COUNCIL","Responsive & Planned Maintenance","TSG Building Services Plc","692680","10/08/2020",30000942,60,0,"Asset Maintenance","General Builders","II","BACS","None",2020-06-30 00:00:00,"2020","05","0321-0207","M5114","Repairs-Cyclical (BHS)","B1001","Asset Maintenance"
"GUILDFORD BOROUGH COUNCIL","Responsive & Planned Maintenance","TSG Building Services Plc","692680","10/08/2020",30000942,60,0,"Asset Maintenance","General Builders","II","BACS","None",2020-06-30 00:00:00,"2020","05","0321-0207","M5114","Repairs-Cyclical (BHS)","B1001","Asset Maintenance"
"GUILDFORD BOROUGH COUNCIL","Responsive & Planned Maintenance","TSG Building Services Plc","692680","10/08/2020",30000942,60,0,"Asset Maintenance","General Builders","II","BACS","None",2020-06-30 00:00:00,"2020","05","0321-0207","M5114","Repairs-Cyclical (BHS)","B1001","Asset Maintenance"
"GUILDFORD BOROUGH COUNCIL","Responsive & Planned Maintenance","TSG Building Services Plc","692680","10/08/2020",30000942,60,0,"Asset Maintenance","General Builders","II","BACS","None",2020-06-30 00:00:00,"2020","05","0321-0207","M5114","Repairs-Cyclical (BHS)","B1001","Asset Maintenance"
"GUILDFORD BOROUGH COUNCIL","Responsive & Planned Maintenance","TSG Building Services Plc","692680","10/08/2020",30000942,60,0,"Asset Maintenance","General Builders","II","BACS","None",2020-06-30 00:00:00,"2020","05","0321-0207","M5114","Repairs-Cyclical (BHS)","B1001","Asset Maintenance"
"GUILDFORD BOROUGH COUNCIL","Responsive & Planned Maintenance","TSG Building Services Plc","692680","10/08/2020",30000942,60,0,"Asset Maintenance","General Builders","II","BACS","None",2020-06-30 00:00:00,"2020","05","0321-0207","M5114","Repairs-Cyclical (BHS)","B1001","Asset Maintenance"
"GUILDFORD BOROUGH COUNCIL","Responsive & Planned Maintenance","TSG Building Services Plc","692680","10/08/2020",30000942,60,0,"Asset Maintenance","General Builders","II","BACS","None",2020-06-30 00:00:00,"2020","05","0321-0207","M5114","Repairs-Cyclical (BHS)","B1001","Asset Maintenance"
"GUILDFORD BOROUGH COUNCIL","Responsive & Planned Maintenance","TSG Building Services Plc","692680","10/08/2020",30000942,60,0,"Asset Maintenance","General Builders","II","BACS","None",2020-06-30 00:00:00,"2020","05","0321-0207","M5114","Repairs-Cyclical (BHS)","B1001","Asset Maintenance"
"GUILDFORD BOROUGH COUNCIL","Responsive & Planned Maintenance","TSG Building Services Plc","692680","10/08/2020",30000942,60,0,"Asset Maintenance","General Builders","II","BACS","None",2020-06-30 00:00:00,"2020","05","0321-0207","M5114","Repairs-Cyclical (BHS)","B1001","Asset Maintenance"
"GUILDFORD BOROUGH COUNCIL","Responsive & Planned Maintenance","TSG Building Services Plc","692680","10/08/2020",30000942,60,0,"Asset Maintenance","General Builders","II","BACS","None",2020-06-30 00:00:00,"2020","05","0321-0207","M5114","Repairs-Cyclical (BHS)","B1001","Asset Maintenance"
"GUILDFORD BOROUGH COUNCIL","Responsive & Planned Maintenance","TSG Building Services Plc","692680","10/08/2020",30000942,60,0,"Asset Maintenance","General Builders","II","BACS","None",2020-06-30 00:00:00,"2020","05","0321-0207","M5114","Repairs-Cyclical (BHS)","B1001","Asset Maintenance"
"GUILDFORD BOROUGH COUNCIL","Responsive & Planned Maintenance","TSG Building Services Plc","692680","10/08/2020",30000942,60,0,"Asset Maintenance","General Builders","II","BACS","None",2020-06-30 00:00:00,"2020","05","0321-0207","M5114","Repairs-Cyclical (BHS)","B1001","Asset Maintenance"
"GUILDFORD BOROUGH COUNCIL","Responsive & Planned Maintenance","TSG Building Services Plc","692680","10/08/2020",30000942,60,0,"Asset Maintenance","General Builders","II","BACS","None",2020-06-30 00:00:00,"2020","05","0321-0207","M5114","Repairs-Cyclical (BHS)","B1001","Asset Maintenance"
"GUILDFORD BOROUGH COUNCIL","Responsive & Planned Maintenance","TSG Building Services Plc","692680","10/08/2020",30000942,60,0,"Asset Maintenance","General Builders","II","BACS","None",2020-06-30 00:00:00,"2020","05","0321-0207","M5114","Repairs-Cyclical (BHS)","B1001","Asset Maintenance"
"GUILDFORD BOROUGH COUNCIL","Responsive & Planned Maintenance","TSG Building Services Plc","692680","10/08/2020",30000942,60,0,"Asset Maintenance","General Builders","II","BACS","None",2020-06-30 00:00:00,"2020","05","0321-0207","M5114","Repairs-Cyclical (BHS)","B1001","Asset Maintenance"
"GUILDFORD BOROUGH COUNCIL","Responsive & Planned Maintenance","TSG Building Services Plc","692680","10/08/2020",30000942,60,0,"Asset Maintenance","General Builders","II","BACS","None",2020-06-30 00:00:00,"2020","05","0321-0207","M5114","Repairs-Cyclical (BHS)","B1001","Asset Maintenance"
"GUILDFORD BOROUGH COUNCIL","Responsive & Planned Maintenance","TSG Building Services Plc","692680","10/08/2020",30000942,60,0,"Asset Maintenance","General Builders","II","BACS","None",2020-06-30 00:00:00,"2020","05","0321-0207","M5114","Repairs-Cyclical (BHS)","B1001","Asset Maintenance"
"GUILDFORD BOROUGH COUNCIL","Responsive & Planned Maintenance","TSG Building Services Plc","692680","10/08/2020",30000942,60,0,"Asset Maintenance","General Builders","II","BACS","None",2020-06-30 00:00:00,"2020","05","0321-0207","M5114","Repairs-Cyclical (BHS)","B1001","Asset Maintenance"
"GUILDFORD BOROUGH COUNCIL","Responsive & Planned Maintenance","TSG Building Services Plc","692680","10/08/2020",30000942,60,0,"Asset Maintenance","General Builders","II","BACS","None",2020-06-30 00:00:00,"2020","05","0321-0207","M5114","Repairs-Cyclical (BHS)","B1001","Asset Maintenance"
"GUILDFORD BOROUGH COUNCIL","Responsive & Planned Maintenance","TSG Building Services Plc","692680","10/08/2020",30000942,60,0,"Asset Maintenance","General Builders","II","BACS","None",2020-06-30 00:00:00,"2020","05","0321-0207","M5114","Repairs-Cyclical (BHS)","B1001","Asset Maintenance"
"GUILDFORD BOROUGH COUNCIL","Responsive & Planned Maintenance","TSG Building Services Plc","692680","10/08/2020",30000942,60,0,"Asset Maintenance","General Builders","II","BACS","None",2020-06-30 00:00:00,"2020","05","0321-0207","M5114","Repairs-Cyclical (BHS)","B1001","Asset Maintenance"
"GUILDFORD BOROUGH COUNCIL","Responsive & Planned Maintenance","TSG Building Services Plc","692680","10/08/2020",30000942,60,0,"Asset Maintenance","General Builders","II","BACS","None",2020-06-30 00:00:00,"2020","05","0321-0207","M5114","Repairs-Cyclical (BHS)","B1001","Asset Maintenance"
"GUILDFORD BOROUGH COUNCIL","Responsive & Planned Maintenance","TSG Building Services Plc","692680","10/08/2020",30000942,60,0,"Asset Maintenance","General Builders","II","BACS","None",2020-06-30 00:00:00,"2020","05","0321-0207","M5114","Repairs-Cyclical (BHS)","B1001","Asset Maintenance"
"GUILDFORD BOROUGH COUNCIL","Responsive & Planned Maintenance","TSG Building Services Plc","692680","10/08/2020",30000942,60,0,"Asset Maintenance","General Builders","II","BACS","None",2020-06-30 00:00:00,"2020","05","0321-0207","M5114","Repairs-Cyclical (BHS)","B1001","Asset Maintenance"
"GUILDFORD BOROUGH COUNCIL","Responsive & Planned Maintenance","TSG Building Services Plc","692680","10/08/2020",30000942,60,0,"Asset Maintenance","General Builders","II","BACS","None",2020-06-30 00:00:00,"2020","05","0321-0207","M5114","Repairs-Cyclical (BHS)","B1001","Asset Maintenance"
"GUILDFORD BOROUGH COUNCIL","Responsive & Planned Maintenance","TSG Building Services Plc","692680","10/08/2020",30000942,60,0,"Asset Maintenance","General Builders","II","BACS","None",2020-06-30 00:00:00,"2020","05","0321-0207","M5114","Repairs-Cyclical (BHS)","B1001","Asset Maintenance"
"GUILDFORD BOROUGH COUNCIL","Responsive & Planned Maintenance","TSG Building Services Plc","692680","10/08/2020",30000942,60,0,"Asset Maintenance","General Builders","II","BACS","None",2020-06-30 00:00:00,"2020","05","0321-0207","M5114","Repairs-Cyclical (BHS)","B1001","Asset Maintenance"
"GUILDFORD BOROUGH COUNCIL","Responsive & Planned Maintenance","TSG Building Services Plc","692680","10/08/2020",30000942,60,0,"Asset Maintenance","General Builders","II","BACS","None",2020-06-30 00:00:00,"2020","05","0321-0207","M5114","Repairs-Cyclical (BHS)","B1001","Asset Maintenance"
"GUILDFORD BOROUGH COUNCIL","Responsive & Planned Maintenance","TSG Building Services Plc","692680","10/08/2020",30000942,60,0,"Asset Maintenance","General Builders","II","BACS","None",2020-06-30 00:00:00,"2020","05","0321-0207","M5114","Repairs-Cyclical (BHS)","B1001","Asset Maintenance"
"GUILDFORD BOROUGH COUNCIL","Responsive & Planned Maintenance","TSG Building Services Plc","692680","10/08/2020",30000942,60,0,"Asset Maintenance","General Builders","II","BACS","None",2020-06-30 00:00:00,"2020","05","0321-0207","M5114","Repairs-Cyclical (BHS)","B1001","Asset Maintenance"
"GUILDFORD BOROUGH COUNCIL","Responsive & Planned Maintenance","TSG Building Services Plc","692680","10/08/2020",30000942,60,0,"Asset Maintenance","General Builders","II","BACS","None",2020-06-30 00:00:00,"2020","05","0321-0207","M5114","Repairs-Cyclical (BHS)","B1001","Asset Maintenance"
"GUILDFORD BOROUGH COUNCIL","Responsive & Planned Maintenance","TSG Building Services Plc","692680","10/08/2020",30000942,60,0,"Asset Maintenance","General Builders","II","BACS","None",2020-06-30 00:00:00,"2020","05","0321-0207","M5114","Repairs-Cyclical (BHS)","B1001","Asset Maintenance"
"GUILDFORD BOROUGH COUNCIL","Responsive & Planned Maintenance","TSG Building Services Plc","692680","10/08/2020",30000942,60,0,"Asset Maintenance","General Builders","II","BACS","None",2020-06-30 00:00:00,"2020","05","0321-0207","M5114","Repairs-Cyclical (BHS)","B1001","Asset Maintenance"
"GUILDFORD BOROUGH COUNCIL","Responsive & Planned Maintenance","TSG Building Services Plc","692680","10/08/2020",30000942,60,0,"Asset Maintenance","General Builders","II","BACS","None",2020-06-30 00:00:00,"2020","05","0321-0207","M5114","Repairs-Cyclical (BHS)","B1001","Asset Maintenance"
"GUILDFORD BOROUGH COUNCIL","Responsive & Planned Maintenance","TSG Building Services Plc","692680","10/08/2020",30000942,60,0,"Asset Maintenance","General Builders","II","BACS","None",2020-06-30 00:00:00,"2020","05","0321-0207","M5114","Repairs-Cyclical (BHS)","B1001","Asset Maintenance"
"GUILDFORD BOROUGH COUNCIL","Responsive & Planned Maintenance","TSG Building Services Plc","692680","10/08/2020",30000942,60,0,"Asset Maintenance","General Builders","II","BACS","None",2020-06-30 00:00:00,"2020","05","0321-0207","M5114","Repairs-Cyclical (BHS)","B1001","Asset Maintenance"
"GUILDFORD BOROUGH COUNCIL","Responsive & Planned Maintenance","TSG Building Services Plc","692680","10/08/2020",30000942,60,0,"Asset Maintenance","General Builders","II","BACS","None",2020-06-30 00:00:00,"2020","05","0321-0207","M5114","Repairs-Cyclical (BHS)","B1001","Asset Maintenance"
"GUILDFORD BOROUGH COUNCIL","Responsive & Planned Maintenance","TSG Building Services Plc","692680","10/08/2020",30000942,60,0,"Asset Maintenance","General Builders","II","BACS","None",2020-06-30 00:00:00,"2020","05","0321-0207","M5114","Repairs-Cyclical (BHS)","B1001","Asset Maintenance"
"GUILDFORD BOROUGH COUNCIL","Responsive & Planned Maintenance","TSG Building Services Plc","692680","10/08/2020",30000942,60,0,"Asset Maintenance","General Builders","II","BACS","None",2020-06-30 00:00:00,"2020","05","0321-0207","M5114","Repairs-Cyclical (BHS)","B1001","Asset Maintenance"
"GUILDFORD BOROUGH COUNCIL","Responsive & Planned Maintenance","TSG Building Services Plc","692680","10/08/2020",30000942,60,0,"Asset Maintenance","General Builders","II","BACS","None",2020-06-30 00:00:00,"2020","05","0321-0207","M5114","Repairs-Cyclical (BHS)","B1001","Asset Maintenance"
"GUILDFORD BOROUGH COUNCIL","Responsive & Planned Maintenance","TSG Building Services Plc","692680","10/08/2020",30000942,60,0,"Asset Maintenance","General Builders","II","BACS","None",2020-06-30 00:00:00,"2020","05","0321-0207","M5114","Repairs-Cyclical (BHS)","B1001","Asset Maintenance"
"GUILDFORD BOROUGH COUNCIL","Responsive & Planned Maintenance","TSG Building Services Plc","692680","10/08/2020",30000942,60,0,"Asset Maintenance","General Builders","II","BACS","None",2020-06-30 00:00:00,"2020","05","0321-0207","M5114","Repairs-Cyclical (BHS)","B1001","Asset Maintenance"
"GUILDFORD BOROUGH COUNCIL","Responsive & Planned Maintenance","TSG Building Services Plc","692680","10/08/2020",30000942,60,0,"Asset Maintenance","General Builders","II","BACS","None",2020-06-30 00:00:00,"2020","05","0321-0207","M5114","Repairs-Cyclical (BHS)","B1001","Asset Maintenance"
"GUILDFORD BOROUGH COUNCIL","Responsive & Planned Maintenance","TSG Building Services Plc","692680","10/08/2020",30000942,60,0,"Asset Maintenance","General Builders","II","BACS","None",2020-06-30 00:00:00,"2020","05","0321-0207","M5114","Repairs-Cyclical (BHS)","B1001","Asset Maintenance"
"GUILDFORD BOROUGH COUNCIL","Responsive & Planned Maintenance","TSG Building Services Plc","692680","10/08/2020",30000942,60,0,"Asset Maintenance","General Builders","II","BACS","None",2020-06-30 00:00:00,"2020","05","0321-0207","M5114","Repairs-Cyclical (BHS)","B1001","Asset Maintenance"
"GUILDFORD BOROUGH COUNCIL","Responsive & Planned Maintenance","TSG Building Services Plc","692680","10/08/2020",30000942,60,0,"Asset Maintenance","General Builders","II","BACS","None",2020-06-30 00:00:00,"2020","05","0321-0207","M5114","Repairs-Cyclical (BHS)","B1001","Asset Maintenance"
"GUILDFORD BOROUGH COUNCIL","Responsive & Planned Maintenance","TSG Building Services Plc","692680","10/08/2020",30000942,60,0,"Asset Maintenance","General Builders","II","BACS","None",2020-06-30 00:00:00,"2020","05","0321-0207","M5114","Repairs-Cyclical (BHS)","B1001","Asset Maintenance"
"GUILDFORD BOROUGH COUNCIL","Responsive & Planned Maintenance","TSG Building Services Plc","692680","10/08/2020",30000942,60,0,"Asset Maintenance","General Builders","II","BACS","None",2020-06-30 00:00:00,"2020","05","0321-0207","M5114","Repairs-Cyclical (BHS)","B1001","Asset Maintenance"
"GUILDFORD BOROUGH COUNCIL","Responsive & Planned Maintenance","TSG Building Services Plc","692680","10/08/2020",30000942,60,0,"Asset Maintenance","General Builders","II","BACS","None",2020-06-30 00:00:00,"2020","05","0321-0207","M5114","Repairs-Cyclical (BHS)","B1001","Asset Maintenance"
"GUILDFORD BOROUGH COUNCIL","Responsive & Planned Maintenance","TSG Building Services Plc","692680","10/08/2020",30000942,60,0,"Asset Maintenance","General Builders","II","BACS","None",2020-06-30 00:00:00,"2020","05","0321-0207","M5114","Repairs-Cyclical (BHS)","B1001","Asset Maintenance"
"GUILDFORD BOROUGH COUNCIL","Responsive & Planned Maintenance","TSG Building Services Plc","692680","10/08/2020",30000942,60,0,"Asset Maintenance","General Builders","II","BACS","None",2020-06-30 00:00:00,"2020","05","0321-0207","M5114","Repairs-Cyclical (BHS)","B1001","Asset Maintenance"
"GUILDFORD BOROUGH COUNCIL","Responsive & Planned Maintenance","TSG Building Services Plc","692680","10/08/2020",30000942,60,0,"Asset Maintenance","General Builders","II","BACS","None",2020-06-30 00:00:00,"2020","05","0321-0207","M5114","Repairs-Cyclical (BHS)","B1001","Asset Maintenance"
"GUILDFORD BOROUGH COUNCIL","Responsive & Planned Maintenance","TSG Building Services Plc","692680","10/08/2020",30000942,60,0,"Asset Maintenance","General Builders","II","BACS","None",2020-06-30 00:00:00,"2020","05","0321-0207","M5114","Repairs-Cyclical (BHS)","B1001","Asset Maintenance"
"GUILDFORD BOROUGH COUNCIL","Strategic Support","TSG Building Services Plc","692680","10/08/2020",30000942,60,0,"Asset Maintenance","General Builders","II","BACS","None",2020-06-30 00:00:00,"2020","05","0321-0207","M6666","King Edward Ct 120 Walnut Tree","B1001","Asset Maintenance"
"GUILDFORD BOROUGH COUNCIL","Responsive & Planned Maintenance","TSG Building Services Plc","692680","10/08/2020",30000942,60,0,"Asset Maintenance","General Builders","II","BACS","None",2020-06-30 00:00:00,"2020","05","0321-0207","M5114","Repairs-Cyclical (BHS)","B1001","Asset Maintenance"
"GUILDFORD BOROUGH COUNCIL","Responsive & Planned Maintenance","TSG Building Services Plc","692680","10/08/2020",30000942,60,0,"Asset Maintenance","General Builders","II","BACS","None",2020-06-30 00:00:00,"2020","05","0321-0207","M5114","Repairs-Cyclical (BHS)","B1001","Asset Maintenance"
"GUILDFORD BOROUGH COUNCIL","Responsive & Planned Maintenance","TSG Building Services Plc","692680","10/08/2020",30000942,60,0,"Asset Maintenance","General Builders","II","BACS","None",2020-06-30 00:00:00,"2020","05","0321-0207","M5114","Repairs-Cyclical (BHS)","B1001","Asset Maintenance"
"GUILDFORD BOROUGH COUNCIL","Responsive & Planned Maintenance","TSG Building Services Plc","692680","10/08/2020",30000942,60,0,"Asset Maintenance","General Builders","II","BACS","None",2020-06-30 00:00:00,"2020","05","0321-0207","M5114","Repairs-Cyclical (BHS)","B1001","Asset Maintenance"
"GUILDFORD BOROUGH COUNCIL","Responsive & Planned Maintenance","TSG Building Services Plc","692680","10/08/2020",30000942,60,0,"Asset Maintenance","General Builders","II","BACS","None",2020-06-30 00:00:00,"2020","05","0321-0207","M5114","Repairs-Cyclical (BHS)","B1001","Asset Maintenance"
"GUILDFORD BOROUGH COUNCIL","Responsive & Planned Maintenance","TSG Building Services Plc","692680","10/08/2020",30000942,60,0,"Asset Maintenance","General Builders","II","BACS","None",2020-06-30 00:00:00,"2020","05","0321-0207","M5114","Repairs-Cyclical (BHS)","B1001","Asset Maintenance"
"GUILDFORD BOROUGH COUNCIL","Responsive & Planned Maintenance","TSG Building Services Plc","692680","10/08/2020",30000942,60,0,"Asset Maintenance","General Builders","II","BACS","None",2020-06-30 00:00:00,"2020","05","0321-0207","M5114","Repairs-Cyclical (BHS)","B1001","Asset Maintenance"
"GUILDFORD BOROUGH COUNCIL","Responsive & Planned Maintenance","TSG Building Services Plc","692680","10/08/2020",30000942,60,0,"Asset Maintenance","General Builders","II","BACS","None",2020-06-30 00:00:00,"2020","05","0321-0207","M5114","Repairs-Cyclical (BHS)","B1001","Asset Maintenance"
"GUILDFORD BOROUGH COUNCIL","Responsive & Planned Maintenance","TSG Building Services Plc","692680","10/08/2020",30000942,60,0,"Asset Maintenance","General Builders","II","BACS","None",2020-06-30 00:00:00,"2020","05","0321-0207","M5114","Repairs-Cyclical (BHS)","B1001","Asset Maintenance"
"GUILDFORD BOROUGH COUNCIL","Responsive & Planned Maintenance","TSG Building Services Plc","692680","10/08/2020",30000942,60,0,"Asset Maintenance","General Builders","II","BACS","None",2020-06-30 00:00:00,"2020","05","0321-0207","M5114","Repairs-Cyclical (BHS)","B1001","Asset Maintenance"
"GUILDFORD BOROUGH COUNCIL","Responsive & Planned Maintenance","TSG Building Services Plc","692680","10/08/2020",30000942,60,0,"Asset Maintenance","General Builders","II","BACS","None",2020-06-30 00:00:00,"2020","05","0321-0207","M5114","Repairs-Cyclical (BHS)","B1001","Asset Maintenance"
"GUILDFORD BOROUGH COUNCIL","Responsive & Planned Maintenance","TSG Building Services Plc","692680","10/08/2020",30000942,60,0,"Asset Maintenance","General Builders","II","BACS","None",2020-06-30 00:00:00,"2020","05","0321-0207","M5114","Repairs-Cyclical (BHS)","B1001","Asset Maintenance"
"GUILDFORD BOROUGH COUNCIL","Responsive & Planned Maintenance","TSG Building Services Plc","692680","10/08/2020",30000942,60,0,"Asset Maintenance","General Builders","II","BACS","None",2020-06-30 00:00:00,"2020","05","0321-0207","M5114","Repairs-Cyclical (BHS)","B1001","Asset Maintenance"
"GUILDFORD BOROUGH COUNCIL","Responsive & Planned Maintenance","TSG Building Services Plc","692680","10/08/2020",30000942,60,0,"Asset Maintenance","General Builders","II","BACS","None",2020-06-30 00:00:00,"2020","05","0321-0207","M5114","Repairs-Cyclical (BHS)","B1001","Asset Maintenance"
"GUILDFORD BOROUGH COUNCIL","Responsive & Planned Maintenance","TSG Building Services Plc","692680","10/08/2020",30000942,60,0,"Asset Maintenance","General Builders","II","BACS","None",2020-06-30 00:00:00,"2020","05","0321-0207","M5114","Repairs-Cyclical (BHS)","B1001","Asset Maintenance"
"GUILDFORD BOROUGH COUNCIL","Responsive & Planned Maintenance","TSG Building Services Plc","692680","10/08/2020",30000942,60,0,"Asset Maintenance","General Builders","II","BACS","None",2020-06-30 00:00:00,"2020","05","0321-0207","M5114","Repairs-Cyclical (BHS)","B1001","Asset Maintenance"
"GUILDFORD BOROUGH COUNCIL","Responsive & Planned Maintenance","TSG Building Services Plc","692680","10/08/2020",30000942,60,0,"Asset Maintenance","General Builders","II","BACS","None",2020-06-30 00:00:00,"2020","05","0321-0207","M5114","Repairs-Cyclical (BHS)","B1001","Asset Maintenance"
"GUILDFORD BOROUGH COUNCIL","Responsive & Planned Maintenance","TSG Building Services Plc","692680","10/08/2020",30000942,60,0,"Asset Maintenance","General Builders","II","BACS","None",2020-06-30 00:00:00,"2020","05","0321-0207","M5114","Repairs-Cyclical (BHS)","B1001","Asset Maintenance"
"GUILDFORD BOROUGH COUNCIL","Responsive & Planned Maintenance","TSG Building Services Plc","692680","10/08/2020",30000942,60,0,"Asset Maintenance","General Builders","II","BACS","None",2020-06-30 00:00:00,"2020","05","0321-0207","M5114","Repairs-Cyclical (BHS)","B1001","Asset Maintenance"
"GUILDFORD BOROUGH COUNCIL","Responsive & Planned Maintenance","TSG Building Services Plc","692680","10/08/2020",30000942,60,0,"Asset Maintenance","General Builders","II","BACS","None",2020-06-30 00:00:00,"2020","05","0321-0207","M5114","Repairs-Cyclical (BHS)","B1001","Asset Maintenance"
"GUILDFORD BOROUGH COUNCIL","Responsive & Planned Maintenance","TSG Building Services Plc","692680","10/08/2020",30000942,60,0,"Asset Maintenance","General Builders","II","BACS","None",2020-06-30 00:00:00,"2020","05","0321-0207","M5114","Repairs-Cyclical (BHS)","B1001","Asset Maintenance"
"GUILDFORD BOROUGH COUNCIL","Responsive & Planned Maintenance","TSG Building Services Plc","692680","10/08/2020",30000942,60,0,"Asset Maintenance","General Builders","II","BACS","None",2020-06-30 00:00:00,"2020","05","0321-0207","M5114","Repairs-Cyclical (BHS)","B1001","Asset Maintenance"
"GUILDFORD BOROUGH COUNCIL","Responsive & Planned Maintenance","TSG Building Services Plc","692680","10/08/2020",30000942,60,0,"Asset Maintenance","General Builders","II","BACS","None",2020-06-30 00:00:00,"2020","05","0321-0207","M5114","Repairs-Cyclical (BHS)","B1001","Asset Maintenance"
"GUILDFORD BOROUGH COUNCIL","Responsive & Planned Maintenance","TSG Building Services Plc","692680","10/08/2020",30000942,60,0,"Asset Maintenance","General Builders","II","BACS","None",2020-06-30 00:00:00,"2020","05","0321-0207","M5114","Repairs-Cyclical (BHS)","B1001","Asset Maintenance"
"GUILDFORD BOROUGH COUNCIL","Responsive & Planned Maintenance","TSG Building Services Plc","692680","10/08/2020",30000942,60,0,"Asset Maintenance","General Builders","II","BACS","None",2020-06-30 00:00:00,"2020","05","0321-0207","M5114","Repairs-Cyclical (BHS)","B1001","Asset Maintenance"
"GUILDFORD BOROUGH COUNCIL","Responsive & Planned Maintenance","TSG Building Services Plc","692680","10/08/2020",30000942,60,0,"Asset Maintenance","General Builders","II","BACS","None",2020-06-30 00:00:00,"2020","05","0321-0207","M5114","Repairs-Cyclical (BHS)","B1001","Asset Maintenance"
"GUILDFORD BOROUGH COUNCIL","Responsive & Planned Maintenance","TSG Building Services Plc","692680","10/08/2020",30000942,60,0,"Asset Maintenance","General Builders","II","BACS","None",2020-06-30 00:00:00,"2020","05","0321-0207","M5114","Repairs-Cyclical (BHS)","B1001","Asset Maintenance"
"GUILDFORD BOROUGH COUNCIL","Responsive & Planned Maintenance","TSG Building Services Plc","692680","10/08/2020",30000942,60,0,"Asset Maintenance","General Builders","II","BACS","None",2020-06-30 00:00:00,"2020","05","0321-0207","M5114","Repairs-Cyclical (BHS)","B1001","Asset Maintenance"
"GUILDFORD BOROUGH COUNCIL","Responsive & Planned Maintenance","TSG Building Services Plc","692680","10/08/2020",30000942,60,0,"Asset Maintenance","General Builders","II","BACS","None",2020-06-30 00:00:00,"2020","05","0321-0207","M5114","Repairs-Cyclical (BHS)","B1001","Asset Maintenance"
"GUILDFORD BOROUGH COUNCIL","Responsive & Planned Maintenance","TSG Building Services Plc","692680","10/08/2020",30000942,60,0,"Asset Maintenance","General Builders","II","BACS","None",2020-06-30 00:00:00,"2020","05","0321-0207","M5114","Repairs-Cyclical (BHS)","B1001","Asset Maintenance"
"GUILDFORD BOROUGH COUNCIL","Responsive & Planned Maintenance","TSG Building Services Plc","692680","10/08/2020",30000942,60,0,"Asset Maintenance","General Builders","II","BACS","None",2020-06-30 00:00:00,"2020","05","0321-0207","M5114","Repairs-Cyclical (BHS)","B1001","Asset Maintenance"
"GUILDFORD BOROUGH COUNCIL","Responsive & Planned Maintenance","TSG Building Services Plc","692680","10/08/2020",30000942,60,0,"Asset Maintenance","General Builders","II","BACS","None",2020-06-30 00:00:00,"2020","05","0321-0207","M5114","Repairs-Cyclical (BHS)","B1001","Asset Maintenance"
"GUILDFORD BOROUGH COUNCIL","Responsive & Planned Maintenance","TSG Building Services Plc","692680","10/08/2020",30000942,60,0,"Asset Maintenance","General Builders","II","BACS","None",2020-06-30 00:00:00,"2020","05","0321-0207","M5114","Repairs-Cyclical (BHS)","B1001","Asset Maintenance"
"GUILDFORD BOROUGH COUNCIL","Responsive & Planned Maintenance","TSG Building Services Plc","692680","10/08/2020",30000942,60,0,"Asset Maintenance","General Builders","II","BACS","None",2020-06-30 00:00:00,"2020","05","0321-0207","M5114","Repairs-Cyclical (BHS)","B1001","Asset Maintenance"
"GUILDFORD BOROUGH COUNCIL","Responsive & Planned Maintenance","TSG Building Services Plc","692680","10/08/2020",30000942,60,0,"Asset Maintenance","General Builders","II","BACS","None",2020-06-30 00:00:00,"2020","05","0321-0207","M5114","Repairs-Cyclical (BHS)","B1001","Asset Maintenance"
"GUILDFORD BOROUGH COUNCIL","Responsive & Planned Maintenance","TSG Building Services Plc","692680","10/08/2020",30000942,60,0,"Asset Maintenance","General Builders","II","BACS","None",2020-06-30 00:00:00,"2020","05","0321-0207","M5114","Repairs-Cyclical (BHS)","B1001","Asset Maintenance"
"GUILDFORD BOROUGH COUNCIL","Responsive & Planned Maintenance","TSG Building Services Plc","692680","10/08/2020",30000942,60,0,"Asset Maintenance","General Builders","II","BACS","None",2020-06-30 00:00:00,"2020","05","0321-0207","M5114","Repairs-Cyclical (BHS)","B1001","Asset Maintenance"
"GUILDFORD BOROUGH COUNCIL","Responsive & Planned Maintenance","TSG Building Services Plc","692680","10/08/2020",30000942,60,0,"Asset Maintenance","General Builders","II","BACS","None",2020-06-30 00:00:00,"2020","05","0321-0207","M5114","Repairs-Cyclical (BHS)","B1001","Asset Maintenance"
"GUILDFORD BOROUGH COUNCIL","Responsive & Planned Maintenance","TSG Building Services Plc","692680","10/08/2020",30000942,60,0,"Asset Maintenance","General Builders","II","BACS","None",2020-06-30 00:00:00,"2020","05","0321-0207","M5114","Repairs-Cyclical (BHS)","B1001","Asset Maintenance"
"GUILDFORD BOROUGH COUNCIL","Responsive & Planned Maintenance","TSG Building Services Plc","692680","10/08/2020",30000942,60,0,"Asset Maintenance","General Builders","II","BACS","None",2020-06-30 00:00:00,"2020","05","0321-0207","M5114","Repairs-Cyclical (BHS)","B1001","Asset Maintenance"
"GUILDFORD BOROUGH COUNCIL","Responsive & Planned Maintenance","TSG Building Services Plc","692680","10/08/2020",30000942,60,0,"Asset Maintenance","General Builders","II","BACS","None",2020-06-30 00:00:00,"2020","05","0321-0207","M5114","Repairs-Cyclical (BHS)","B1001","Asset Maintenance"
"GUILDFORD BOROUGH COUNCIL","Responsive & Planned Maintenance","TSG Building Services Plc","692680","10/08/2020",30000942,60,0,"Asset Maintenance","General Builders","II","BACS","None",2020-06-30 00:00:00,"2020","05","0321-0207","M5114","Repairs-Cyclical (BHS)","B1001","Asset Maintenance"
"GUILDFORD BOROUGH COUNCIL","Responsive & Planned Maintenance","TSG Building Services Plc","692680","10/08/2020",30000942,60,0,"Asset Maintenance","General Builders","II","BACS","None",2020-06-30 00:00:00,"2020","05","0321-0207","M5114","Repairs-Cyclical (BHS)","B1001","Asset Maintenance"
"GUILDFORD BOROUGH COUNCIL","Responsive & Planned Maintenance","TSG Building Services Plc","692680","10/08/2020",30000942,60,0,"Asset Maintenance","General Builders","II","BACS","None",2020-06-30 00:00:00,"2020","05","0321-0207","M5114","Repairs-Cyclical (BHS)","B1001","Asset Maintenance"
"GUILDFORD BOROUGH COUNCIL","Responsive & Planned Maintenance","TSG Building Services Plc","692680","10/08/2020",30000942,60,0,"Asset Maintenance","General Builders","II","BACS","None",2020-06-30 00:00:00,"2020","05","0321-0207","M5114","Repairs-Cyclical (BHS)","B1001","Asset Maintenance"
"GUILDFORD BOROUGH COUNCIL","Responsive & Planned Maintenance","TSG Building Services Plc","692680","10/08/2020",30000942,60,0,"Asset Maintenance","General Builders","II","BACS","None",2020-06-30 00:00:00,"2020","05","0321-0207","M5114","Repairs-Cyclical (BHS)","B1001","Asset Maintenance"
"GUILDFORD BOROUGH COUNCIL","Responsive & Planned Maintenance","TSG Building Services Plc","692680","10/08/2020",30000942,60,0,"Asset Maintenance","General Builders","II","BACS","None",2020-06-30 00:00:00,"2020","05","0321-0207","M5114","Repairs-Cyclical (BHS)","B1001","Asset Maintenance"
"GUILDFORD BOROUGH COUNCIL","Responsive & Planned Maintenance","TSG Building Services Plc","692680","10/08/2020",30000942,60,0,"Asset Maintenance","General Builders","II","BACS","None",2020-06-30 00:00:00,"2020","05","0321-0207","M5114","Repairs-Cyclical (BHS)","B1001","Asset Maintenance"
"GUILDFORD BOROUGH COUNCIL","Responsive & Planned Maintenance","TSG Building Services Plc","692680","10/08/2020",30000942,60,0,"Asset Maintenance","General Builders","II","BACS","None",2020-06-30 00:00:00,"2020","05","0321-0207","M5114","Repairs-Cyclical (BHS)","B1001","Asset Maintenance"
"GUILDFORD BOROUGH COUNCIL","Responsive & Planned Maintenance","TSG Building Services Plc","692680","10/08/2020",30000942,60,0,"Asset Maintenance","General Builders","II","BACS","None",2020-06-30 00:00:00,"2020","05","0321-0207","M5114","Repairs-Cyclical (BHS)","B1001","Asset Maintenance"
"GUILDFORD BOROUGH COUNCIL","Responsive & Planned Maintenance","TSG Building Services Plc","692680","10/08/2020",30000942,60,0,"Asset Maintenance","General Builders","II","BACS","None",2020-06-30 00:00:00,"2020","05","0321-0207","M5114","Repairs-Cyclical (BHS)","B1001","Asset Maintenance"
"GUILDFORD BOROUGH COUNCIL","Responsive & Planned Maintenance","TSG Building Services Plc","692680","10/08/2020",30000942,60,0,"Asset Maintenance","General Builders","II","BACS","None",2020-06-30 00:00:00,"2020","05","0321-0207","M5114","Repairs-Cyclical (BHS)","B1001","Asset Maintenance"
"GUILDFORD BOROUGH COUNCIL","Responsive & Planned Maintenance","TSG Building Services Plc","692680","10/08/2020",30000942,60,0,"Asset Maintenance","General Builders","II","BACS","None",2020-06-30 00:00:00,"2020","05","0321-0207","M5114","Repairs-Cyclical (BHS)","B1001","Asset Maintenance"
"GUILDFORD BOROUGH COUNCIL","Responsive & Planned Maintenance","TSG Building Services Plc","692680","10/08/2020",30000942,60,0,"Asset Maintenance","General Builders","II","BACS","None",2020-06-30 00:00:00,"2020","05","0321-0207","M5114","Repairs-Cyclical (BHS)","B1001","Asset Maintenance"
"GUILDFORD BOROUGH COUNCIL","Responsive & Planned Maintenance","TSG Building Services Plc","692680","10/08/2020",30000942,60,0,"Asset Maintenance","General Builders","II","BACS","None",2020-06-30 00:00:00,"2020","05","0321-0207","M5114","Repairs-Cyclical (BHS)","B1001","Asset Maintenance"
"GUILDFORD BOROUGH COUNCIL","Responsive & Planned Maintenance","TSG Building Services Plc","692680","10/08/2020",30000942,60,0,"Asset Maintenance","General Builders","II","BACS","None",2020-06-30 00:00:00,"2020","05","0321-0207","M5114","Repairs-Cyclical (BHS)","B1001","Asset Maintenance"
"GUILDFORD BOROUGH COUNCIL","Responsive & Planned Maintenance","TSG Building Services Plc","692680","10/08/2020",30000942,60,0,"Asset Maintenance","General Builders","II","BACS","None",2020-06-30 00:00:00,"2020","05","0321-0207","M5114","Repairs-Cyclical (BHS)","B1001","Asset Maintenance"
"GUILDFORD BOROUGH COUNCIL","Responsive & Planned Maintenance","TSG Building Services Plc","692680","10/08/2020",30000942,60,0,"Asset Maintenance","General Builders","II","BACS","None",2020-06-30 00:00:00,"2020","05","0321-0207","M5114","Repairs-Cyclical (BHS)","B1001","Asset Maintenance"
"GUILDFORD BOROUGH COUNCIL","Responsive & Planned Maintenance","TSG Building Services Plc","692680","10/08/2020",30000942,60,0,"Asset Maintenance","General Builders","II","BACS","None",2020-06-30 00:00:00,"2020","05","0321-0207","M5114","Repairs-Cyclical (BHS)","B1001","Asset Maintenance"
"GUILDFORD BOROUGH COUNCIL","Responsive & Planned Maintenance","TSG Building Services Plc","692680","10/08/2020",30000942,60,0,"Asset Maintenance","General Builders","II","BACS","None",2020-06-30 00:00:00,"2020","05","0321-0207","M5114","Repairs-Cyclical (BHS)","B1001","Asset Maintenance"
"GUILDFORD BOROUGH COUNCIL","Responsive & Planned Maintenance","TSG Building Services Plc","692680","10/08/2020",30000942,60,0,"Asset Maintenance","General Builders","II","BACS","None",2020-06-30 00:00:00,"2020","05","0321-0207","M5114","Repairs-Cyclical (BHS)","B1001","Asset Maintenance"
"GUILDFORD BOROUGH COUNCIL","Responsive & Planned Maintenance","TSG Building Services Plc","692680","10/08/2020",30000942,60,0,"Asset Maintenance","General Builders","II","BACS","None",2020-06-30 00:00:00,"2020","05","0321-0207","M5114","Repairs-Cyclical (BHS)","B1001","Asset Maintenance"
"GUILDFORD BOROUGH COUNCIL","Responsive & Planned Maintenance","TSG Building Services Plc","692680","10/08/2020",30000942,60,0,"Asset Maintenance","General Builders","II","BACS","None",2020-06-30 00:00:00,"2020","05","0321-0207","M5114","Repairs-Cyclical (BHS)","B1001","Asset Maintenance"
"GUILDFORD BOROUGH COUNCIL","Responsive & Planned Maintenance","TSG Building Services Plc","692680","10/08/2020",30000942,60,0,"Asset Maintenance","General Builders","II","BACS","None",2020-06-30 00:00:00,"2020","05","0321-0207","M5114","Repairs-Cyclical (BHS)","B1001","Asset Maintenance"
"GUILDFORD BOROUGH COUNCIL","Responsive & Planned Maintenance","TSG Building Services Plc","692680","10/08/2020",30000942,60,0,"Asset Maintenance","General Builders","II","BACS","None",2020-06-30 00:00:00,"2020","05","0321-0207","M5114","Repairs-Cyclical (BHS)","B1001","Asset Maintenance"
"GUILDFORD BOROUGH COUNCIL","Responsive & Planned Maintenance","TSG Building Services Plc","692680","10/08/2020",30000942,60,0,"Asset Maintenance","General Builders","II","BACS","None",2020-06-30 00:00:00,"2020","05","0321-0207","M5114","Repairs-Cyclical (BHS)","B1001","Asset Maintenance"
"GUILDFORD BOROUGH COUNCIL","Responsive & Planned Maintenance","TSG Building Services Plc","692680","10/08/2020",30000942,60,0,"Asset Maintenance","General Builders","II","BACS","None",2020-06-30 00:00:00,"2020","05","0321-0207","M5114","Repairs-Cyclical (BHS)","B1001","Asset Maintenance"
"GUILDFORD BOROUGH COUNCIL","Responsive & Planned Maintenance","TSG Building Services Plc","692680","10/08/2020",30000942,60,0,"Asset Maintenance","General Builders","II","BACS","None",2020-06-30 00:00:00,"2020","05","0321-0207","M5114","Repairs-Cyclical (BHS)","B1001","Asset Maintenance"
"GUILDFORD BOROUGH COUNCIL","Responsive & Planned Maintenance","TSG Building Services Plc","692680","10/08/2020",30000942,60,0,"Asset Maintenance","General Builders","II","BACS","None",2020-06-30 00:00:00,"2020","05","0321-0207","M5114","Repairs-Cyclical (BHS)","B1001","Asset Maintenance"
"GUILDFORD BOROUGH COUNCIL","Responsive & Planned Maintenance","TSG Building Services Plc","692680","10/08/2020",30000942,60,0,"Asset Maintenance","General Builders","II","BACS","None",2020-06-30 00:00:00,"2020","05","0321-0207","M5114","Repairs-Cyclical (BHS)","B1001","Asset Maintenance"
"GUILDFORD BOROUGH COUNCIL","Responsive & Planned Maintenance","TSG Building Services Plc","692680","10/08/2020",30000942,60,0,"Asset Maintenance","General Builders","II","BACS","None",2020-06-30 00:00:00,"2020","05","0321-0207","M5114","Repairs-Cyclical (BHS)","B1001","Asset Maintenance"
"GUILDFORD BOROUGH COUNCIL","Responsive & Planned Maintenance","TSG Building Services Plc","692680","10/08/2020",30000942,60,0,"Asset Maintenance","General Builders","II","BACS","None",2020-06-30 00:00:00,"2020","05","0321-0207","M5114","Repairs-Cyclical (BHS)","B1001","Asset Maintenance"
"GUILDFORD BOROUGH COUNCIL","Responsive & Planned Maintenance","TSG Building Services Plc","692680","10/08/2020",30000942,60,0,"Asset Maintenance","General Builders","II","BACS","None",2020-06-30 00:00:00,"2020","05","0321-0207","M5114","Repairs-Cyclical (BHS)","B1001","Asset Maintenance"
"GUILDFORD BOROUGH COUNCIL","Responsive & Planned Maintenance","TSG Building Services Plc","692680","10/08/2020",30000942,60,0,"Asset Maintenance","General Builders","II","BACS","None",2020-06-30 00:00:00,"2020","05","0321-0207","M5114","Repairs-Cyclical (BHS)","B1001","Asset Maintenance"
"GUILDFORD BOROUGH COUNCIL","Responsive & Planned Maintenance","TSG Building Services Plc","692680","10/08/2020",30000942,60,0,"Asset Maintenance","General Builders","II","BACS","None",2020-06-30 00:00:00,"2020","05","0321-0207","M5114","Repairs-Cyclical (BHS)","B1001","Asset Maintenance"
"GUILDFORD BOROUGH COUNCIL","Responsive & Planned Maintenance","TSG Building Services Plc","692680","10/08/2020",30000942,60,0,"Asset Maintenance","General Builders","II","BACS","None",2020-06-30 00:00:00,"2020","05","0321-0207","M5114","Repairs-Cyclical (BHS)","B1001","Asset Maintenance"
"GUILDFORD BOROUGH COUNCIL","Responsive & Planned Maintenance","TSG Building Services Plc","692680","10/08/2020",30000942,60,0,"Asset Maintenance","General Builders","II","BACS","None",2020-06-30 00:00:00,"2020","05","0321-0207","M5114","Repairs-Cyclical (BHS)","B1001","Asset Maintenance"
"GUILDFORD BOROUGH COUNCIL","Responsive & Planned Maintenance","TSG Building Services Plc","692680","10/08/2020",30000942,60,0,"Asset Maintenance","General Builders","II","BACS","None",2020-06-30 00:00:00,"2020","05","0321-0207","M5114","Repairs-Cyclical (BHS)","B1001","Asset Maintenance"
"GUILDFORD BOROUGH COUNCIL","Responsive & Planned Maintenance","TSG Building Services Plc","692680","10/08/2020",30000942,60,0,"Asset Maintenance","General Builders","II","BACS","None",2020-06-30 00:00:00,"2020","05","0321-0207","M5114","Repairs-Cyclical (BHS)","B1001","Asset Maintenance"
"GUILDFORD BOROUGH COUNCIL","Responsive & Planned Maintenance","TSG Building Services Plc","692680","10/08/2020",30000942,60,0,"Asset Maintenance","General Builders","II","BACS","None",2020-06-30 00:00:00,"2020","05","0321-0207","M5114","Repairs-Cyclical (BHS)","B1001","Asset Maintenance"
"GUILDFORD BOROUGH COUNCIL","Responsive & Planned Maintenance","TSG Building Services Plc","692680","10/08/2020",30000942,60,0,"Asset Maintenance","General Builders","II","BACS","None",2020-06-30 00:00:00,"2020","05","0321-0207","M5114","Repairs-Cyclical (BHS)","B1001","Asset Maintenance"
"GUILDFORD BOROUGH COUNCIL","Responsive & Planned Maintenance","TSG Building Services Plc","692680","10/08/2020",30000942,60,0,"Asset Maintenance","General Builders","II","BACS","None",2020-06-30 00:00:00,"2020","05","0321-0207","M5114","Repairs-Cyclical (BHS)","B1001","Asset Maintenance"
"GUILDFORD BOROUGH COUNCIL","Responsive & Planned Maintenance","TSG Building Services Plc","692680","10/08/2020",30000942,60,0,"Asset Maintenance","General Builders","II","BACS","None",2020-06-30 00:00:00,"2020","05","0321-0207","M5114","Repairs-Cyclical (BHS)","B1001","Asset Maintenance"
"GUILDFORD BOROUGH COUNCIL","Responsive & Planned Maintenance","TSG Building Services Plc","692680","10/08/2020",30000942,60,0,"Asset Maintenance","General Builders","II","BACS","None",2020-06-30 00:00:00,"2020","05","0321-0207","M5114","Repairs-Cyclical (BHS)","B1001","Asset Maintenance"
"GUILDFORD BOROUGH COUNCIL","Responsive & Planned Maintenance","TSG Building Services Plc","692680","10/08/2020",30000942,60,0,"Asset Maintenance","General Builders","II","BACS","None",2020-06-30 00:00:00,"2020","05","0321-0207","M5114","Repairs-Cyclical (BHS)","B1001","Asset Maintenance"
"GUILDFORD BOROUGH COUNCIL","Responsive & Planned Maintenance","TSG Building Services Plc","692680","10/08/2020",30000942,60,0,"Asset Maintenance","General Builders","II","BACS","None",2020-06-30 00:00:00,"2020","05","0321-0207","M5114","Repairs-Cyclical (BHS)","B1001","Asset Maintenance"
"GUILDFORD BOROUGH COUNCIL","Responsive & Planned Maintenance","TSG Building Services Plc","692680","10/08/2020",30000942,60,0,"Asset Maintenance","General Builders","II","BACS","None",2020-06-30 00:00:00,"2020","05","0321-0207","M5114","Repairs-Cyclical (BHS)","B1001","Asset Maintenance"
"GUILDFORD BOROUGH COUNCIL","Responsive & Planned Maintenance","TSG Building Services Plc","692680","10/08/2020",30000942,60,0,"Asset Maintenance","General Builders","II","BACS","None",2020-06-30 00:00:00,"2020","05","0321-0207","M5114","Repairs-Cyclical (BHS)","B1001","Asset Maintenance"
"GUILDFORD BOROUGH COUNCIL","Responsive & Planned Maintenance","TSG Building Services Plc","692680","10/08/2020",30000942,60,0,"Asset Maintenance","General Builders","II","BACS","None",2020-06-30 00:00:00,"2020","05","0321-0207","M5114","Repairs-Cyclical (BHS)","B1001","Asset Maintenance"
"GUILDFORD BOROUGH COUNCIL","Responsive & Planned Maintenance","TSG Building Services Plc","692680","10/08/2020",30000942,60,0,"Asset Maintenance","General Builders","II","BACS","None",2020-06-30 00:00:00,"2020","05","0321-0207","M5114","Repairs-Cyclical (BHS)","B1001","Asset Maintenance"
"GUILDFORD BOROUGH COUNCIL","Responsive & Planned Maintenance","TSG Building Services Plc","692680","10/08/2020",30000942,60,0,"Asset Maintenance","General Builders","II","BACS","None",2020-06-30 00:00:00,"2020","05","0321-0207","M5114","Repairs-Cyclical (BHS)","B1001","Asset Maintenance"
"GUILDFORD BOROUGH COUNCIL","Responsive & Planned Maintenance","TSG Building Services Plc","692680","10/08/2020",30000942,60,0,"Asset Maintenance","General Builders","II","BACS","None",2020-06-30 00:00:00,"2020","05","0321-0207","M5114","Repairs-Cyclical (BHS)","B1001","Asset Maintenance"
"GUILDFORD BOROUGH COUNCIL","Responsive & Planned Maintenance","TSG Building Services Plc","692680","10/08/2020",30000942,60,0,"Asset Maintenance","General Builders","II","BACS","None",2020-06-30 00:00:00,"2020","05","0321-0207","M5114","Repairs-Cyclical (BHS)","B1001","Asset Maintenance"
"GUILDFORD BOROUGH COUNCIL","Responsive & Planned Maintenance","TSG Building Services Plc","692680","10/08/2020",30000942,60,0,"Asset Maintenance","General Builders","II","BACS","None",2020-06-30 00:00:00,"2020","05","0321-0207","M5114","Repairs-Cyclical (BHS)","B1001","Asset Maintenance"
"GUILDFORD BOROUGH COUNCIL","Responsive & Planned Maintenance","TSG Building Services Plc","692680","10/08/2020",30000942,60,0,"Asset Maintenance","General Builders","II","BACS","None",2020-06-30 00:00:00,"2020","05","0321-0207","M5114","Repairs-Cyclical (BHS)","B1001","Asset Maintenance"
"GUILDFORD BOROUGH COUNCIL","Responsive & Planned Maintenance","TSG Building Services Plc","692680","10/08/2020",30000942,60,0,"Asset Maintenance","General Builders","II","BACS","None",2020-06-30 00:00:00,"2020","05","0321-0207","M5114","Repairs-Cyclical (BHS)","B1001","Asset Maintenance"
"GUILDFORD BOROUGH COUNCIL","Responsive & Planned Maintenance","TSG Building Services Plc","692680","10/08/2020",30000942,60,0,"Asset Maintenance","General Builders","II","BACS","None",2020-06-30 00:00:00,"2020","05","0321-0207","M5114","Repairs-Cyclical (BHS)","B1001","Asset Maintenance"
"GUILDFORD BOROUGH COUNCIL","Responsive & Planned Maintenance","TSG Building Services Plc","692680","10/08/2020",30000942,60,0,"Asset Maintenance","General Builders","II","BACS","None",2020-06-30 00:00:00,"2020","05","0321-0207","M5114","Repairs-Cyclical (BHS)","B1001","Asset Maintenance"
"GUILDFORD BOROUGH COUNCIL","Responsive & Planned Maintenance","TSG Building Services Plc","692680","10/08/2020",30000942,60,0,"Asset Maintenance","General Builders","II","BACS","None",2020-06-30 00:00:00,"2020","05","0321-0207","M5114","Repairs-Cyclical (BHS)","B1001","Asset Maintenance"
"GUILDFORD BOROUGH COUNCIL","Responsive & Planned Maintenance","TSG Building Services Plc","692680","10/08/2020",30000942,60,0,"Asset Maintenance","General Builders","II","BACS","None",2020-06-30 00:00:00,"2020","05","0321-0207","M5114","Repairs-Cyclical (BHS)","B1001","Asset Maintenance"
"GUILDFORD BOROUGH COUNCIL","Responsive & Planned Maintenance","TSG Building Services Plc","692680","10/08/2020",30000942,60,0,"Asset Maintenance","General Builders","II","BACS","None",2020-06-30 00:00:00,"2020","05","0321-0207","M5114","Repairs-Cyclical (BHS)","B1001","Asset Maintenance"
"GUILDFORD BOROUGH COUNCIL","Responsive & Planned Maintenance","TSG Building Services Plc","692680","10/08/2020",30000942,60,0,"Asset Maintenance","General Builders","II","BACS","None",2020-06-30 00:00:00,"2020","05","0321-0207","M5114","Repairs-Cyclical (BHS)","B1001","Asset Maintenance"
"GUILDFORD BOROUGH COUNCIL","Responsive & Planned Maintenance","TSG Building Services Plc","692680","10/08/2020",30000942,60,0,"Asset Maintenance","General Builders","II","BACS","None",2020-06-30 00:00:00,"2020","05","0321-0207","M5114","Repairs-Cyclical (BHS)","B1001","Asset Maintenance"
"GUILDFORD BOROUGH COUNCIL","Responsive & Planned Maintenance","TSG Building Services Plc","692680","10/08/2020",30000942,60,0,"Asset Maintenance","General Builders","II","BACS","None",2020-06-30 00:00:00,"2020","05","0321-0207","M5114","Repairs-Cyclical (BHS)","B1001","Asset Maintenance"
"GUILDFORD BOROUGH COUNCIL","Responsive & Planned Maintenance","TSG Building Services Plc","692680","10/08/2020",30000942,60,0,"Asset Maintenance","General Builders","II","BACS","None",2020-06-30 00:00:00,"2020","05","0321-0207","M5114","Repairs-Cyclical (BHS)","B1001","Asset Maintenance"
"GUILDFORD BOROUGH COUNCIL","Responsive & Planned Maintenance","TSG Building Services Plc","692680","10/08/2020",30000942,60,0,"Asset Maintenance","General Builders","II","BACS","None",2020-06-30 00:00:00,"2020","05","0321-0207","M5114","Repairs-Cyclical (BHS)","B1001","Asset Maintenance"
"GUILDFORD BOROUGH COUNCIL","Responsive & Planned Maintenance","TSG Building Services Plc","692680","10/08/2020",30000942,60,0,"Asset Maintenance","General Builders","II","BACS","None",2020-06-30 00:00:00,"2020","05","0321-0207","M5114","Repairs-Cyclical (BHS)","B1001","Asset Maintenance"
"GUILDFORD BOROUGH COUNCIL","Responsive & Planned Maintenance","TSG Building Services Plc","692680","10/08/2020",30000942,60,0,"Asset Maintenance","General Builders","II","BACS","None",2020-06-30 00:00:00,"2020","05","0321-0207","M5114","Repairs-Cyclical (BHS)","B1001","Asset Maintenance"
"GUILDFORD BOROUGH COUNCIL","Responsive & Planned Maintenance","TSG Building Services Plc","692680","10/08/2020",30000942,60,0,"Asset Maintenance","General Builders","II","BACS","None",2020-06-30 00:00:00,"2020","05","0321-0207","M5114","Repairs-Cyclical (BHS)","B1001","Asset Maintenance"
"GUILDFORD BOROUGH COUNCIL","Responsive & Planned Maintenance","TSG Building Services Plc","692680","10/08/2020",30000942,60,0,"Asset Maintenance","General Builders","II","BACS","None",2020-06-30 00:00:00,"2020","05","0321-0207","M5114","Repairs-Cyclical (BHS)","B1001","Asset Maintenance"
"GUILDFORD BOROUGH COUNCIL","Responsive & Planned Maintenance","TSG Building Services Plc","692680","10/08/2020",30000942,60,0,"Asset Maintenance","General Builders","II","BACS","None",2020-06-30 00:00:00,"2020","05","0321-0207","M5114","Repairs-Cyclical (BHS)","B1001","Asset Maintenance"
"GUILDFORD BOROUGH COUNCIL","Responsive & Planned Maintenance","TSG Building Services Plc","692680","10/08/2020",30000942,60,0,"Asset Maintenance","General Builders","II","BACS","None",2020-06-30 00:00:00,"2020","05","0321-0207","M5114","Repairs-Cyclical (BHS)","B1001","Asset Maintenance"
"GUILDFORD BOROUGH COUNCIL","Responsive & Planned Maintenance","TSG Building Services Plc","692680","10/08/2020",30000942,60,0,"Asset Maintenance","General Builders","II","BACS","None",2020-06-30 00:00:00,"2020","05","0321-0207","M5114","Repairs-Cyclical (BHS)","B1001","Asset Maintenance"
"GUILDFORD BOROUGH COUNCIL","Responsive & Planned Maintenance","TSG Building Services Plc","692680","10/08/2020",30000942,60,0,"Asset Maintenance","General Builders","II","BACS","None",2020-06-30 00:00:00,"2020","05","0321-0207","M5114","Repairs-Cyclical (BHS)","B1001","Asset Maintenance"
"GUILDFORD BOROUGH COUNCIL","Responsive & Planned Maintenance","TSG Building Services Plc","692680","10/08/2020",30000942,60,0,"Asset Maintenance","General Builders","II","BACS","None",2020-06-30 00:00:00,"2020","05","0321-0207","M5114","Repairs-Cyclical (BHS)","B1001","Asset Maintenance"
"GUILDFORD BOROUGH COUNCIL","Responsive & Planned Maintenance","TSG Building Services Plc","692680","10/08/2020",30000942,60,0,"Asset Maintenance","General Builders","II","BACS","None",2020-06-30 00:00:00,"2020","05","0321-0207","M5114","Repairs-Cyclical (BHS)","B1001","Asset Maintenance"
"GUILDFORD BOROUGH COUNCIL","Responsive & Planned Maintenance","TSG Building Services Plc","692680","10/08/2020",30000942,60,0,"Asset Maintenance","General Builders","II","BACS","None",2020-06-30 00:00:00,"2020","05","0321-0207","M5114","Repairs-Cyclical (BHS)","B1001","Asset Maintenance"
"GUILDFORD BOROUGH COUNCIL","Responsive & Planned Maintenance","TSG Building Services Plc","692680","10/08/2020",30000942,60,0,"Asset Maintenance","General Builders","II","BACS","None",2020-06-30 00:00:00,"2020","05","0321-0207","M5114","Repairs-Cyclical (BHS)","B1001","Asset Maintenance"
"GUILDFORD BOROUGH COUNCIL","Responsive & Planned Maintenance","TSG Building Services Plc","692680","10/08/2020",30000942,60,0,"Asset Maintenance","General Builders","II","BACS","None",2020-06-30 00:00:00,"2020","05","0321-0207","M5114","Repairs-Cyclical (BHS)","B1001","Asset Maintenance"
"GUILDFORD BOROUGH COUNCIL","Responsive & Planned Maintenance","TSG Building Services Plc","692680","10/08/2020",30000942,60,0,"Asset Maintenance","General Builders","II","BACS","None",2020-06-30 00:00:00,"2020","05","0321-0207","M5114","Repairs-Cyclical (BHS)","B1001","Asset Maintenance"
"GUILDFORD BOROUGH COUNCIL","Responsive & Planned Maintenance","TSG Building Services Plc","692680","10/08/2020",30000942,60,0,"Asset Maintenance","General Builders","II","BACS","None",2020-06-30 00:00:00,"2020","05","0321-0207","M5114","Repairs-Cyclical (BHS)","B1001","Asset Maintenance"
"GUILDFORD BOROUGH COUNCIL","Responsive & Planned Maintenance","TSG Building Services Plc","692680","10/08/2020",30000942,60,0,"Asset Maintenance","General Builders","II","BACS","None",2020-06-30 00:00:00,"2020","05","0321-0207","M5114","Repairs-Cyclical (BHS)","B1001","Asset Maintenance"
"GUILDFORD BOROUGH COUNCIL","Responsive & Planned Maintenance","TSG Building Services Plc","692680","10/08/2020",30000942,60,0,"Asset Maintenance","General Builders","II","BACS","None",2020-06-30 00:00:00,"2020","05","0321-0207","M5114","Repairs-Cyclical (BHS)","B1001","Asset Maintenance"
"GUILDFORD BOROUGH COUNCIL","Responsive & Planned Maintenance","TSG Building Services Plc","692680","10/08/2020",30000942,60,0,"Asset Maintenance","General Builders","II","BACS","None",2020-06-30 00:00:00,"2020","05","0321-0207","M5114","Repairs-Cyclical (BHS)","B1001","Asset Maintenance"
"GUILDFORD BOROUGH COUNCIL","Responsive & Planned Maintenance","TSG Building Services Plc","692680","10/08/2020",30000942,60,0,"Asset Maintenance","General Builders","II","BACS","None",2020-06-30 00:00:00,"2020","05","0321-0207","M5114","Repairs-Cyclical (BHS)","B1001","Asset Maintenance"
"GUILDFORD BOROUGH COUNCIL","Responsive & Planned Maintenance","TSG Building Services Plc","692680","10/08/2020",30000942,60,0,"Asset Maintenance","General Builders","II","BACS","None",2020-06-30 00:00:00,"2020","05","0321-0207","M5114","Repairs-Cyclical (BHS)","B1001","Asset Maintenance"
"GUILDFORD BOROUGH COUNCIL","Responsive & Planned Maintenance","TSG Building Services Plc","692680","10/08/2020",30000942,60,0,"Asset Maintenance","General Builders","II","BACS","None",2020-06-30 00:00:00,"2020","05","0321-0207","M5114","Repairs-Cyclical (BHS)","B1001","Asset Maintenance"
"GUILDFORD BOROUGH COUNCIL","Responsive & Planned Maintenance","TSG Building Services Plc","692680","10/08/2020",30000942,60,0,"Asset Maintenance","General Builders","II","BACS","None",2020-06-30 00:00:00,"2020","05","0321-0207","M5114","Repairs-Cyclical (BHS)","B1001","Asset Maintenance"
"GUILDFORD BOROUGH COUNCIL","Responsive & Planned Maintenance","TSG Building Services Plc","692680","10/08/2020",30000942,60,0,"Asset Maintenance","General Builders","II","BACS","None",2020-06-30 00:00:00,"2020","05","0321-0207","M5114","Repairs-Cyclical (BHS)","B1001","Asset Maintenance"
"GUILDFORD BOROUGH COUNCIL","Responsive & Planned Maintenance","TSG Building Services Plc","692680","10/08/2020",30000942,60,0,"Asset Maintenance","General Builders","II","BACS","None",2020-06-30 00:00:00,"2020","05","0321-0207","M5114","Repairs-Cyclical (BHS)","B1001","Asset Maintenance"
"GUILDFORD BOROUGH COUNCIL","Responsive & Planned Maintenance","TSG Building Services Plc","692680","10/08/2020",30000942,60,0,"Asset Maintenance","General Builders","II","BACS","None",2020-06-30 00:00:00,"2020","05","0321-0207","M5114","Repairs-Cyclical (BHS)","B1001","Asset Maintenance"
"GUILDFORD BOROUGH COUNCIL","Responsive & Planned Maintenance","TSG Building Services Plc","692680","10/08/2020",30000942,60,0,"Asset Maintenance","General Builders","II","BACS","None",2020-06-30 00:00:00,"2020","05","0321-0207","M5114","Repairs-Cyclical (BHS)","B1001","Asset Maintenance"
"GUILDFORD BOROUGH COUNCIL","Responsive & Planned Maintenance","TSG Building Services Plc","692680","10/08/2020",30000942,60,0,"Asset Maintenance","General Builders","II","BACS","None",2020-06-30 00:00:00,"2020","05","0321-0207","M5114","Repairs-Cyclical (BHS)","B1001","Asset Maintenance"
"GUILDFORD BOROUGH COUNCIL","Responsive & Planned Maintenance","TSG Building Services Plc","692680","10/08/2020",30000942,60,0,"Asset Maintenance","General Builders","II","BACS","None",2020-06-30 00:00:00,"2020","05","0321-0207","M5114","Repairs-Cyclical (BHS)","B1001","Asset Maintenance"
"GUILDFORD BOROUGH COUNCIL","Responsive & Planned Maintenance","TSG Building Services Plc","692680","10/08/2020",30000942,60,0,"Asset Maintenance","General Builders","II","BACS","None",2020-06-30 00:00:00,"2020","05","0321-0207","M5114","Repairs-Cyclical (BHS)","B1001","Asset Maintenance"
"GUILDFORD BOROUGH COUNCIL","Responsive & Planned Maintenance","TSG Building Services Plc","692680","10/08/2020",30000942,60,0,"Asset Maintenance","General Builders","II","BACS","None",2020-06-30 00:00:00,"2020","05","0321-0207","M5114","Repairs-Cyclical (BHS)","B1001","Asset Maintenance"
"GUILDFORD BOROUGH COUNCIL","Responsive & Planned Maintenance","TSG Building Services Plc","692680","10/08/2020",30000942,60,0,"Asset Maintenance","General Builders","II","BACS","None",2020-06-30 00:00:00,"2020","05","0321-0207","M5114","Repairs-Cyclical (BHS)","B1001","Asset Maintenance"
"GUILDFORD BOROUGH COUNCIL","Responsive & Planned Maintenance","TSG Building Services Plc","692680","10/08/2020",30000942,60,0,"Asset Maintenance","General Builders","II","BACS","None",2020-06-30 00:00:00,"2020","05","0321-0207","M5114","Repairs-Cyclical (BHS)","B1001","Asset Maintenance"
"GUILDFORD BOROUGH COUNCIL","Responsive & Planned Maintenance","TSG Building Services Plc","692680","10/08/2020",30000942,60,0,"Asset Maintenance","General Builders","II","BACS","None",2020-06-30 00:00:00,"2020","05","0321-0207","M5114","Repairs-Cyclical (BHS)","B1001","Asset Maintenance"
"GUILDFORD BOROUGH COUNCIL","Responsive & Planned Maintenance","TSG Building Services Plc","692680","10/08/2020",30000942,60,0,"Asset Maintenance","General Builders","II","BACS","None",2020-06-30 00:00:00,"2020","05","0321-0207","M5114","Repairs-Cyclical (BHS)","B1001","Asset Maintenance"
"GUILDFORD BOROUGH COUNCIL","Responsive & Planned Maintenance","TSG Building Services Plc","692680","10/08/2020",30000942,60,0,"Asset Maintenance","General Builders","II","BACS","None",2020-06-30 00:00:00,"2020","05","0321-0207","M5114","Repairs-Cyclical (BHS)","B1001","Asset Maintenance"
"GUILDFORD BOROUGH COUNCIL","Responsive & Planned Maintenance","TSG Building Services Plc","692680","10/08/2020",30000942,60,0,"Asset Maintenance","General Builders","II","BACS","None",2020-06-30 00:00:00,"2020","05","0321-0207","M5114","Repairs-Cyclical (BHS)","B1001","Asset Maintenance"
"GUILDFORD BOROUGH COUNCIL","Responsive & Planned Maintenance","TSG Building Services Plc","692680","10/08/2020",30000942,60,0,"Asset Maintenance","General Builders","II","BACS","None",2020-06-30 00:00:00,"2020","05","0321-0207","M5114","Repairs-Cyclical (BHS)","B1001","Asset Maintenance"
"GUILDFORD BOROUGH COUNCIL","Responsive & Planned Maintenance","TSG Building Services Plc","692680","10/08/2020",30000942,60,0,"Asset Maintenance","General Builders","II","BACS","None",2020-06-30 00:00:00,"2020","05","0321-0207","M5114","Repairs-Cyclical (BHS)","B1001","Asset Maintenance"
"GUILDFORD BOROUGH COUNCIL","Responsive & Planned Maintenance","TSG Building Services Plc","692680","10/08/2020",30000942,60,0,"Asset Maintenance","General Builders","II","BACS","None",2020-06-30 00:00:00,"2020","05","0321-0207","M5114","Repairs-Cyclical (BHS)","B1001","Asset Maintenance"
"GUILDFORD BOROUGH COUNCIL","Responsive & Planned Maintenance","TSG Building Services Plc","692680","10/08/2020",30000942,60,0,"Asset Maintenance","General Builders","II","BACS","None",2020-06-30 00:00:00,"2020","05","0321-0207","M5114","Repairs-Cyclical (BHS)","B1001","Asset Maintenance"
"GUILDFORD BOROUGH COUNCIL","Responsive & Planned Maintenance","TSG Building Services Plc","692680","10/08/2020",30000942,60,0,"Asset Maintenance","General Builders","II","BACS","None",2020-06-30 00:00:00,"2020","05","0321-0207","M5114","Repairs-Cyclical (BHS)","B1001","Asset Maintenance"
"GUILDFORD BOROUGH COUNCIL","Responsive & Planned Maintenance","TSG Building Services Plc","692680","10/08/2020",30000942,60,0,"Asset Maintenance","General Builders","II","BACS","None",2020-06-30 00:00:00,"2020","05","0321-0207","M5114","Repairs-Cyclical (BHS)","B1001","Asset Maintenance"
"GUILDFORD BOROUGH COUNCIL","Responsive & Planned Maintenance","TSG Building Services Plc","692680","10/08/2020",30000942,60,0,"Asset Maintenance","General Builders","II","BACS","None",2020-06-30 00:00:00,"2020","05","0321-0207","M5114","Repairs-Cyclical (BHS)","B1001","Asset Maintenance"
"GUILDFORD BOROUGH COUNCIL","Responsive & Planned Maintenance","TSG Building Services Plc","692680","10/08/2020",30000942,60,0,"Asset Maintenance","General Builders","II","BACS","None",2020-06-30 00:00:00,"2020","05","0321-0207","M5114","Repairs-Cyclical (BHS)","B1001","Asset Maintenance"
"GUILDFORD BOROUGH COUNCIL","Responsive & Planned Maintenance","TSG Building Services Plc","692680","10/08/2020",30000942,60,0,"Asset Maintenance","General Builders","II","BACS","None",2020-06-30 00:00:00,"2020","05","0321-0207","M5114","Repairs-Cyclical (BHS)","B1001","Asset Maintenance"
"GUILDFORD BOROUGH COUNCIL","Responsive & Planned Maintenance","TSG Building Services Plc","692680","10/08/2020",30000942,60,0,"Asset Maintenance","General Builders","II","BACS","None",2020-06-30 00:00:00,"2020","05","0321-0207","M5114","Repairs-Cyclical (BHS)","B1001","Asset Maintenance"
"GUILDFORD BOROUGH COUNCIL","Responsive & Planned Maintenance","TSG Building Services Plc","692680","10/08/2020",30000942,60,0,"Asset Maintenance","General Builders","II","BACS","None",2020-06-30 00:00:00,"2020","05","0321-0207","M5114","Repairs-Cyclical (BHS)","B1001","Asset Maintenance"
"GUILDFORD BOROUGH COUNCIL","Responsive & Planned Maintenance","K&T Heating Services Ltd (CIS)","930000","10/08/2020",30000943,1369.71,0,"Asset Maintenance","Plumbing, Heating And Ac (Hvac) Contractors","II","BACS","None",2020-01-07 00:00:00,"2020","05","SI36276","M5114","Repairs-Cyclical (BHS)","B1001","Asset Maintenance"
"GUILDFORD BOROUGH COUNCIL","Affordable Hsg - Site Prep Etc","PJC Consultancy Ltd","984400","10/08/2020",30000944,650,0,"Consultants Fees","Other Business And Management Consultants","II","BACS","None",2020-06-29 00:00:00,"2020","05","7839","N55023","Clover Road Garages","1221","Consultants Fees"
"GUILDFORD BOROUGH COUNCIL","Responsive & Planned Maintenance","Kone Plc","904300","10/08/2020",30000945,3661.54,0,"Asset Maintenance","Lift Contractors","II","BACS","None",2020-06-18 00:00:00,"2020","05","7705327","M5106","Repairs-Shelt-Responsive (BHS)","B1001","Asset Maintenance"
"GUILDFORD BOROUGH COUNCIL","Off Street Parking","Kone Plc","904300","10/08/2020",30000946,80.06,0,"Asset Maintenance","Lift Contractors","II","BACS","None",2020-06-18 00:00:00,"2020","05","38315122","B2291","York Road Mscp","B1001","Asset Maintenance"
"GUILDFORD BOROUGH COUNCIL","Responsive & Planned Maintenance","Stannah Limited (CIS)","913700","15/09/2020",30000947,121.56,0,"Asset Maintenance","Stairlift Suppliers","II","BACS","None",2020-09-06 00:00:00,"2020","05","1085197339","M5113","Repairs-Responsive (BHS)","B1001","Asset Maintenance"
"GUILDFORD BOROUGH COUNCIL","Renovations","Stannah Limited (CIS)","913700","06/10/2020",30000948,4819,0,"Contractor Payments","Stairlift Suppliers","II","BACS","None",2020-10-06 00:00:00,"2020","05","1085197638","N40282","Disabled adaptations 2020-21","1233","Contractor Payments"
"GUILDFORD BOROUGH COUNCIL","Responsive & Planned Maintenance","Stannah Limited (CIS)","913700","10/08/2020",30000949,106.05,0,"Asset Maintenance","Stairlift Suppliers","II","BACS","None",2020-06-22 00:00:00,"2020","05","1085200577","M5113","Repairs-Responsive (BHS)","B1001","Asset Maintenance"
"GUILDFORD BOROUGH COUNCIL","Responsive & Planned Maintenance","Stannah Limited (CIS)","913700","10/08/2020",30000950,106.05,0,"Asset Maintenance","Stairlift Suppliers","II","BACS","None",2020-06-24 00:00:00,"2020","05","1085201660","M5113","Repairs-Responsive (BHS)","B1001","Asset Maintenance"
"GUILDFORD BOROUGH COUNCIL","Vehicle Maintenance","Partsplusuk","984320","01/09/2020",30000951,15.14,0,"Repair And Maintenance Of Vehicles","Third Party Supplier","II","BACS","None",2020-07-30 00:00:00,"2020","05","13628953","K5551","Fleet Workshops","C1002","Repair And Maintenance Of Vehicles"
"GUILDFORD BOROUGH COUNCIL","Building Maintenance","Cinnamon Construction Limited (CIS)","921860","10/08/2020",30000952,2432.25,0,"Services","General Builders","II","BACS","None",2020-08-03 00:00:00,"2020","05","X0068127/17","K1515","Building Maintenance","D6004","Services"
"GUILDFORD BOROUGH COUNCIL","Vehicle Maintenance","Dennis Eagle Limited","168100","03/09/2020",30000954,209.65,0,"Repair And Maintenance Of Vehicles","Refuse Vehicle Suppliers","II","BACS","None",2020-08-03 00:00:00,"2020","05","DE11331753","K5551","Fleet Workshops","C1002","Repair And Maintenance Of Vehicles"
"GUILDFORD BOROUGH COUNCIL","Engineeing and Transportation Services","The Oyster Partnership Ltd","814220","08/09/2020",30000956,225,0,"Agency","Other Recruitment Agencies And Service Providers","II","BACS","None",2020-08-05 00:00:00,"2020","05","1079590","G5538","Engineering And Transportation Services","A5191","Agency"
"GUILDFORD BOROUGH COUNCIL","Major Projects","The Oyster Partnership Ltd","814220","08/09/2020",30000956,225,0,"Agency","Other Recruitment Agencies And Service Providers","II","BACS","None",2020-08-05 00:00:00,"2020","05","1079590","F5530","Major Projects","A5191","Agency"
"GUILDFORD BOROUGH COUNCIL","Major Projects","The Oyster Partnership Ltd","814220","08/09/2020",30000956,225,0,"Agency","Other Recruitment Agencies And Service Providers","II","BACS","None",2020-08-05 00:00:00,"2020","05","1079590","F5530","Major Projects","A5191","Agency"
"GUILDFORD BOROUGH COUNCIL","Major Projects","The Oyster Partnership Ltd","814220","08/09/2020",30000956,112.5,0,"Agency","Other Recruitment Agencies And Service Providers","II","BACS","None",2020-08-05 00:00:00,"2020","05","1079590","F5530","Major Projects","A5191","Agency"
"GUILDFORD BOROUGH COUNCIL","Executive - Miscellaneous","The Oyster Partnership Ltd","814220","08/09/2020",30000956,225,0,"Agency Staff","Other Recruitment Agencies And Service Providers","II","BACS","None",2020-08-05 00:00:00,"2020","05","1079590","P79037","Ash Road Bridge","1222","Agency Staff"
"GUILDFORD BOROUGH COUNCIL","Executive - Miscellaneous","The Oyster Partnership Ltd","814220","08/09/2020",30000956,225,0,"Agency Staff","Other Recruitment Agencies And Service Providers","II","BACS","None",2020-08-05 00:00:00,"2020","05","1079590","P79027","Walnut Tree Bridge Replacement","1222","Agency Staff"
"GUILDFORD BOROUGH COUNCIL","Executive - Miscellaneous","The Oyster Partnership Ltd","814220","08/09/2020",30000956,225,0,"Agency Staff","Other Recruitment Agencies And Service Providers","II","BACS","None",2020-08-05 00:00:00,"2020","05","1079590","P79033","A331 Hotspots","1222","Agency Staff"
"GUILDFORD BOROUGH COUNCIL","Executive - Miscellaneous","The Oyster Partnership Ltd","814220","08/09/2020",30000956,225,0,"Agency Staff","Other Recruitment Agencies And Service Providers","II","BACS","None",2020-08-05 00:00:00,"2020","05","1079590","P79033","A331 Hotspots","1222","Agency Staff"
"GUILDFORD BOROUGH COUNCIL","Executive - Miscellaneous","The Oyster Partnership Ltd","814220","08/09/2020",30000956,225,0,"Agency Staff","Other Recruitment Agencies And Service Providers","II","BACS","None",2020-08-05 00:00:00,"2020","05","1079590","P79032","SMC (West) Phase 1","1222","Agency Staff"
"GUILDFORD BOROUGH COUNCIL","Executive - Miscellaneous","The Oyster Partnership Ltd","814220","08/09/2020",30000956,112.5,0,"Agency Staff","Other Recruitment Agencies And Service Providers","II","BACS","None",2020-08-05 00:00:00,"2020","05","1079590","P79025","Guildford Park Redevelopment","1222","Agency Staff"
"GUILDFORD BOROUGH COUNCIL","Executive - Miscellaneous","The Oyster Partnership Ltd","814220","08/09/2020",30000956,225,0,"Agency Staff","Other Recruitment Agencies And Service Providers","II","BACS","None",2020-08-05 00:00:00,"2020","05","1079590","P79023","Guild Town Centre Regeneration","1222","Agency Staff"
"GUILDFORD BOROUGH COUNCIL","Lead Specialist - HR","GB Group Plc","914540","01/09/2020",30000957,54,0,"Staff Costs","","II","BACS","None",2020-07-31 00:00:00,"2020","05","361630","G2555","HR Services","A7100","Staff Costs"
"GUILDFORD BOROUGH COUNCIL","Lead Specialist - HR","GB Group Plc","914540","01/09/2020",30000957,69,0,"Staff Costs","","II","BACS","None",2020-07-31 00:00:00,"2020","05","361630","G2555","HR Services","A7100","Staff Costs"
"GUILDFORD BOROUGH COUNCIL","Property","The Oyster Partnership Ltd","814220","08/09/2020",30000958,1800,0,"Agency Staff","Other Recruitment Agencies And Service Providers","II","BACS","None",2020-08-05 00:00:00,"2020","05","1079593","P74040","Slyfield Area Regeneration Project","1222","Agency Staff"
"GUILDFORD BOROUGH COUNCIL","Major Projects","The Oyster Partnership Ltd","814220","08/09/2020",30000958,1200,0,"Agency","Other Recruitment Agencies And Service Providers","II","BACS","None",2020-08-05 00:00:00,"2020","05","1079593","F5530","Major Projects","A5191","Agency"
"GUILDFORD BOROUGH COUNCIL","Vehicle Maintenance","Southern Electromotive Distribution Ltd","760300","03/09/2020",30000960,74.95,0,"Repair And Maintenance Of Vehicles","Car And Van Servicing And Maintenance Providers","II","BACS","None",2020-08-04 00:00:00,"2020","05","395708","K5551","Fleet Workshops","C1002","Repair And Maintenance Of Vehicles"
"GUILDFORD BOROUGH COUNCIL","Spectrum","A P Williamson Consultants Ltd","775140","08/09/2020",30000962,2390.22,0,"Consultants Fees","Roofers","II","BACS","None",2020-08-05 00:00:00,"2020","05","1403","P22062","Spectrum Roof","1221","Consultants Fees"
"GUILDFORD BOROUGH COUNCIL","Vehicle Maintenance","Charters Of Aldershot Limited","128600","03/09/2020",30000963,293.4,0,"Repair And Maintenance Of Vehicles","Third Party Supplier","II","BACS","None",2020-08-04 00:00:00,"2020","05","10249661","K5551","Fleet Workshops","C1002","Repair And Maintenance Of Vehicles"
"GUILDFORD BOROUGH COUNCIL","Inventories","M E Duffell Ltd","510200","01/09/2020",30000965,1035.32,0,"Purchases","Keys And Locksmiths","II","BACS","None",2020-07-28 00:00:00,"2020","05","I2086629","I01001","Stocks","2591","Purchases"
"GUILDFORD BOROUGH COUNCIL","Homelessness Support","Project 114 Ltd","847120","03/09/2020",30000968,665,0,"Emergency Accomodation","Property Letting And Estate Agents","II","BACS","None",2020-08-03 00:00:00,"2020","05","3031","C3311","Homelessness","D8009","Emergency Accomodation"
"GUILDFORD BOROUGH COUNCIL","Inventories","M E Duffell Ltd","510200","01/09/2020",30000969,127.23,0,"Purchases","Keys And Locksmiths","II","BACS","None",2020-07-22 00:00:00,"2020","05","I2084012","I01001","Stocks","2591","Purchases"
"GUILDFORD BOROUGH COUNCIL","Building Maintenance","Cinnamon Construction Limited (CIS)","921860","10/08/2020",30000970,1500,0,"Services","General Builders","II","BACS","None",2020-07-28 00:00:00,"2020","05","X0068127/5","K1515","Building Maintenance","D6004","Services"
"GUILDFORD BOROUGH COUNCIL","Inventories","Akw Medi-Care Limited","178400","01/09/2020",30000973,240.02,0,"Purchases","Mobility Disability Equipment Suppliers","II","BACS","None",2020-07-29 00:00:00,"2020","05","1843420","I01001","Stocks","2591","Purchases"
"GUILDFORD BOROUGH COUNCIL","Vehicle Maintenance","Charters Of Aldershot Limited","128600","01/09/2020",30001063,109.6,0,"Repair And Maintenance Of Vehicles","Third Party Supplier","II","BACS","None",2020-07-24 00:00:00,"2020","05","10249567","K5551","Fleet Workshops","C1002","Repair And Maintenance Of Vehicles"
"GUILDFORD BOROUGH COUNCIL","Inventories","Swift Industrial Supplies Ltd","783800","01/09/2020",30001066,-39.5,0,"Purchases","Personal Protective Equipment (Ppe) Suppliers","II","BACS","None",2020-07-29 00:00:00,"2020","05","CN25243","I01001","Stocks","2591","Purchases"
"GUILDFORD BOROUGH COUNCIL","Countryside and Parks Services","CTG Enterprises Ltd","795800","13/08/2020",30001068,1400,0,"Materials","Other Cleaning And Janitorial Service Providers","II","BACS","None",2020-08-01 00:00:00,"2020","05","GU1669GBC","A1100","Horticulture","D2003","Materials"
"GUILDFORD BOROUGH COUNCIL","Vehicle Maintenance","Motormech Gfd Ltd","418700","13/08/2020",30001069,48,0,"Repair And Maintenance Of Vehicles","Car And Van Parts Suppliers","II","BACS","None",2020-08-03 00:00:00,"2020","05","241091","K5551","Fleet Workshops","C1002","Repair And Maintenance Of Vehicles"
"GUILDFORD BOROUGH COUNCIL","Inventories","Swift Industrial Supplies Ltd","783800","01/09/2020",30001070,-50.5,0,"Purchases","Personal Protective Equipment (Ppe) Suppliers","II","BACS","None",2020-07-31 00:00:00,"2020","05","CN25264","I01001","Stocks","2591","Purchases"
"GUILDFORD BOROUGH COUNCIL","Vehicle Maintenance","Dennis Eagle Limited","168100","03/09/2020",30001071,82.71,0,"Repair And Maintenance Of Vehicles","Refuse Vehicle Suppliers","II","BACS","None",2020-08-03 00:00:00,"2020","05","DE11331754","K5551","Fleet Workshops","C1002","Repair And Maintenance Of Vehicles"
"GUILDFORD BOROUGH COUNCIL","Spectrum","A P Williamson Consultants Ltd","775140","08/09/2020",30001072,3940.66,0,"Consultants Fees","Roofers","II","BACS","None",2020-08-05 00:00:00,"2020","05","1404","P22062","Spectrum Roof","1221","Consultants Fees"
"GUILDFORD BOROUGH COUNCIL","Vehicle Maintenance","Southern Electromotive Distribution Ltd","760300","01/09/2020",30001075,368.16,0,"Repair And Maintenance Of Vehicles","Car And Van Servicing And Maintenance Providers","II","BACS","None",2020-07-31 00:00:00,"2020","05","395541","K5551","Fleet Workshops","C1002","Repair And Maintenance Of Vehicles"
"GUILDFORD BOROUGH COUNCIL","Vehicle Maintenance","Southern Electromotive Distribution Ltd","760300","01/09/2020",30001077,20.1,0,"Repair And Maintenance Of Vehicles","Car And Van Servicing And Maintenance Providers","II","BACS","None",2020-07-30 00:00:00,"2020","05","395447","K5551","Fleet Workshops","C1002","Repair And Maintenance Of Vehicles"
"GUILDFORD BOROUGH COUNCIL","Vehicle Maintenance","Southern Electromotive Distribution Ltd","760300","01/09/2020",30001078,21.07,0,"Repair And Maintenance Of Vehicles","Car And Van Servicing And Maintenance Providers","II","BACS","None",2020-07-30 00:00:00,"2020","05","395488","K5551","Fleet Workshops","C1002","Repair And Maintenance Of Vehicles"
"GUILDFORD BOROUGH COUNCIL","Vehicle Maintenance","Geesink Norba Ltd","214500","08/09/2020",30001080,760.36,0,"Repair And Maintenance Of Vehicles","Waste Disposal Equipment Suppliers","II","BACS","None",2020-08-05 00:00:00,"2020","05","90025072","K5551","Fleet Workshops","C1002","Repair And Maintenance Of Vehicles"
"GUILDFORD BOROUGH COUNCIL","Inventories","M E Duffell Ltd","510200","01/09/2020",30001081,36.81,0,"Purchases","Keys And Locksmiths","II","BACS","None",2020-07-30 00:00:00,"2020","05","I2087906","I01001","Stocks","2591","Purchases"
"GUILDFORD BOROUGH COUNCIL","Vehicle Maintenance","Southern Electromotive Distribution Ltd","760300","03/09/2020",30001082,40.31,0,"Repair And Maintenance Of Vehicles","Car And Van Servicing And Maintenance Providers","II","BACS","None",2020-08-03 00:00:00,"2020","05","395580","K5551","Fleet Workshops","C1002","Repair And Maintenance Of Vehicles"
"GUILDFORD BOROUGH COUNCIL","Crematorium","Buxton Building Contractors Limited","789810","13/08/2020",30001084,45653.3,0,"Consultants Fees","General Builders","II","BACS","None",2020-08-04 00:00:00,"2020","05","CSI000285","P05009","Refurbish/Rebuild Crematorium","1221","Consultants Fees"
"GUILDFORD BOROUGH COUNCIL","Inventories","Akw Medi-Care Limited","178400","01/09/2020",30001085,184.99,0,"Purchases","Mobility Disability Equipment Suppliers","II","BACS","None",2020-07-28 00:00:00,"2020","05","1842875","I01001","Stocks","2591","Purchases"
"GUILDFORD BOROUGH COUNCIL","Building Maintenance","Davis Property Services GU Limited (CIS)","946970","10/08/2020",30001086,1713.35,0,"Services","Roofers","II","BACS","None",2020-07-31 00:00:00,"2020","05","X0068126/18","K1515","Building Maintenance","D6004","Services"
"GUILDFORD BOROUGH COUNCIL","Affordable Housing","Vivid Resourcing Limited","856800","08/09/2020",30001088,1926,0,"Agency","Other Recruitment Agencies And Service Providers","II","BACS","None",2020-08-05 00:00:00,"2020","05","49034","C4111","Affordable Housing Development","A5191","Agency"
"GUILDFORD BOROUGH COUNCIL","Vehicle Maintenance","Charters Of Aldershot Limited","128600","01/09/2020",30001089,35.28,0,"Repair And Maintenance Of Vehicles","Third Party Supplier","II","BACS","None",2020-06-30 00:00:00,"2020","05","10249389","K5551","Fleet Workshops","C1002","Repair And Maintenance Of Vehicles"
"GUILDFORD BOROUGH COUNCIL","Inventories","Connections UK","145000","01/09/2020",30001091,304.2,0,"Purchases","Event Management Agencies","II","BACS","None",2020-07-29 00:00:00,"2020","05","3049","I01001","Stocks","2591","Purchases"
"GUILDFORD BOROUGH COUNCIL","Building Maintenance","Cinnamon Construction Limited (CIS)","921860","10/08/2020",30001094,7269,0,"Services","General Builders","II","BACS","None",2020-07-28 00:00:00,"2020","05","X0068127/16","K1515","Building Maintenance","D6004","Services"
"GUILDFORD BOROUGH COUNCIL","Vehicle Maintenance","Motormech Gfd Ltd","418700","13/08/2020",30001096,48,0,"Repair And Maintenance Of Vehicles","Car And Van Parts Suppliers","II","BACS","None",2020-07-27 00:00:00,"2020","05","240132","K5551","Fleet Workshops","C1002","Repair And Maintenance Of Vehicles"
"GUILDFORD BOROUGH COUNCIL","Executive - Miscellaneous","Solace In Business Ltd","756000","17/08/2020",30001097,750,0,"Agency Staff","Professional Associations","II","BACS","None",2020-06-11 00:00:00,"2020","05","0000010766","P79027","Walnut Tree Bridge Replacement","1222","Agency Staff"
"GUILDFORD BOROUGH COUNCIL","Executive - Miscellaneous","The Oyster Partnership Ltd","814220","08/09/2020",30001098,1392,0,"Agency Staff","Other Recruitment Agencies And Service Providers","II","BACS","None",2020-08-05 00:00:00,"2020","05","1079592","P79100","Wuv - Allotment Relocation","1222","Agency Staff"
"GUILDFORD BOROUGH COUNCIL","Property","The Oyster Partnership Ltd","814220","08/09/2020",30001098,1392,0,"Agency Staff","Other Recruitment Agencies And Service Providers","II","BACS","None",2020-08-05 00:00:00,"2020","05","1079592","P74040","Slyfield Area Regeneration Project","1222","Agency Staff"
"GUILDFORD BOROUGH COUNCIL","Property","The Oyster Partnership Ltd","814220","08/09/2020",30001098,696,0,"Agency Staff","Other Recruitment Agencies And Service Providers","II","BACS","None",2020-08-05 00:00:00,"2020","05","1079592","P74040","Slyfield Area Regeneration Project","1222","Agency Staff"
"GUILDFORD BOROUGH COUNCIL","Building Maintenance","Chambers Waste Management Plc","127500","27/08/2020",30001099,52.3,0,"Services","Other Waste Disposal Suppliers","II","BACS","None",2020-07-12 00:00:00,"2020","05","P418691","K1515","Building Maintenance","D6004","Services"
"GUILDFORD BOROUGH COUNCIL","Executive - Miscellaneous","The Oyster Partnership Ltd","814220","08/09/2020",30001101,1450,0,"Agency Staff","Other Recruitment Agencies And Service Providers","II","BACS","None",2020-08-05 00:00:00,"2020","05","1079591","P79023","Guild Town Centre Regeneration","1222","Agency Staff"
"GUILDFORD BOROUGH COUNCIL","Major Projects","The Oyster Partnership Ltd","814220","08/09/2020",30001101,1305,0,"Agency","Other Recruitment Agencies And Service Providers","II","BACS","None",2020-08-05 00:00:00,"2020","05","1079591","F5530","Major Projects","A5191","Agency"
"GUILDFORD BOROUGH COUNCIL","Major Projects","The Oyster Partnership Ltd","814220","08/09/2020",30001101,145,0,"Agency","Other Recruitment Agencies And Service Providers","II","BACS","None",2020-08-05 00:00:00,"2020","05","1079591","F5530","Major Projects","A5191","Agency"
"GUILDFORD BOROUGH COUNCIL","Vehicle Maintenance","Charters Of Aldershot Limited","128600","01/09/2020",30001102,10.06,0,"Repair And Maintenance Of Vehicles","Third Party Supplier","II","BACS","None",2020-07-28 00:00:00,"2020","05","10249594","K5551","Fleet Workshops","C1002","Repair And Maintenance Of Vehicles"
"GUILDFORD BOROUGH COUNCIL","Building Maintenance","AMG Electrical - Closed see account 1000451","268000","20/08/2020",30001104,2039.13,0,"Services","Electricians","II","BACS","None",2020-07-28 00:00:00,"2020","05","2007-54","K1515","Building Maintenance","D6004","Services"
"GUILDFORD BOROUGH COUNCIL","Building Maintenance","AMG Electrical - Closed see account 1000451","268000","20/08/2020",30001104,325.12,0,"Materials","Electricians","II","BACS","None",2020-07-28 00:00:00,"2020","05","2007-54","K1515","Building Maintenance","D2003","Materials"
"GUILDFORD BOROUGH COUNCIL","Inventories","Howden Joinery Limited","247800","01/09/2020",30001106,-385.49,0,"Purchases","Joiners And Carpenters","II","BACS","None",2020-08-05 00:00:00,"2020","05","971/0189561","I01001","Stocks","2591","Purchases"
"GUILDFORD BOROUGH COUNCIL","Major Projects","The Oyster Partnership Ltd","814220","08/09/2020",30001107,283.61,0,"Agency","Other Recruitment Agencies And Service Providers","II","BACS","None",2020-08-05 00:00:00,"2020","05","1079594","F5530","Major Projects","A5191","Agency"
"GUILDFORD BOROUGH COUNCIL","Major Projects","The Oyster Partnership Ltd","814220","08/09/2020",30001107,567.23,0,"Agency","Other Recruitment Agencies And Service Providers","II","BACS","None",2020-08-05 00:00:00,"2020","05","1079594","F5530","Major Projects","A5191","Agency"
"GUILDFORD BOROUGH COUNCIL","Executive - Miscellaneous","The Oyster Partnership Ltd","814220","08/09/2020",30001107,1985.29,0,"Agency Staff","Other Recruitment Agencies And Service Providers","II","BACS","None",2020-08-05 00:00:00,"2020","05","1079594","P79037","Ash Road Bridge","1222","Agency Staff"
"GUILDFORD BOROUGH COUNCIL","Inventories","Howden Joinery Limited","247800","08/09/2020",30001111,385.49,0,"Purchases","Joiners And Carpenters","II","BACS","None",2020-08-05 00:00:00,"2020","05","971/0189555","I01001","Stocks","2591","Purchases"
"GUILDFORD BOROUGH COUNCIL","Inventories","M E Duffell Ltd","510200","01/09/2020",30001114,36.42,0,"Purchases","Keys And Locksmiths","II","BACS","None",2020-07-28 00:00:00,"2020","05","I2086638","I01001","Stocks","2591","Purchases"
"GUILDFORD BOROUGH COUNCIL","Vehicle Maintenance","Southern Electromotive Distribution Ltd","760300","08/09/2020",30001117,2.21,0,"Repair And Maintenance Of Vehicles","Car And Van Servicing And Maintenance Providers","II","BACS","None",2020-08-05 00:00:00,"2020","05","395744","K5551","Fleet Workshops","C1002","Repair And Maintenance Of Vehicles"
"GUILDFORD BOROUGH COUNCIL","Building Maintenance","A Star Maintenance Contractors Ltd (CIS)","969700","17/08/2020",30001118,1987.15,0,"Services","Property Maintenance Contractors","II","BACS","None",2020-07-21 00:00:00,"2020","05","13626","K1515","Building Maintenance","D6004","Services"
"GUILDFORD BOROUGH COUNCIL","Other Property","Water2business","976470","01/09/2020",30001121,92.97,0,"Utilities","","II","BACS","None",2020-07-31 00:00:00,"2020","05","900514632","B6550","Multiplex Cinema, Bedford Road","B2001","Utilities"
"GUILDFORD BOROUGH COUNCIL","Vehicle Maintenance","Motormech Gfd Ltd","418700","13/08/2020",30001123,48,0,"Repair And Maintenance Of Vehicles","Car And Van Parts Suppliers","II","BACS","None",2020-08-05 00:00:00,"2020","05","241414","K5551","Fleet Workshops","C1002","Repair And Maintenance Of Vehicles"
"GUILDFORD BOROUGH COUNCIL","Millmead House","Numatic International Limited","625200","13/08/2020",30001124,20.7,0,"Materials","Cleaning And Janitorial Equipment And Supplies Providers","II","BACS","None",2020-08-05 00:00:00,"2020","05","13256078","G7511","Millmead House","D2003","Materials"
"GUILDFORD BOROUGH COUNCIL","Resources Caseworker","Numatic International Limited","625200","13/08/2020",30001124,20.7,0,"Materials","Cleaning And Janitorial Equipment And Supplies Providers","II","BACS","None",2020-08-05 00:00:00,"2020","05","13256078","G7511","Millmead House","D2003","Materials"
"GUILDFORD BOROUGH COUNCIL","Vehicle Maintenance","Connections UK","145000","08/09/2020",30001125,215.15,0,"Materials","Event Management Agencies","II","BACS","None",2020-08-05 00:00:00,"2020","05","3055","K5551","Fleet Workshops","D2003","Materials"
"GUILDFORD BOROUGH COUNCIL","Tourist Information Centre","Seatgeek Entertainment Limited","940720","27/08/2020",30001127,1562.5,0,"ICT Support & Maintenance","Software Developers","II","BACS","None",2020-07-01 00:00:00,"2020","05","INV-SGUK-922","F5541","Tourist Information Centre","D7003","ICT Support & Maintenance"
"GUILDFORD BOROUGH COUNCIL","Vehicle Maintenance","Motormech Gfd Ltd","418700","13/08/2020",30001128,48,0,"Repair And Maintenance Of Vehicles","Car And Van Parts Suppliers","II","BACS","None",2020-08-05 00:00:00,"2020","05","241430","K5551","Fleet Workshops","C1002","Repair And Maintenance Of Vehicles"
"GUILDFORD BOROUGH COUNCIL","Tourism & Development","Crystal Design & Media Ltd","876030","27/08/2020",30001133,495,0,"Advertising, Publicity & Promotion","Digital Marketing Service Providers","II","BACS","None",2020-03-31 00:00:00,"2020","05","VI10899","F5545","Tourism","D5002","Advertising, Publicity & Promotion"
"GUILDFORD BOROUGH COUNCIL","Woking Road Depot","Brady Corp Ltd T/A Seton","751400","03/09/2020",30001136,219.98,0,"Proportion Of Depot Expenses","Personal Protective Equipment (Ppe) Suppliers","II","BACS","None",2020-08-03 00:00:00,"2020","05","9303187820","B4452","Woking Road Depot","B1003","Proportion Of Depot Expenses"
"GUILDFORD BOROUGH COUNCIL","Vehicle Maintenance","Motormech Gfd Ltd","418700","13/08/2020",30001137,48,0,"Repair And Maintenance Of Vehicles","Car And Van Parts Suppliers","II","BACS","None",2020-08-05 00:00:00,"2020","05","241412","K5551","Fleet Workshops","C1002","Repair And Maintenance Of Vehicles"
"GUILDFORD BOROUGH COUNCIL","Digital Services","Goss Interactive Ltd","577320","08/09/2020",30001139,1100,0,"ICT Software","Digital Marketing Service Providers","II","BACS","None",2020-08-06 00:00:00,"2020","05","19474","F1141","Internet Site Access","D7002","ICT Software"
"GUILDFORD BOROUGH COUNCIL","Corporate Property Management","David Kingston Chartered Surveyors","970280","13/08/2020",30001140,1450,0,"Valuers Fees","Surveyors And Inspectors","II","BACS","None",2020-08-06 00:00:00,"2020","05","060820","G4575","Asset Management","D6002","Valuers Fees"
"GUILDFORD BOROUGH COUNCIL","Building Maintenance","A Star Maintenance Contractors Ltd (CIS)","969700","17/08/2020",30001141,2352.8,0,"Services","Property Maintenance Contractors","II","BACS","None",2020-08-05 00:00:00,"2020","05","13646","K1515","Building Maintenance","D6004","Services"
"GUILDFORD BOROUGH COUNCIL","Countryside and Parks Services","Saint-Gobain Building Distribution Limited (Jewson)","271200","01/09/2020",30001142,652.06,0,"Materials","Builders Merchants","II","BACS","None",2020-07-27 00:00:00,"2020","05","0652/00187525","A1100","Horticulture","D2003","Materials"
"GUILDFORD BOROUGH COUNCIL","Vehicle Maintenance","NTM-GB Ltd","758360","08/09/2020",30001143,389.46,0,"Repair And Maintenance Of Vehicles","Truck And Bus Servicing And Maintenance Providers","II","BACS","None",2020-08-06 00:00:00,"2020","05","1016230","K5551","Fleet Workshops","C1002","Repair And Maintenance Of Vehicles"
"GUILDFORD BOROUGH COUNCIL","Vehicle Maintenance","Southern Electromotive Distribution Ltd","760300","03/09/2020",30001145,80.61,0,"Repair And Maintenance Of Vehicles","Car And Van Servicing And Maintenance Providers","II","BACS","None",2020-08-04 00:00:00,"2020","05","395642","K5551","Fleet Workshops","C1002","Repair And Maintenance Of Vehicles"
"GUILDFORD BOROUGH COUNCIL","Woking Road Depot","Harpers Door Specialists","759110","25/08/2020",30001147,110,0,"Asset Maintenance","Security Shutter, Door And Gate Contractors","II","BACS","None",2020-08-06 00:00:00,"2020","05","3571","B4452","Woking Road Depot","B1001","Asset Maintenance"
"GUILDFORD BOROUGH COUNCIL","Building Maintenance","A Star Maintenance Contractors Ltd (CIS)","969700","17/08/2020",30001148,940.8,0,"Services","Property Maintenance Contractors","II","BACS","None",2020-07-21 00:00:00,"2020","05","13627","K1515","Building Maintenance","D6004","Services"
"GUILDFORD BOROUGH COUNCIL","Building Control","Hays Specialist Recruitment Limited","156250","08/09/2020",30001149,2173.65,0,"Agency","Other Recruitment Agencies And Service Providers","II","BACS","None",2020-08-05 00:00:00,"2020","05","1010744057","D5700","Building Control - Fee","A5191","Agency"
"GUILDFORD BOROUGH COUNCIL","Inventories","Crown Paints Ltd","497000","08/09/2020",30001150,1116.98,0,"Purchases","Paint And Coating Suppliers","II","BACS","None",2020-08-05 00:00:00,"2020","05","8205137052","I01001","Stocks","2591","Purchases"
"GUILDFORD BOROUGH COUNCIL","Building Maintenance","Surrey County Windows Ltd","686720","17/08/2020",30001152,3184.8,0,"Services","Window And Door Installers","II","BACS","None",2020-07-31 00:00:00,"2020","05","X0068121/3107","K1515","Building Maintenance","D6004","Services"
"GUILDFORD BOROUGH COUNCIL","Building Maintenance","Surrey County Windows Ltd","686720","17/08/2020",30001152,1482.7,0,"Services","Window And Door Installers","II","BACS","None",2020-07-31 00:00:00,"2020","05","X0068121/3107","K1515","Building Maintenance","D6004","Services"
"GUILDFORD BOROUGH COUNCIL","Lead Specialist - HR","TP Health Ltd","957830","01/09/2020",30001153,470,0,"Staff Costs","Health And Safety Training Providers","II","BACS","None",2020-07-31 00:00:00,"2020","05","INV-000006408","G2555","HR Services","A7100","Staff Costs"
"GUILDFORD BOROUGH COUNCIL","Corporate Property Management","David Kingston Chartered Surveyors","970280","13/08/2020",30001154,1500,0,"Valuers Fees","Surveyors And Inspectors","II","BACS","None",2020-08-05 00:00:00,"2020","05","050820","G4575","Asset Management","D6002","Valuers Fees"
"GUILDFORD BOROUGH COUNCIL","Building Maintenance","A Star Maintenance Contractors Ltd (CIS)","969700","17/08/2020",30001156,3180.35,0,"Services","Property Maintenance Contractors","II","BACS","None",2020-07-22 00:00:00,"2020","05","13629","K1515","Building Maintenance","D6004","Services"
"GUILDFORD BOROUGH COUNCIL","Vehicle Maintenance","F G Barnes & Sons Ltd T/A Barnes Daf","882000","08/09/2020",30001157,171.43,0,"Repair And Maintenance Of Vehicles","Car And Van Dealers","II","BACS","None",2020-08-06 00:00:00,"2020","05","10310666","K5551","Fleet Workshops","C1002","Repair And Maintenance Of Vehicles"
"GUILDFORD BOROUGH COUNCIL","Building Maintenance","A Star Maintenance Contractors Ltd (CIS)","969700","17/08/2020",30001158,4805.04,0,"Services","Property Maintenance Contractors","II","BACS","None",2020-07-21 00:00:00,"2020","05","13628","K1515","Building Maintenance","D6004","Services"
"GUILDFORD BOROUGH COUNCIL","Grants","SCBS (Grants only)","729250","27/08/2020",30001159,396.85,0,"Outgoing VAT on sales to EU Member states","General Builders","II","BACS","None",2020-07-25 00:00:00,"2020","05","1218","N51008","Mandatory DFG","1311","Outgoing VAT on sales to EU Member states"
"GUILDFORD BOROUGH COUNCIL","Grants","SCBS (Grants only)","729250","27/08/2020",30001159,396.85,0,"Outgoing VAT on sales to EU Member states","General Builders","II","BACS","None",2020-07-25 00:00:00,"2020","05","1218","N51008","Mandatory DFG","1311","Outgoing VAT on sales to EU Member states"
"GUILDFORD BOROUGH COUNCIL","Grants","SCBS (Grants only)","729250","27/08/2020",30001159,396.85,0,"Grants To Private Owners","General Builders","II","BACS","None",2020-07-25 00:00:00,"2020","05","1218","N51008","Mandatory DFG","1311","Grants To Private Owners"
"GUILDFORD BOROUGH COUNCIL","Strategic Support","Keyworker Housing Association Ltd","874950","08/09/2020",30001164,-1263.01,0,"Income Recovery","Housing Associations","II","BACS","None",2020-08-10 00:00:00,"2020","05","May, Jun & Jul 20","M6666","King Edward Ct 120 Walnut Tree","K2003","Income Recovery"
"GUILDFORD BOROUGH COUNCIL","Strategic Support","Keyworker Housing Association Ltd","874950","08/09/2020",30001164,15787.62,0,"Services","Housing Associations","II","BACS","None",2020-08-10 00:00:00,"2020","05","May, Jun & Jul 20","M6666","King Edward Ct 120 Walnut Tree","D6004","Services"
"GUILDFORD BOROUGH COUNCIL","Strategic Support","Keyworker Housing Association Ltd","874950","08/09/2020",30001164,-394.69,0,"Asset Maintenance","Housing Associations","II","BACS","None",2020-08-10 00:00:00,"2020","05","May, Jun & Jul 20","M6666","King Edward Ct 120 Walnut Tree","B1001","Asset Maintenance"
"GUILDFORD BOROUGH COUNCIL","Strategic Support","Keyworker Housing Association Ltd","874950","08/09/2020",30001164,-5121.87,0,"Asset Maintenance","Housing Associations","II","BACS","None",2020-08-10 00:00:00,"2020","05","May, Jun & Jul 20","M6666","King Edward Ct 120 Walnut Tree","B1001","Asset Maintenance"
"GUILDFORD BOROUGH COUNCIL","Strategic Support","Keyworker Housing Association Ltd","874950","08/09/2020",30001167,-1263.01,0,"Income Recovery","Housing Associations","II","BACS","None",2020-08-06 00:00:00,"2020","05","Rent Inc May, Jun & Jul","M6666","King Edward Ct 120 Walnut Tree","K2003","Income Recovery"
"GUILDFORD BOROUGH COUNCIL","Strategic Support","Keyworker Housing Association Ltd","874950","08/09/2020",30001167,-1277.49,0,"Income Recovery","Housing Associations","II","BACS","None",2020-08-06 00:00:00,"2020","05","Rent Inc May, Jun & Jul","M6666","King Edward Ct 120 Walnut Tree","K2003","Income Recovery"
"GUILDFORD BOROUGH COUNCIL","Strategic Support","Keyworker Housing Association Ltd","874950","08/09/2020",30001167,-1237.23,0,"Income Recovery","Housing Associations","II","BACS","None",2020-08-06 00:00:00,"2020","05","Rent Inc May, Jun & Jul","M6666","King Edward Ct 120 Walnut Tree","K2003","Income Recovery"
"GUILDFORD BOROUGH COUNCIL","Strategic Support","Keyworker Housing Association Ltd","874950","08/09/2020",30001167,-399.22,0,"Asset Maintenance","Housing Associations","II","BACS","None",2020-08-06 00:00:00,"2020","05","Rent Inc May, Jun & Jul","M6666","King Edward Ct 120 Walnut Tree","B1001","Asset Maintenance"
"GUILDFORD BOROUGH COUNCIL","Strategic Support","Keyworker Housing Association Ltd","874950","08/09/2020",30001167,-386.64,0,"Asset Maintenance","Housing Associations","II","BACS","None",2020-08-06 00:00:00,"2020","05","Rent Inc May, Jun & Jul","M6666","King Edward Ct 120 Walnut Tree","B1001","Asset Maintenance"
"GUILDFORD BOROUGH COUNCIL","Strategic Support","Keyworker Housing Association Ltd","874950","08/09/2020",30001167,-324.77,0,"Asset Maintenance","Housing Associations","II","BACS","None",2020-08-06 00:00:00,"2020","05","Rent Inc May, Jun & Jul","M6666","King Edward Ct 120 Walnut Tree","B1001","Asset Maintenance"
"GUILDFORD BOROUGH COUNCIL","Strategic Support","Keyworker Housing Association Ltd","874950","08/09/2020",30001167,15968.64,0,"Services","Housing Associations","II","BACS","None",2020-08-06 00:00:00,"2020","05","Rent Inc May, Jun & Jul","M6666","King Edward Ct 120 Walnut Tree","D6004","Services"
"GUILDFORD BOROUGH COUNCIL","Strategic Support","Keyworker Housing Association Ltd","874950","08/09/2020",30001167,15787.62,0,"Services","Housing Associations","II","BACS","None",2020-08-06 00:00:00,"2020","05","Rent Inc May, Jun & Jul","M6666","King Edward Ct 120 Walnut Tree","D6004","Services"
"GUILDFORD BOROUGH COUNCIL","Strategic Support","Keyworker Housing Association Ltd","874950","08/09/2020",30001167,-394.69,0,"Asset Maintenance","Housing Associations","II","BACS","None",2020-08-06 00:00:00,"2020","05","Rent Inc May, Jun & Jul","M6666","King Edward Ct 120 Walnut Tree","B1001","Asset Maintenance"
"GUILDFORD BOROUGH COUNCIL","Strategic Support","Keyworker Housing Association Ltd","874950","08/09/2020",30001167,-5121.87,0,"Asset Maintenance","Housing Associations","II","BACS","None",2020-08-06 00:00:00,"2020","05","Rent Inc May, Jun & Jul","M6666","King Edward Ct 120 Walnut Tree","B1001","Asset Maintenance"
"GUILDFORD BOROUGH COUNCIL","Strategic Support","Keyworker Housing Association Ltd","874950","08/09/2020",30001167,15465.4,0,"Services","Housing Associations","II","BACS","None",2020-08-06 00:00:00,"2020","05","Rent Inc May, Jun & Jul","M6666","King Edward Ct 120 Walnut Tree","D6004","Services"
"GUILDFORD BOROUGH COUNCIL","Grants","Stannah Stairlifts Ltd (Grants only)","766700","27/08/2020",30001168,5741,0,"Grants To Private Owners","Stairlift Suppliers","II","BACS","None",2020-07-24 00:00:00,"2020","05","1085209461","N51008","Mandatory DFG","1311","Grants To Private Owners"
"GUILDFORD BOROUGH COUNCIL","Grants","Stannah Stairlifts Ltd (Grants only)","766700","27/08/2020",30001168,5741,0,"Outgoing VAT on sales to EU Member states","Stairlift Suppliers","II","BACS","None",2020-07-24 00:00:00,"2020","05","1085209461","N51008","Mandatory DFG","1311","Outgoing VAT on sales to EU Member states"
"GUILDFORD BOROUGH COUNCIL","Grants","Stannah Stairlifts Ltd (Grants only)","766700","27/08/2020",30001168,5741,0,"Outgoing VAT on sales to EU Member states","Stairlift Suppliers","II","BACS","None",2020-07-24 00:00:00,"2020","05","1085209461","N51008","Mandatory DFG","1311","Outgoing VAT on sales to EU Member states"
"GUILDFORD BOROUGH COUNCIL","Grants","Steadfast Automation Ltd (Grants only)","967890","27/08/2020",30001169,2347.64,0,"Grants To Private Owners","Electronic Equipment And Component Suppliers","II","BACS","None",2020-07-27 00:00:00,"2020","05","500267","N51008","Mandatory DFG","1311","Grants To Private Owners"
"GUILDFORD BOROUGH COUNCIL","Grants","Steadfast Automation Ltd (Grants only)","967890","27/08/2020",30001169,2347.64,0,"Outgoing VAT on sales to EU Member states","Electronic Equipment And Component Suppliers","II","BACS","None",2020-07-27 00:00:00,"2020","05","500267","N51008","Mandatory DFG","1311","Outgoing VAT on sales to EU Member states"
"GUILDFORD BOROUGH COUNCIL","Grants","Steadfast Automation Ltd (Grants only)","967890","27/08/2020",30001169,2347.64,0,"Outgoing VAT on sales to EU Member states","Electronic Equipment And Component Suppliers","II","BACS","None",2020-07-27 00:00:00,"2020","05","500267","N51008","Mandatory DFG","1311","Outgoing VAT on sales to EU Member states"
"GUILDFORD BOROUGH COUNCIL","Grants","Bentley Mobility Services Limited","929000","01/09/2020",30001170,4390,0,"Outgoing VAT on sales to EU Member states","Mobility Disability Equipment Suppliers","II","BACS","None",2020-07-29 00:00:00,"2020","05","Inv: 27082","N51008","Mandatory DFG","1311","Outgoing VAT on sales to EU Member states"
"GUILDFORD BOROUGH COUNCIL","Grants","Bentley Mobility Services Limited","929000","01/09/2020",30001170,4390,0,"Grants To Private Owners","Mobility Disability Equipment Suppliers","II","BACS","None",2020-07-29 00:00:00,"2020","05","Inv: 27082","N51008","Mandatory DFG","1311","Grants To Private Owners"
"GUILDFORD BOROUGH COUNCIL","Grants","Bentley Mobility Services Limited","929000","01/09/2020",30001170,4390,0,"Outgoing VAT on sales to EU Member states","Mobility Disability Equipment Suppliers","II","BACS","None",2020-07-29 00:00:00,"2020","05","Inv: 27082","N51008","Mandatory DFG","1311","Outgoing VAT on sales to EU Member states"
"GUILDFORD BOROUGH COUNCIL","Grants","Bentley Mobility Services Limited","929000","01/09/2020",30001171,4391,0,"Outgoing VAT on sales to EU Member states","Mobility Disability Equipment Suppliers","II","BACS","None",2020-07-31 00:00:00,"2020","05","Inv: 27094","N51008","Mandatory DFG","1311","Outgoing VAT on sales to EU Member states"
"GUILDFORD BOROUGH COUNCIL","Grants","Bentley Mobility Services Limited","929000","01/09/2020",30001171,4391,0,"Grants To Private Owners","Mobility Disability Equipment Suppliers","II","BACS","None",2020-07-31 00:00:00,"2020","05","Inv: 27094","N51008","Mandatory DFG","1311","Grants To Private Owners"
"GUILDFORD BOROUGH COUNCIL","Grants","Bentley Mobility Services Limited","929000","01/09/2020",30001171,4391,0,"Outgoing VAT on sales to EU Member states","Mobility Disability Equipment Suppliers","II","BACS","None",2020-07-31 00:00:00,"2020","05","Inv: 27094","N51008","Mandatory DFG","1311","Outgoing VAT on sales to EU Member states"
"GUILDFORD BOROUGH COUNCIL","Building Control","THDG (Consulting Engineers) Ltd","777590","08/09/2020",30001172,1125,0,"Consultancy","Civil Engineers","II","BACS","None",2020-08-07 00:00:00,"2020","05","2243","D5700","Building Control - Fee","D6001","Consultancy"
"GUILDFORD BOROUGH COUNCIL","Parks Countryside Management","Castle Water Limited","896380","13/08/2020",30001173,0.02,0,"Utilities","Mains Water Suppliers","II","BACS","None",2020-07-09 00:00:00,"2020","05","0001208055","A1340","Chantry Wood","B2001","Utilities"
"GUILDFORD BOROUGH COUNCIL","Countryside and Parks Services","Castle Water Limited","896380","13/08/2020",30001173,0.02,0,"Utilities","Mains Water Suppliers","II","BACS","None",2020-07-09 00:00:00,"2020","05","0001208055","A1340","Chantry Wood","B2001","Utilities"
"GUILDFORD BOROUGH COUNCIL","Vehicle Maintenance","Vision Techniques (UK) Ltd","644080","08/09/2020",30001176,31,0,"Repair And Maintenance Of Vehicles","Closed Circuit Television (Cctv) Suppliers","II","BACS","None",2020-08-07 00:00:00,"2020","05","0005013089","K5551","Fleet Workshops","C1002","Repair And Maintenance Of Vehicles"
"GUILDFORD BOROUGH COUNCIL","Millmead House","Swift Industrial Supplies Ltd","783800","13/08/2020",30001177,6.5,0,"Postage","Personal Protective Equipment (Ppe) Suppliers","II","BACS","None",2020-08-06 00:00:00,"2020","05","IN281963","G7511","Millmead House","D5003","Postage"
"GUILDFORD BOROUGH COUNCIL","Resources Caseworker","Swift Industrial Supplies Ltd","783800","13/08/2020",30001177,6.5,0,"Postage","Personal Protective Equipment (Ppe) Suppliers","II","BACS","None",2020-08-06 00:00:00,"2020","05","IN281963","G7511","Millmead House","D5003","Postage"
"GUILDFORD BOROUGH COUNCIL","Millmead House","Swift Industrial Supplies Ltd","783800","13/08/2020",30001177,30.56,0,"Clothing & Uniform","Personal Protective Equipment (Ppe) Suppliers","II","BACS","None",2020-08-06 00:00:00,"2020","05","IN281963","G7511","Millmead House","D4001","Clothing & Uniform"
"GUILDFORD BOROUGH COUNCIL","Resources Caseworker","Swift Industrial Supplies Ltd","783800","13/08/2020",30001177,30.56,0,"Clothing & Uniform","Personal Protective Equipment (Ppe) Suppliers","II","BACS","None",2020-08-06 00:00:00,"2020","05","IN281963","G7511","Millmead House","D4001","Clothing & Uniform"
"GUILDFORD BOROUGH COUNCIL","Cemeteries","Castle Water Limited","896380","13/08/2020",30001178,0.01,0,"Utilities","Mains Water Suppliers","II","BACS","None",2020-07-09 00:00:00,"2020","05","0001208120","A1430","Cemeteries - Stoke Cemetery","B2001","Utilities"
"GUILDFORD BOROUGH COUNCIL","Property","Pinsent Masons LLP","992900","01/09/2020",30001179,10743.3,0,"Legal Expenses","Other Legal Service Providers","II","BACS","None",2020-07-31 00:00:00,"2020","05","6551526","P74040","Slyfield Area Regeneration Project","1395","Legal Expenses"
"GUILDFORD BOROUGH COUNCIL","Vehicle Maintenance","Prax Petroleum Ltd","634040","13/08/2020",30001185,15659.13,0,"Vehicle Operating Costs","Petrol, Diesel And Lubricant Suppliers","II","BACS","None",2020-08-04 00:00:00,"2020","05","0000701057","K5551","Fleet Workshops","C1001","Vehicle Operating Costs"
"GUILDFORD BOROUGH COUNCIL","Industrial Estates","Haven Power Limited","973290","08/09/2020",30001189,1667.05,0,"Utilities","","II","BACS","None",2020-08-06 00:00:00,"2020","05","IN1104569905","B5341","Midleton Industrial Estate","B2001","Utilities"
